Department Family,Entity,Date,Expense Type,Expense Area,Supplier,Transaction Number,AP Amount,Description,Supplier Postcode
Department of Health,NHS Sheffield CCG,11/30/2020,C&M-PMS Contract Value,PRC DELEGATED CO-COMMISSIONING,ABBEY LANE SURGERY,34513141,"24,000.32",BABALP,S8 0BJ
Department of Health,NHS Sheffield CCG,11/30/2020,C&M-PMS DES Minor Surgery,PRC DELEGATED CO-COMMISSIONING,ABBEY LANE SURGERY,34513141,320.00,DEMSUP,S8 0BJ
Department of Health,NHS Sheffield CCG,11/30/2020,C&M-PMS Funding Differential Review,PRC DELEGATED CO-COMMISSIONING,ABBEY LANE SURGERY,34513141,454.56,ZFUNFP,S8 0BJ
Department of Health,NHS Sheffield CCG,11/30/2020,C&M-PMS PCN DES Participation,PRC DELEGATED CO-COMMISSIONING,ABBEY LANE SURGERY,34513141,900.11,PARTIP,S8 0BJ
Department of Health,NHS Sheffield CCG,11/30/2020,C&M-PMS Prem Notional Rent,PRC DELEGATED CO-COMMISSIONING,ABBEY LANE SURGERY,34513141,"2,166.67",NRENT,S8 0BJ
Department of Health,NHS Sheffield CCG,11/30/2020,C&M-PMS Prem Rates,PRC DELEGATED CO-COMMISSIONING,ABBEY LANE SURGERY,34513141,773.00,RANDRP,S8 0BJ
Department of Health,NHS Sheffield CCG,11/30/2020,C&M-PMS QOF Aspiration,PRC DELEGATED CO-COMMISSIONING,ABBEY LANE SURGERY,34513141,"2,440.19",QUASPP,S8 0BJ
Department of Health,NHS Sheffield CCG,11/30/2020,Cont Care-Physical Disab (<65),CHC ADULT FULLY FUNDED,ALPINE HEALTH CARE,34535697,"26,611.94",CHC SCHEDULE NOVEMBER 2020 - Alpine Lodge Nursing Home,S36 1AD
Department of Health,NHS Sheffield CCG,11/30/2020,Hcare Srv Rec Fdtn Trust-Contract Baseline,ACUTE COMMISSIONING,BARNSLEY HOSPITAL NHS FOUNDATION TRUST,34578599,"131,016.71",,S75 2EP
Department of Health,NHS Sheffield CCG,11/30/2020,Other Gen Supplies & Srv,BEREAVEMENT SERVICE,BARNSLEY HOSPITAL NHS FOUNDATION TRUST,34646013,"64,000.00",,S75 2EP
Department of Health,NHS Sheffield CCG,11/30/2020,C&M-PMS Contract Value,PRC DELEGATED CO-COMMISSIONING,BARNSLEY ROAD SURGERY,34513143,"20,985.95",BABALP,S5 0QJ
Department of Health,NHS Sheffield CCG,11/30/2020,C&M-PMS Funding Differential Review,PRC DELEGATED CO-COMMISSIONING,BARNSLEY ROAD SURGERY,34513143,506.44,ZFUNFP,S5 0QJ
Department of Health,NHS Sheffield CCG,11/30/2020,C&M-PMS PCN DES Participation,PRC DELEGATED CO-COMMISSIONING,BARNSLEY ROAD SURGERY,34513143,788.19,PARTIP,S5 0QJ
Department of Health,NHS Sheffield CCG,11/30/2020,C&M-PMS Prem Notional Rent,PRC DELEGATED CO-COMMISSIONING,BARNSLEY ROAD SURGERY,34513143,"2,652.17",NRENT,S5 0QJ
Department of Health,NHS Sheffield CCG,11/30/2020,C&M-PMS QOF Aspiration,PRC DELEGATED CO-COMMISSIONING,BARNSLEY ROAD SURGERY,34513143,"2,289.13",QUASPP,S5 0QJ
Department of Health,NHS Sheffield CCG,11/30/2020,C&M-GMS Global Sum,PRC DELEGATED CO-COMMISSIONING,BASLOW ROAD & SHOREHAM STREET SURGERIES,34717705,"99,720.37",GSUMG,S17 4DR
Department of Health,NHS Sheffield CCG,11/30/2020,C&M-GMS PCN DES Participation,PRC DELEGATED CO-COMMISSIONING,BASLOW ROAD & SHOREHAM STREET SURGERIES,34717705,"3,972.12",PARTIG,S17 4DR
Department of Health,NHS Sheffield CCG,11/30/2020,C&M-GMS Prem Notional Rent,PRC DELEGATED CO-COMMISSIONING,BASLOW ROAD & SHOREHAM STREET SURGERIES,34717705,"8,222.71",NRENT,S17 4DR
Department of Health,NHS Sheffield CCG,11/30/2020,C&M-GMS Prem Rates,PRC DELEGATED CO-COMMISSIONING,BASLOW ROAD & SHOREHAM STREET SURGERIES,34717705,"1,954.00",RANDR,S17 4DR
Department of Health,NHS Sheffield CCG,11/30/2020,C&M-GMS Prem Water Rates,PRC DELEGATED CO-COMMISSIONING,BASLOW ROAD & SHOREHAM STREET SURGERIES,34717705,76.28,RAMW,S17 4DR
Department of Health,NHS Sheffield CCG,11/30/2020,C&M-GMS QOF Aspiration,PRC DELEGATED CO-COMMISSIONING,BASLOW ROAD & SHOREHAM STREET SURGERIES,34717705,"10,305.33",QUASPG,S17 4DR
Department of Health,NHS Sheffield CCG,11/30/2020,Cont Care-Physical Disab (65+),CHC ADULT FULLY FUNDED,BC SHEFFIELD LTD,34544860,"38,229.75",https://nww.einvoice-prod.sbs.nhs.uk:8179/invoicepdf/f244ad03-e569-5c26-8755-5194fd7b21b6,S9 2TJ
Department of Health,NHS Sheffield CCG,11/30/2020,Cont Care-Physical Disab (65+),CHC ADULT FULLY FUNDED,BC SHEFFIELD LTD,34724409,"6,900.50",https://nww.einvoice-prod.sbs.nhs.uk:8179/invoicepdf/ffb6dbcc-affe-5966-a106-0cb9ce016438,S9 2TJ
Department of Health,NHS Sheffield CCG,11/30/2020,Cont Care-Physical Disab (65+),CHC ADULT FULLY FUNDED,BC SHEFFIELD LTD,34724409,"40,332.32",,S9 2TJ
Department of Health,NHS Sheffield CCG,11/30/2020,C&M-PMS Contract Value,PRC DELEGATED CO-COMMISSIONING,BIRLEY HEALTH CENTRE,34513145,"64,972.79",BABALP,S12 3BP
Department of Health,NHS Sheffield CCG,11/30/2020,C&M-PMS DES Minor Surgery,PRC DELEGATED CO-COMMISSIONING,BIRLEY HEALTH CENTRE,34513145,"1,450.00",DEMSUP,S12 3BP
Department of Health,NHS Sheffield CCG,11/30/2020,C&M-PMS Funding Differential Review,PRC DELEGATED CO-COMMISSIONING,BIRLEY HEALTH CENTRE,34513145,"1,118.40",ZFUNFP,S12 3BP
Department of Health,NHS Sheffield CCG,11/30/2020,C&M-PMS Out of Hours Opt Outs,PRC DELEGATED CO-COMMISSIONING,BIRLEY HEALTH CENTRE,34513145,11.70,APMOOH,S12 3BP
Department of Health,NHS Sheffield CCG,11/30/2020,C&M-PMS PCN DES Participation,PRC DELEGATED CO-COMMISSIONING,BIRLEY HEALTH CENTRE,34513145,"2,447.94",PARTIP,S12 3BP
Department of Health,NHS Sheffield CCG,11/30/2020,C&M-PMS PCO Other,PRC DELEGATED CO-COMMISSIONING,BIRLEY HEALTH CENTRE,34513145,539.80,CQCRP,S12 3BP
Department of Health,NHS Sheffield CCG,11/30/2020,C&M-PMS Prem Notional Rent,PRC DELEGATED CO-COMMISSIONING,BIRLEY HEALTH CENTRE,34513145,"7,600.58",NRENT,S12 3BP
Department of Health,NHS Sheffield CCG,11/30/2020,C&M-PMS Prem Rates,PRC DELEGATED CO-COMMISSIONING,BIRLEY HEALTH CENTRE,34513145,"1,697.00",RANDRP,S12 3BP
Department of Health,NHS Sheffield CCG,11/30/2020,C&M-PMS QOF Aspiration,PRC DELEGATED CO-COMMISSIONING,BIRLEY HEALTH CENTRE,34513145,"6,800.34",QUASPP,S12 3BP
Department of Health,NHS Sheffield CCG,11/30/2020,Cont Care-Physical Disab (<65),CHC ADULT FULLY FUNDED,BONDCARE,34535732,"49,771.03",CHC SCHEDULE NOVEMBER 2020 - Chatsworth Grange Nursing Home,NW4 4EF
Department of Health,NHS Sheffield CCG,11/30/2020,Cont Care-Funded Nursing Care Allow,FUNDED NURSING CARE,BONDCARE,34535778,"28,980.57",FNC SCHEDULE NOVEMBER 2020 - Chatsworth Grange Nursing Home,NW4 4EF
Department of Health,NHS Sheffield CCG,11/30/2020,C&M-GMS Global Sum,PRC DELEGATED CO-COMMISSIONING,BROOMHILL SURGERY,34717718,"67,368.43",GSUMG,S10 5BU
Department of Health,NHS Sheffield CCG,11/30/2020,C&M-GMS PCN DES Participation,PRC DELEGATED CO-COMMISSIONING,BROOMHILL SURGERY,34717718,"2,661.46",PARTIG,S10 5BU
Department of Health,NHS Sheffield CCG,11/30/2020,C&M-GMS Prem Cost Rent,PRC DELEGATED CO-COMMISSIONING,BROOMHILL SURGERY,34717718,"2,975.42",COST,S10 5BU
Department of Health,NHS Sheffield CCG,11/30/2020,C&M-GMS Prem Notional Rent,PRC DELEGATED CO-COMMISSIONING,BROOMHILL SURGERY,34717718,"2,612.50",NRENT,S10 5BU
Department of Health,NHS Sheffield CCG,11/30/2020,C&M-GMS Prem Rates,PRC DELEGATED CO-COMMISSIONING,BROOMHILL SURGERY,34717718,"1,408.00",RANDR,S10 5BU
Department of Health,NHS Sheffield CCG,11/30/2020,C&M-GMS QOF Aspiration,PRC DELEGATED CO-COMMISSIONING,BROOMHILL SURGERY,34717718,"6,610.83",QUASPG,S10 5BU
Department of Health,NHS Sheffield CCG,11/30/2020,C&M-GMS Cost of Drugs -Prescribing,LOCAL ENHANCED SERVICES,BUCHANAN ROAD SURGERY,34717710,190.63,DRGP,S5 8AL
Department of Health,NHS Sheffield CCG,11/30/2020,C&M-GMS DES Learn Dsblty Hlth Chk,PRC DELEGATED CO-COMMISSIONING,BUCHANAN ROAD SURGERY,34717710,840.00,LEARNG,S5 8AL
Department of Health,NHS Sheffield CCG,11/30/2020,C&M-GMS Global Sum,PRC DELEGATED CO-COMMISSIONING,BUCHANAN ROAD SURGERY,34717710,"37,028.88",GSUMG,S5 8AL
Department of Health,NHS Sheffield CCG,11/30/2020,C&M-GMS PCN DES Participation,PRC DELEGATED CO-COMMISSIONING,BUCHANAN ROAD SURGERY,34717710,"1,470.69",PARTIG,S5 8AL
Department of Health,NHS Sheffield CCG,11/30/2020,C&M-GMS Prem Notional Rent,PRC DELEGATED CO-COMMISSIONING,BUCHANAN ROAD SURGERY,34717710,"2,595.83",NRENT,S5 8AL
Department of Health,NHS Sheffield CCG,11/30/2020,C&M-GMS Prem Rates,PRC DELEGATED CO-COMMISSIONING,BUCHANAN ROAD SURGERY,34717710,"1,283.00",RANDR,S5 8AL
Department of Health,NHS Sheffield CCG,11/30/2020,C&M-GMS Prof Fees Prescribing,PRC DELEGATED CO-COMMISSIONING,BUCHANAN ROAD SURGERY,34717710,32.24,DRGPPF,S5 8AL
Department of Health,NHS Sheffield CCG,11/30/2020,C&M-GMS QOF Aspiration,PRC DELEGATED CO-COMMISSIONING,BUCHANAN ROAD SURGERY,34717710,"4,322.18",QUASPG,S5 8AL
Department of Health,NHS Sheffield CCG,11/30/2020,C&M-PMS GP Statutory Levy,PRC DELEGATED CO-COMMISSIONING,BURNCROSS SURGERY,34513146,-526.09,STATL,S35 1RN
Department of Health,NHS Sheffield CCG,11/30/2020,C&M-PMS PCN DES Participation,PRC DELEGATED CO-COMMISSIONING,BURNCROSS SURGERY,34513146,"-2,282.33",PARTIP,S35 1RN
Department of Health,NHS Sheffield CCG,11/30/2020,C&M-PMS Prem Rates,PRC DELEGATED CO-COMMISSIONING,BURNCROSS SURGERY,34513146,"-4,533.00",RANDRP,S35 1RN
Department of Health,NHS Sheffield CCG,11/30/2020,C&M-PMS Contract Value,PRC DELEGATED CO-COMMISSIONING,BURNCROSS SURGERY,34513147,"122,252.85",BABALP,S35 1RN
Department of Health,NHS Sheffield CCG,11/30/2020,C&M-PMS DES Learn Dsblty Hlth Chk,PRC DELEGATED CO-COMMISSIONING,BURNCROSS SURGERY,34513147,"4,900.00",LEARNP,S35 1RN
Department of Health,NHS Sheffield CCG,11/30/2020,C&M-PMS DES Minor Surgery,PRC DELEGATED CO-COMMISSIONING,BURNCROSS SURGERY,34513147,360.00,DEMSUP,S35 1RN
Department of Health,NHS Sheffield CCG,11/30/2020,C&M-PMS Funding Differential Review,PRC DELEGATED CO-COMMISSIONING,BURNCROSS SURGERY,34513147,"2,746.32",ZFUNFP,S35 1RN
Department of Health,NHS Sheffield CCG,11/30/2020,C&M-PMS PCN DES Participation,PRC DELEGATED CO-COMMISSIONING,BURNCROSS SURGERY,34513147,"4,568.54",PARTIP,S35 1RN
Department of Health,NHS Sheffield CCG,11/30/2020,C&M-PMS Prem Notional Rent,PRC DELEGATED CO-COMMISSIONING,BURNCROSS SURGERY,34513147,"14,919.67",NRENT,S35 1RN
Department of Health,NHS Sheffield CCG,11/30/2020,C&M-PMS Prem Rates,PRC DELEGATED CO-COMMISSIONING,BURNCROSS SURGERY,34513147,"7,993.89",RANDRP,S35 1RN
Department of Health,NHS Sheffield CCG,11/30/2020,C&M-PMS QOF Aspiration,PRC DELEGATED CO-COMMISSIONING,BURNCROSS SURGERY,34513147,"15,253.36",QUASPP,S35 1RN
Department of Health,NHS Sheffield CCG,11/30/2020,C&M-PMS Contract Value,PRC DELEGATED CO-COMMISSIONING,BURNGREAVE SURGERY,34540747,"58,071.43",BABALP,S3 9DA
Department of Health,NHS Sheffield CCG,11/30/2020,C&M-PMS DES Minor Surgery,PRC DELEGATED CO-COMMISSIONING,BURNGREAVE SURGERY,34540747,120.00,DEMSUP,S3 9DA
Department of Health,NHS Sheffield CCG,11/30/2020,C&M-PMS Funding Differential Review,PRC DELEGATED CO-COMMISSIONING,BURNGREAVE SURGERY,34540747,"1,135.51",ZFUNFP,S3 9DA
Department of Health,NHS Sheffield CCG,11/30/2020,C&M-PMS Out of Hours Opt Outs,PRC DELEGATED CO-COMMISSIONING,BURNGREAVE SURGERY,34540747,32.73,APMOOH,S3 9DA
Department of Health,NHS Sheffield CCG,11/30/2020,C&M-PMS PCN DES Participation,PRC DELEGATED CO-COMMISSIONING,BURNGREAVE SURGERY,34540747,"2,182.17",PARTIP,S3 9DA
Department of Health,NHS Sheffield CCG,11/30/2020,C&M-PMS PCO Locum Sickness,PRC DELEGATED CO-COMMISSIONING,BURNGREAVE SURGERY,34540747,"13,685.70",SICKS,S3 9DA
Department of Health,NHS Sheffield CCG,11/30/2020,C&M-PMS Prem Notional Rent,PRC DELEGATED CO-COMMISSIONING,BURNGREAVE SURGERY,34540747,"6,622.92",NRENT,S3 9DA
Department of Health,NHS Sheffield CCG,11/30/2020,C&M-PMS Prem Rates,PRC DELEGATED CO-COMMISSIONING,BURNGREAVE SURGERY,34540747,"2,297.00",RANDRP,S3 9DA
Department of Health,NHS Sheffield CCG,11/30/2020,C&M-PMS QOF Aspiration,PRC DELEGATED CO-COMMISSIONING,BURNGREAVE SURGERY,34540747,"5,108.72",QUASPP,S3 9DA
Department of Health,NHS Sheffield CCG,11/30/2020,C&M-GMS GP Statutory Levy,PRC DELEGATED CO-COMMISSIONING,CARRFIELD MEDICAL CENTRE,34717725,-41.23,STATL,S8 9SG
Department of Health,NHS Sheffield CCG,11/30/2020,C&M-GMS PCN DES Participation,PRC DELEGATED CO-COMMISSIONING,CARRFIELD MEDICAL CENTRE,34717725,-194.05,PARTIG,S8 9SG
Department of Health,NHS Sheffield CCG,11/30/2020,C&M-GMS Global Sum,PRC DELEGATED CO-COMMISSIONING,CARRFIELD MEDICAL CENTRE,34717727,"9,671.71",GSUMG,S8 9SG
Department of Health,NHS Sheffield CCG,11/30/2020,C&M-GMS PCN DES Participation,PRC DELEGATED CO-COMMISSIONING,CARRFIELD MEDICAL CENTRE,34717727,388.43,PARTIG,S8 9SG
Department of Health,NHS Sheffield CCG,11/30/2020,C&M-GMS Prem Notional Rent,PRC DELEGATED CO-COMMISSIONING,CARRFIELD MEDICAL CENTRE,34717727,"2,238.25",NRENT,S8 9SG
Department of Health,NHS Sheffield CCG,11/30/2020,C&M-GMS Prem Rates,PRC DELEGATED CO-COMMISSIONING,CARRFIELD MEDICAL CENTRE,34717727,798.00,RANDR,S8 9SG
Department of Health,NHS Sheffield CCG,11/30/2020,C&M-GMS QOF Aspiration,PRC DELEGATED CO-COMMISSIONING,CARRFIELD MEDICAL CENTRE,34717727,"1,215.47",QUASPG,S8 9SG
Department of Health,NHS Sheffield CCG,11/30/2020,C&M-GMS Cost of Drugs -Prescribing,LOCAL ENHANCED SERVICES,CARTERKNOWLE & DORE MEDICAL PRACTICE,34717734,"13,394.86",DRGP,S7 2DW
Department of Health,NHS Sheffield CCG,11/30/2020,C&M-GMS DES Learn Dsblty Hlth Chk,PRC DELEGATED CO-COMMISSIONING,CARTERKNOWLE & DORE MEDICAL PRACTICE,34717734,700.00,LEARNG,S7 2DW
Department of Health,NHS Sheffield CCG,11/30/2020,C&M-GMS Global Sum,PRC DELEGATED CO-COMMISSIONING,CARTERKNOWLE & DORE MEDICAL PRACTICE,34717734,"89,716.31",GSUMG,S7 2DW
Department of Health,NHS Sheffield CCG,11/30/2020,C&M-GMS PCN DES Participation,PRC DELEGATED CO-COMMISSIONING,CARTERKNOWLE & DORE MEDICAL PRACTICE,34717734,"3,484.23",PARTIG,S7 2DW
Department of Health,NHS Sheffield CCG,11/30/2020,C&M-GMS PCO Locum Sickness,PRC DELEGATED CO-COMMISSIONING,CARTERKNOWLE & DORE MEDICAL PRACTICE,34717734,"4,754.76",LOCSIG,S7 2DW
Department of Health,NHS Sheffield CCG,11/30/2020,C&M-GMS Prem Notional Rent,PRC DELEGATED CO-COMMISSIONING,CARTERKNOWLE & DORE MEDICAL PRACTICE,34717734,"7,855.00",NRENT,S7 2DW
Department of Health,NHS Sheffield CCG,11/30/2020,C&M-GMS Prof Fees Prescribing,PRC DELEGATED CO-COMMISSIONING,CARTERKNOWLE & DORE MEDICAL PRACTICE,34717734,"2,532.47",DRGPPF,S7 2DW
Department of Health,NHS Sheffield CCG,11/30/2020,C&M-GMS QOF Aspiration,PRC DELEGATED CO-COMMISSIONING,CARTERKNOWLE & DORE MEDICAL PRACTICE,34717734,"10,268.52",QUASPG,S7 2DW
Department of Health,NHS Sheffield CCG,11/30/2020,C&M-GMS Cost of Drugs -Prescribing,LOCAL ENHANCED SERVICES,CHARNOCK HEALTH PRIMARY CARE CENTRE,34717722,717.68,DRGP,S12 3GH
Department of Health,NHS Sheffield CCG,11/30/2020,C&M-GMS Global Sum,PRC DELEGATED CO-COMMISSIONING,CHARNOCK HEALTH PRIMARY CARE CENTRE,34717722,"44,918.41",GSUMG,S12 3GH
Department of Health,NHS Sheffield CCG,11/30/2020,C&M-GMS PCN DES Participation,PRC DELEGATED CO-COMMISSIONING,CHARNOCK HEALTH PRIMARY CARE CENTRE,34717722,893.45,PARTIG,S12 3GH
Department of Health,NHS Sheffield CCG,11/30/2020,C&M-GMS PCO Other,PRC DELEGATED CO-COMMISSIONING,CHARNOCK HEALTH PRIMARY CARE CENTRE,34717722,371.00,CQCRG,S12 3GH
Department of Health,NHS Sheffield CCG,11/30/2020,C&M-GMS Prem Notional Rent,PRC DELEGATED CO-COMMISSIONING,CHARNOCK HEALTH PRIMARY CARE CENTRE,34717722,335.00,NRENT,S12 3GH
Department of Health,NHS Sheffield CCG,11/30/2020,C&M-GMS Prem Rates,PRC DELEGATED CO-COMMISSIONING,CHARNOCK HEALTH PRIMARY CARE CENTRE,34717722,"1,572.00",RANDR,S12 3GH
Department of Health,NHS Sheffield CCG,11/30/2020,C&M-GMS Prof Fees Prescribing,PRC DELEGATED CO-COMMISSIONING,CHARNOCK HEALTH PRIMARY CARE CENTRE,34717722,80.61,DRGPPF,S12 3GH
Department of Health,NHS Sheffield CCG,11/30/2020,C&M-GMS QOF Aspiration,PRC DELEGATED CO-COMMISSIONING,CHARNOCK HEALTH PRIMARY CARE CENTRE,34717722,"4,918.11",QUASPG,S12 3GH
Department of Health,NHS Sheffield CCG,11/30/2020,Hcare Srv Rec Fdtn Trust-Contract Baseline,ACUTE COMMISSIONING,CHESTERFIELD ROYAL HOSPITAL NHS FOUNDATION TRUST,34578600,"369,177.00",,S44 5BL
Department of Health,NHS Sheffield CCG,11/30/2020,C&M-APMS Contract Value,PRC DELEGATED CO-COMMISSIONING,CLOVER CITY PRACTICE,34513218,"30,667.03",APMADD,S9 4QH
Department of Health,NHS Sheffield CCG,11/30/2020,C&M-APMS DES Minor Surgery,PRC DELEGATED CO-COMMISSIONING,CLOVER CITY PRACTICE,34513218,40.00,DEMSUA,S9 4QH
Department of Health,NHS Sheffield CCG,11/30/2020,C&M-APMS OOH Opt Outs,PRC DELEGATED CO-COMMISSIONING,CLOVER CITY PRACTICE,34513218,1.31,APMOOA,S9 4QH
Department of Health,NHS Sheffield CCG,11/30/2020,C&M-APMS PCN DES Participation,PRC DELEGATED CO-COMMISSIONING,CLOVER CITY PRACTICE,34513218,563.87,PARTIA,S9 4QH
Department of Health,NHS Sheffield CCG,11/30/2020,C&M-PMS PCN DES Participation,PRC DELEGATED CO-COMMISSIONING,CLOVER CITY PRACTICE,34513218,564.83,PARTIP,S9 4QH
Department of Health,NHS Sheffield CCG,11/30/2020,C&M-PMS PCO Locum Adop/Pat/Mat,PRC DELEGATED CO-COMMISSIONING,CLOVER CITY PRACTICE,34513218,"13,225.65",SICKC,S9 4QH
Department of Health,NHS Sheffield CCG,11/30/2020,C&M-PMS QOF Aspiration,PRC DELEGATED CO-COMMISSIONING,CLOVER CITY PRACTICE,34513218,"1,589.35",QUASPP,S9 4QH
Department of Health,NHS Sheffield CCG,11/30/2020,C&M-APMS Contract Value,PRC DELEGATED CO-COMMISSIONING,CLOVER GROUP PRACTICE,34513150,"132,241.77",APMADD,S9 4QH
Department of Health,NHS Sheffield CCG,11/30/2020,C&M-APMS DES Minor Surgery,PRC DELEGATED CO-COMMISSIONING,CLOVER GROUP PRACTICE,34513150,120.00,DEMSUA,S9 4QH
Department of Health,NHS Sheffield CCG,11/30/2020,C&M-APMS PCN DES Participation,PRC DELEGATED CO-COMMISSIONING,CLOVER GROUP PRACTICE,34513150,"2,478.23",PARTIA,S9 4QH
Department of Health,NHS Sheffield CCG,11/30/2020,C&M-APMS Prem Actual Rent,PRC DELEGATED CO-COMMISSIONING,CLOVER GROUP PRACTICE,34513150,"5,169.68",RENTA,S9 4QH
Department of Health,NHS Sheffield CCG,11/30/2020,C&M-APMS Prem Healthcentre Rent,PRC DELEGATED CO-COMMISSIONING,CLOVER GROUP PRACTICE,34513150,"59,788.21",HEALTA,S9 4QH
Department of Health,NHS Sheffield CCG,11/30/2020,C&M-APMS Prem Notional Rent,PRC DELEGATED CO-COMMISSIONING,CLOVER GROUP PRACTICE,34513150,"2,804.17",NRENTA,S9 4QH
Department of Health,NHS Sheffield CCG,11/30/2020,C&M-PMS DES Learn Dsblty Hlth Chk,PRC DELEGATED CO-COMMISSIONING,CLOVER GROUP PRACTICE,34513150,"2,520.00",LEARNP,S9 4QH
Department of Health,NHS Sheffield CCG,11/30/2020,C&M-PMS Out of Hours Opt Outs,PRC DELEGATED CO-COMMISSIONING,CLOVER GROUP PRACTICE,34513150,23.51,APMOOH,S9 4QH
Department of Health,NHS Sheffield CCG,11/30/2020,C&M-PMS PCN DES Participation,PRC DELEGATED CO-COMMISSIONING,CLOVER GROUP PRACTICE,34513150,"2,482.45",PARTIP,S9 4QH
Department of Health,NHS Sheffield CCG,11/30/2020,C&M-PMS QOF Aspiration,PRC DELEGATED CO-COMMISSIONING,CLOVER GROUP PRACTICE,34513150,"11,362.38",QUASPP,S9 4QH
Department of Health,NHS Sheffield CCG,11/30/2020,Voids and Subsidies,PRC DELEGATED CO-COMMISSIONING,COMMUNITY HEALTH PARTNERSHIPS LTD,34458398,"37,796.72",,M1 5AN
Department of Health,NHS Sheffield CCG,11/30/2020,Voids and Subsidies,RECHARGES NHS PROPERTY SERVICES LTD,COMMUNITY HEALTH PARTNERSHIPS LTD,34458398,"98,041.05",https://nww.einvoice-prod.sbs.nhs.uk:8179/invoicepdf/13d32f90-0ff4-5a10-b9af-f1080eba922b,M1 5AN
Department of Health,NHS Sheffield CCG,11/30/2020,Voids and Subsidies,PRC DELEGATED CO-COMMISSIONING,COMMUNITY HEALTH PARTNERSHIPS LTD,34768528,"37,796.72",https://nww.einvoice-prod.sbs.nhs.uk:8179/invoicepdf/ba9f6029-7f2d-5196-8f73-416d5f952c66,M1 5AN
Department of Health,NHS Sheffield CCG,11/30/2020,Voids and Subsidies,RECHARGES NHS PROPERTY SERVICES LTD,COMMUNITY HEALTH PARTNERSHIPS LTD,34768528,"98,041.05",,M1 5AN
Department of Health,NHS Sheffield CCG,11/30/2020,Cont Care-Physical Disab (<65),CHC ADULT FULLY FUNDED,COUNTRY COURT CARE LTD,34535696,"31,776.94",CHC SCHEDULE NOVEMBER 2020 - Abbey Grange Nursing Home (Country Court Care),S5 6UU
Department of Health,NHS Sheffield CCG,11/30/2020,C&M-GMS Cost of Drugs -Prescribing,LOCAL ENHANCED SERVICES,CROOKES PRACTICE,34717746,"4,865.13",DRGP,S10 1GN
Department of Health,NHS Sheffield CCG,11/30/2020,C&M-GMS DES Learn Dsblty Hlth Chk,PRC DELEGATED CO-COMMISSIONING,CROOKES PRACTICE,34717746,840.00,LEARNG,S10 1GN
Department of Health,NHS Sheffield CCG,11/30/2020,C&M-GMS Global Sum,PRC DELEGATED CO-COMMISSIONING,CROOKES PRACTICE,34717746,"54,947.81",GSUMG,S10 1GN
Department of Health,NHS Sheffield CCG,11/30/2020,C&M-GMS PCN DES Participation,PRC DELEGATED CO-COMMISSIONING,CROOKES PRACTICE,34717746,"2,142.02",PARTIG,S10 1GN
Department of Health,NHS Sheffield CCG,11/30/2020,C&M-GMS PCO Other,PRC DELEGATED CO-COMMISSIONING,CROOKES PRACTICE,34717746,527.70,CQCRG,S10 1GN
Department of Health,NHS Sheffield CCG,11/30/2020,C&M-GMS Prem Notional Rent,PRC DELEGATED CO-COMMISSIONING,CROOKES PRACTICE,34717746,"3,874.67",NRENT,S10 1GN
Department of Health,NHS Sheffield CCG,11/30/2020,C&M-GMS Prem Rates,PRC DELEGATED CO-COMMISSIONING,CROOKES PRACTICE,34717746,"1,534.00",RANDR,S10 1GN
Department of Health,NHS Sheffield CCG,11/30/2020,C&M-GMS Prof Fees Prescribing,PRC DELEGATED CO-COMMISSIONING,CROOKES PRACTICE,34717746,"1,057.07",DRGPPF,S10 1GN
Department of Health,NHS Sheffield CCG,11/30/2020,C&M-GMS QOF Aspiration,PRC DELEGATED CO-COMMISSIONING,CROOKES PRACTICE,34717746,"4,910.43",QUASPG,S10 1GN
Department of Health,NHS Sheffield CCG,11/30/2020,C&M-GMS IT Comm Servs -GP Practices,PRIMARY CARE IT,DAISY COMMUNICATIONS LTD,34615251,"52,132.80",,BB9 5SR
Department of Health,NHS Sheffield CCG,11/30/2020,C&M-GMS IT Comm Servs -GP Practices,PRIMARY CARE IT,DAISY CORPORATE SERVICES TRADING LTD,34634666,"39,534.84",,BB9 5SR
Department of Health,NHS Sheffield CCG,11/30/2020,C&M-GMS IT Comm Servs -GP Practices,PRIMARY CARE IT,DAISY CORPORATE SERVICES TRADING LTD,34738025,"49,052.47",,BB9 5SR
Department of Health,NHS Sheffield CCG,11/30/2020,C&M-GMS IT Comm Servs -GP Practices,PRIMARY CARE IT,DAISY CORPORATE SERVICES TRADING LTD,34738027,"49,052.47",,BB9 5SR
Department of Health,NHS Sheffield CCG,11/30/2020,C&M-PMS Contract Value,PRC DELEGATED CO-COMMISSIONING,DEEPCAR MEDICAL CENTRE,34513152,"42,020.72",BABALP,S36 2RA
Department of Health,NHS Sheffield CCG,11/30/2020,C&M-PMS Funding Differential Review,PRC DELEGATED CO-COMMISSIONING,DEEPCAR MEDICAL CENTRE,34513152,722.88,ZFUNFP,S36 2RA
Department of Health,NHS Sheffield CCG,11/30/2020,C&M-PMS Out of Hours Opt Outs,PRC DELEGATED CO-COMMISSIONING,DEEPCAR MEDICAL CENTRE,34513152,25.16,APMOOH,S36 2RA
Department of Health,NHS Sheffield CCG,11/30/2020,C&M-PMS PCN DES Participation,PRC DELEGATED CO-COMMISSIONING,DEEPCAR MEDICAL CENTRE,34513152,"1,581.53",PARTIP,S36 2RA
Department of Health,NHS Sheffield CCG,11/30/2020,C&M-PMS Prem Healthcentre Rent,PRC DELEGATED CO-COMMISSIONING,DEEPCAR MEDICAL CENTRE,34513152,"30,655.23",HEALTH,S36 2RA
Department of Health,NHS Sheffield CCG,11/30/2020,C&M-PMS QOF Aspiration,PRC DELEGATED CO-COMMISSIONING,DEEPCAR MEDICAL CENTRE,34513152,"4,079.29",QUASPP,S36 2RA
Department of Health,NHS Sheffield CCG,11/30/2020,C&M-GMS IT Comm Servs -GP Practices,PRIMARY CARE IT,DELL CORPORATION LTD,34637909,"29,950.00",Latitude 5310 CTO Base. Quote reference number 107112800,RG12 1LF
Department of Health,NHS Sheffield CCG,11/30/2020,C&M-GMS IT Comm Servs -GP Practices,PRIMARY CARE IT,DELL CORPORATION LTD,34637909,"5,990.00",https://nww.einvoice-prod.sbs.nhs.uk:8179/invoicepdf/84161046-8aa7-5b56-9622-d8481ced25a4,RG12 1LF
Department of Health,NHS Sheffield CCG,11/30/2020,C&M-GMS IT Comm Servs -GP Practices,PRIMARY CARE IT,DELL CORPORATION LTD,34655970,"1,895.00",Dell Pro Briefcase 14 (PO1420C),RG12 1LF
Department of Health,NHS Sheffield CCG,11/30/2020,C&M-GMS IT Comm Servs -GP Practices,PRIMARY CARE IT,DELL CORPORATION LTD,34655970,"29,950.00",Latitude 5310 CTO Base. Quote reference number 107112800,RG12 1LF
Department of Health,NHS Sheffield CCG,11/30/2020,C&M-GMS IT Comm Servs -GP Practices,PRIMARY CARE IT,DELL CORPORATION LTD,34655970,"6,369.00",https://nww.einvoice-prod.sbs.nhs.uk:8179/invoicepdf/81991fea-2ae1-57dc-bbc3-f9587122b05e,RG12 1LF
Department of Health,NHS Sheffield CCG,11/30/2020,C&M-GMS DES Extended Hours Access,PRC DELEGATED CO-COMMISSIONING,DEVONSHIRE GREEN MEDICAL CENTRE,34717752,"6,851.87",EXTHDG,S3 7SF
Department of Health,NHS Sheffield CCG,11/30/2020,C&M-GMS Global Sum,PRC DELEGATED CO-COMMISSIONING,DEVONSHIRE GREEN MEDICAL CENTRE,34717752,"48,764.06",GSUMG,S3 7SF
Department of Health,NHS Sheffield CCG,11/30/2020,C&M-GMS PCN DES Participation,PRC DELEGATED CO-COMMISSIONING,DEVONSHIRE GREEN MEDICAL CENTRE,34717752,"1,872.01",PARTIG,S3 7SF
Department of Health,NHS Sheffield CCG,11/30/2020,C&M-GMS Prem Notional Rent,PRC DELEGATED CO-COMMISSIONING,DEVONSHIRE GREEN MEDICAL CENTRE,34717752,"5,987.50",NRENT,S3 7SF
Department of Health,NHS Sheffield CCG,11/30/2020,C&M-GMS Prem Rates,PRC DELEGATED CO-COMMISSIONING,DEVONSHIRE GREEN MEDICAL CENTRE,34717752,"1,385.00",RANDR,S3 7SF
Department of Health,NHS Sheffield CCG,11/30/2020,C&M-GMS QOF Aspiration,PRC DELEGATED CO-COMMISSIONING,DEVONSHIRE GREEN MEDICAL CENTRE,34717752,"4,846.82",QUASPG,S3 7SF
Department of Health,NHS Sheffield CCG,11/30/2020,Hcare Srv Rec Fdtn Trust-Contract Baseline,ACUTE COMMISSIONING,DONCASTER AND BASSETLAW HOSPITALS NHS FOUNDATION TRUST,34578601,"79,729.44",,WF3 1WE
Department of Health,NHS Sheffield CCG,11/30/2020,C&M-PMS Contract Value,PRC DELEGATED CO-COMMISSIONING,DOVERCOURT SURGERY,34513154,"75,292.54",BABALP,S2 5FX
Department of Health,NHS Sheffield CCG,11/30/2020,C&M-PMS DES Minor Surgery,PRC DELEGATED CO-COMMISSIONING,DOVERCOURT SURGERY,34513154,"1,520.00",DEMSUP,S2 5FX
Department of Health,NHS Sheffield CCG,11/30/2020,C&M-PMS Funding Differential Review,PRC DELEGATED CO-COMMISSIONING,DOVERCOURT SURGERY,34513154,"1,158.87",ZFUNFP,S2 5FX
Department of Health,NHS Sheffield CCG,11/30/2020,C&M-PMS Out of Hours Opt Outs,PRC DELEGATED CO-COMMISSIONING,DOVERCOURT SURGERY,34513154,9.88,APMOOH,S2 5FX
Department of Health,NHS Sheffield CCG,11/30/2020,C&M-PMS PCN DES Participation,PRC DELEGATED CO-COMMISSIONING,DOVERCOURT SURGERY,34513154,"2,813.81",PARTIP,S2 5FX
Department of Health,NHS Sheffield CCG,11/30/2020,C&M-PMS PCO Other,PRC DELEGATED CO-COMMISSIONING,DOVERCOURT SURGERY,34513154,542.80,CQCRP,S2 5FX
Department of Health,NHS Sheffield CCG,11/30/2020,C&M-PMS Prem Actual Rent,PRC DELEGATED CO-COMMISSIONING,DOVERCOURT SURGERY,34513154,"12,400.00",RENT,S2 5FX
Department of Health,NHS Sheffield CCG,11/30/2020,C&M-PMS Prem Notional Rent,PRC DELEGATED CO-COMMISSIONING,DOVERCOURT SURGERY,34513154,"1,708.33",NRENT,S2 5FX
Department of Health,NHS Sheffield CCG,11/30/2020,C&M-PMS QOF Aspiration,PRC DELEGATED CO-COMMISSIONING,DOVERCOURT SURGERY,34513154,"7,547.35",QUASPP,S2 5FX
Department of Health,NHS Sheffield CCG,11/30/2020,C&M-PMS Contract Value,PRC DELEGATED CO-COMMISSIONING,DR MEHROTRA & PARTNER,34513156,"25,077.95",BABALP,S9 5DH
Department of Health,NHS Sheffield CCG,11/30/2020,C&M-PMS Funding Differential Review,PRC DELEGATED CO-COMMISSIONING,DR MEHROTRA & PARTNER,34513156,520.47,ZFUNFP,S9 5DH
Department of Health,NHS Sheffield CCG,11/30/2020,C&M-PMS PCN DES Participation,PRC DELEGATED CO-COMMISSIONING,DR MEHROTRA & PARTNER,34513156,945.10,PARTIP,S9 5DH
Department of Health,NHS Sheffield CCG,11/30/2020,C&M-PMS PCO Other,PRC DELEGATED CO-COMMISSIONING,DR MEHROTRA & PARTNER,34513156,226.20,CQCRP,S9 5DH
Department of Health,NHS Sheffield CCG,11/30/2020,C&M-PMS Prem Notional Rent,PRC DELEGATED CO-COMMISSIONING,DR MEHROTRA & PARTNER,34513156,"5,157.29",NRENT,S9 5DH
Department of Health,NHS Sheffield CCG,11/30/2020,C&M-PMS Prem Rates,PRC DELEGATED CO-COMMISSIONING,DR MEHROTRA & PARTNER,34513156,"1,741.00",RANDRP,S9 5DH
Department of Health,NHS Sheffield CCG,11/30/2020,C&M-PMS QOF Aspiration,PRC DELEGATED CO-COMMISSIONING,DR MEHROTRA & PARTNER,34513156,"2,581.66",QUASPP,S9 5DH
Department of Health,NHS Sheffield CCG,11/30/2020,C&M-PMS Contract Value,PRC DELEGATED CO-COMMISSIONING,DR MILNER & PARTNERS,34513158,"77,922.06",BABALP,S6 4JQ
Department of Health,NHS Sheffield CCG,11/30/2020,C&M-PMS DES Minor Surgery,PRC DELEGATED CO-COMMISSIONING,DR MILNER & PARTNERS,34513158,840.00,DEMSUP,S6 4JQ
Department of Health,NHS Sheffield CCG,11/30/2020,C&M-PMS Funding Differential Review,PRC DELEGATED CO-COMMISSIONING,DR MILNER & PARTNERS,34513158,"1,377.22",ZFUNFP,S6 4JQ
Department of Health,NHS Sheffield CCG,11/30/2020,C&M-PMS PCN DES Participation,PRC DELEGATED CO-COMMISSIONING,DR MILNER & PARTNERS,34513158,"2,907.56",PARTIP,S6 4JQ
Department of Health,NHS Sheffield CCG,11/30/2020,C&M-PMS Prem Actual Rent,PRC DELEGATED CO-COMMISSIONING,DR MILNER & PARTNERS,34513158,"11,382.00",RENT,S6 4JQ
Department of Health,NHS Sheffield CCG,11/30/2020,C&M-PMS Prem Notional Rent,PRC DELEGATED CO-COMMISSIONING,DR MILNER & PARTNERS,34513158,"4,462.42",NRENT,S6 4JQ
Department of Health,NHS Sheffield CCG,11/30/2020,C&M-PMS Prem Rates,PRC DELEGATED CO-COMMISSIONING,DR MILNER & PARTNERS,34513158,"2,766.00",RANDRP,S6 4JQ
Department of Health,NHS Sheffield CCG,11/30/2020,C&M-PMS QOF Aspiration,PRC DELEGATED CO-COMMISSIONING,DR MILNER & PARTNERS,34513158,"6,594.77",QUASPP,S6 4JQ
Department of Health,NHS Sheffield CCG,11/30/2020,C&M-GMS Cost of Drugs -Prescribing,LOCAL ENHANCED SERVICES,DUKE MEDICAL CENTRE,34717773,"6,842.68",DRGP,S2 2TD
Department of Health,NHS Sheffield CCG,11/30/2020,C&M-GMS Global Sum,PRC DELEGATED CO-COMMISSIONING,DUKE MEDICAL CENTRE,34717773,"62,202.34",GSUMG,S2 2TD
Department of Health,NHS Sheffield CCG,11/30/2020,C&M-GMS PCN DES Participation,PRC DELEGATED CO-COMMISSIONING,DUKE MEDICAL CENTRE,34717773,"2,313.14",PARTIG,S2 2TD
Department of Health,NHS Sheffield CCG,11/30/2020,C&M-GMS PCO Locum Sickness,PRC DELEGATED CO-COMMISSIONING,DUKE MEDICAL CENTRE,34717773,"17,364.46",LOCSIG,S2 2TD
Department of Health,NHS Sheffield CCG,11/30/2020,C&M-GMS Prem Notional Rent,PRC DELEGATED CO-COMMISSIONING,DUKE MEDICAL CENTRE,34717773,"5,721.67",NRENT,S2 2TD
Department of Health,NHS Sheffield CCG,11/30/2020,C&M-GMS Prof Fees Prescribing,PRC DELEGATED CO-COMMISSIONING,DUKE MEDICAL CENTRE,34717773,"1,404.83",DRGPPF,S2 2TD
Department of Health,NHS Sheffield CCG,11/30/2020,C&M-GMS QOF Aspiration,PRC DELEGATED CO-COMMISSIONING,DUKE MEDICAL CENTRE,34717773,"5,286.81",QUASPG,S2 2TD
Department of Health,NHS Sheffield CCG,11/30/2020,C&M-PMS Contract Value,PRC DELEGATED CO-COMMISSIONING,DUNNINC ROAD SURGERY,34513160,"21,770.95",BABALP,S5 0AE
Department of Health,NHS Sheffield CCG,11/30/2020,C&M-PMS Funding Differential Review,PRC DELEGATED CO-COMMISSIONING,DUNNINC ROAD SURGERY,34513160,506.77,ZFUNFP,S5 0AE
Department of Health,NHS Sheffield CCG,11/30/2020,C&M-PMS PCN DES Participation,PRC DELEGATED CO-COMMISSIONING,DUNNINC ROAD SURGERY,34513160,817.62,PARTIP,S5 0AE
Department of Health,NHS Sheffield CCG,11/30/2020,C&M-PMS Prem Notional Rent,PRC DELEGATED CO-COMMISSIONING,DUNNINC ROAD SURGERY,34513160,"1,695.83",NRENT,S5 0AE
Department of Health,NHS Sheffield CCG,11/30/2020,C&M-PMS QOF Aspiration,PRC DELEGATED CO-COMMISSIONING,DUNNINC ROAD SURGERY,34513160,"1,748.41",QUASPP,S5 0AE
Department of Health,NHS Sheffield CCG,11/30/2020,C&M-PMS Contract Value,PRC DELEGATED CO-COMMISSIONING,DYKES HALL MEDICAL CENTRE,34513161,-564.76,BABALP,S6 4GQ
Department of Health,NHS Sheffield CCG,11/30/2020,C&M-PMS DES Extended Hours Access,PRC DELEGATED CO-COMMISSIONING,DYKES HALL MEDICAL CENTRE,34513161,"-4,338.04",EXTHDP,S6 4GQ
Department of Health,NHS Sheffield CCG,11/30/2020,C&M-PMS GP Statutory Levy,PRC DELEGATED CO-COMMISSIONING,DYKES HALL MEDICAL CENTRE,34513161,-331.24,STATL,S6 4GQ
Department of Health,NHS Sheffield CCG,11/30/2020,C&M-PMS Out of Hours Opt Outs,PRC DELEGATED CO-COMMISSIONING,DYKES HALL MEDICAL CENTRE,34513161,"-3,434.95",APMOOH,S6 4GQ
Department of Health,NHS Sheffield CCG,11/30/2020,C&M-PMS PCN DES Clinical Director,PRC DELEGATED CO-COMMISSIONING,DYKES HALL MEDICAL CENTRE,34513161,"-2,160.04",CLINDP,S6 4GQ
Department of Health,NHS Sheffield CCG,11/30/2020,C&M-PMS PCN DES PCN support,LOCAL ENHANCED SERVICES,DYKES HALL MEDICAL CENTRE,34513161,"-4,487.63",PCNSUP,S6 4GQ
Department of Health,NHS Sheffield CCG,11/30/2020,C&M-PMS PCN DES Participation,PRC DELEGATED CO-COMMISSIONING,DYKES HALL MEDICAL CENTRE,34513161,"-1,355.09",PARTIP,S6 4GQ
Department of Health,NHS Sheffield CCG,11/30/2020,C&M-PMS Contract Value,PRC DELEGATED CO-COMMISSIONING,DYKES HALL MEDICAL CENTRE,34513162,"72,160.96",BABALP,S6 4GQ
Department of Health,NHS Sheffield CCG,11/30/2020,C&M-PMS DES Extended Hours Access,PRC DELEGATED CO-COMMISSIONING,DYKES HALL MEDICAL CENTRE,34513162,"4,338.04",EXTHDP,S6 4GQ
Department of Health,NHS Sheffield CCG,11/30/2020,C&M-PMS DES Learn Dsblty Hlth Chk,PRC DELEGATED CO-COMMISSIONING,DYKES HALL MEDICAL CENTRE,34513162,140.00,LEARNP,S6 4GQ
Department of Health,NHS Sheffield CCG,11/30/2020,C&M-PMS DES Minor Surgery,PRC DELEGATED CO-COMMISSIONING,DYKES HALL MEDICAL CENTRE,34513162,480.00,DEMSUP,S6 4GQ
Department of Health,NHS Sheffield CCG,11/30/2020,C&M-PMS Funding Differential Review,PRC DELEGATED CO-COMMISSIONING,DYKES HALL MEDICAL CENTRE,34513162,"1,473.36",ZFUNFP,S6 4GQ
Department of Health,NHS Sheffield CCG,11/30/2020,C&M-PMS Out of Hours Opt Outs,PRC DELEGATED CO-COMMISSIONING,DYKES HALL MEDICAL CENTRE,34513162,26.43,APMOOH,S6 4GQ
Department of Health,NHS Sheffield CCG,11/30/2020,C&M-PMS PCN DES Clinical Director,PRC DELEGATED CO-COMMISSIONING,DYKES HALL MEDICAL CENTRE,34513162,"2,160.04",CLINDP,S6 4GQ
Department of Health,NHS Sheffield CCG,11/30/2020,C&M-PMS PCN DES PCN support,LOCAL ENHANCED SERVICES,DYKES HALL MEDICAL CENTRE,34513162,"4,487.63",PCNSUP,S6 4GQ
Department of Health,NHS Sheffield CCG,11/30/2020,C&M-PMS PCN DES Participation,PRC DELEGATED CO-COMMISSIONING,DYKES HALL MEDICAL CENTRE,34513162,"2,712.49",PARTIP,S6 4GQ
Department of Health,NHS Sheffield CCG,11/30/2020,C&M-PMS Prem Notional Rent,PRC DELEGATED CO-COMMISSIONING,DYKES HALL MEDICAL CENTRE,34513162,"5,377.08",NRENT,S6 4GQ
Department of Health,NHS Sheffield CCG,11/30/2020,C&M-PMS Prem Rates,PRC DELEGATED CO-COMMISSIONING,DYKES HALL MEDICAL CENTRE,34513162,"1,366.00",RANDRP,S6 4GQ
Department of Health,NHS Sheffield CCG,11/30/2020,C&M-PMS QOF Aspiration,PRC DELEGATED CO-COMMISSIONING,DYKES HALL MEDICAL CENTRE,34513162,"8,087.38",QUASPP,S6 4GQ
Department of Health,NHS Sheffield CCG,11/30/2020,C&M-PMS Contract Value,PRC DELEGATED CO-COMMISSIONING,EAST BANK MEDICAL CENTRE,34513164,"50,029.48",BABALP,S2 2AG
Department of Health,NHS Sheffield CCG,11/30/2020,C&M-PMS DES Learn Dsblty Hlth Chk,PRC DELEGATED CO-COMMISSIONING,EAST BANK MEDICAL CENTRE,34513164,"1,400.00",LEARNP,S2 2AG
Department of Health,NHS Sheffield CCG,11/30/2020,C&M-PMS Funding Differential Review,PRC DELEGATED CO-COMMISSIONING,EAST BANK MEDICAL CENTRE,34513164,771.92,ZFUNFP,S2 2AG
Department of Health,NHS Sheffield CCG,11/30/2020,C&M-PMS PCN DES Participation,PRC DELEGATED CO-COMMISSIONING,EAST BANK MEDICAL CENTRE,34513164,"1,875.96",PARTIP,S2 2AG
Department of Health,NHS Sheffield CCG,11/30/2020,C&M-PMS Prem Notional Rent,PRC DELEGATED CO-COMMISSIONING,EAST BANK MEDICAL CENTRE,34513164,"10,583.33",NRENT,S2 2AG
Department of Health,NHS Sheffield CCG,11/30/2020,C&M-PMS Prem Rates,PRC DELEGATED CO-COMMISSIONING,EAST BANK MEDICAL CENTRE,34513164,"2,944.00",RANDRP,S2 2AG
Department of Health,NHS Sheffield CCG,11/30/2020,C&M-PMS QOF Aspiration,PRC DELEGATED CO-COMMISSIONING,EAST BANK MEDICAL CENTRE,34513164,"5,136.41",QUASPP,S2 2AG
Department of Health,NHS Sheffield CCG,11/30/2020,C&M-GMS Cost of Drugs -Prescribing,LOCAL ENHANCED SERVICES,ECCLESFIELD GROUP PRACTICE,34717761,"1,781.91",DRGP,S35 9XQ
Department of Health,NHS Sheffield CCG,11/30/2020,C&M-GMS DES Extended Hours Access,PRC DELEGATED CO-COMMISSIONING,ECCLESFIELD GROUP PRACTICE,34717761,"10,328.70",EXTHDG,S35 9XQ
Department of Health,NHS Sheffield CCG,11/30/2020,C&M-GMS DES Learn Dsblty Hlth Chk,PRC DELEGATED CO-COMMISSIONING,ECCLESFIELD GROUP PRACTICE,34717761,"3,220.00",LEARNG,S35 9XQ
Department of Health,NHS Sheffield CCG,11/30/2020,C&M-GMS Global Sum,PRC DELEGATED CO-COMMISSIONING,ECCLESFIELD GROUP PRACTICE,34717761,"73,576.35",GSUMG,S35 9XQ
Department of Health,NHS Sheffield CCG,11/30/2020,C&M-GMS PCN DES Clinical Director,PRC DELEGATED CO-COMMISSIONING,ECCLESFIELD GROUP PRACTICE,34717761,"5,132.32",CLINDG,S35 9XQ
Department of Health,NHS Sheffield CCG,11/30/2020,C&M-GMS PCN DES PCN support,LOCAL ENHANCED SERVICES,ECCLESFIELD GROUP PRACTICE,34717761,"10,677.50",PCNSUG,S35 9XQ
Department of Health,NHS Sheffield CCG,11/30/2020,C&M-GMS PCN DES Participation,PRC DELEGATED CO-COMMISSIONING,ECCLESFIELD GROUP PRACTICE,34717761,"2,879.35",PARTIG,S35 9XQ
Department of Health,NHS Sheffield CCG,11/30/2020,C&M-GMS Prem Notional Rent,PRC DELEGATED CO-COMMISSIONING,ECCLESFIELD GROUP PRACTICE,34717761,"6,805.42",NRENT,S35 9XQ
Department of Health,NHS Sheffield CCG,11/30/2020,C&M-GMS Prem Rates,PRC DELEGATED CO-COMMISSIONING,ECCLESFIELD GROUP PRACTICE,34717761,551.00,RANDR,S35 9XQ
Department of Health,NHS Sheffield CCG,11/30/2020,C&M-GMS Prem Water Rates,PRC DELEGATED CO-COMMISSIONING,ECCLESFIELD GROUP PRACTICE,34717761,236.00,RAMW,S35 9XQ
Department of Health,NHS Sheffield CCG,11/30/2020,C&M-GMS Prof Fees Prescribing,PRC DELEGATED CO-COMMISSIONING,ECCLESFIELD GROUP PRACTICE,34717761,223.40,DRGPPF,S35 9XQ
Department of Health,NHS Sheffield CCG,11/30/2020,C&M-GMS QOF Aspiration,PRC DELEGATED CO-COMMISSIONING,ECCLESFIELD GROUP PRACTICE,34717761,"9,221.39",QUASPG,S35 9XQ
Department of Health,NHS Sheffield CCG,11/30/2020,C&M-GMS Cost of Drugs -Prescribing,LOCAL ENHANCED SERVICES,ELM LANE SURGERY,34717769,"6,159.59",DRGP,S5 7TW
Department of Health,NHS Sheffield CCG,11/30/2020,C&M-GMS Global Sum,PRC DELEGATED CO-COMMISSIONING,ELM LANE SURGERY,34717769,"43,452.53",GSUMG,S5 7TW
Department of Health,NHS Sheffield CCG,11/30/2020,C&M-GMS PCN DES Participation,PRC DELEGATED CO-COMMISSIONING,ELM LANE SURGERY,34717769,"1,703.93",PARTIG,S5 7TW
Department of Health,NHS Sheffield CCG,11/30/2020,C&M-GMS Prem Notional Rent,PRC DELEGATED CO-COMMISSIONING,ELM LANE SURGERY,34717769,"5,343.00",NRENT,S5 7TW
Department of Health,NHS Sheffield CCG,11/30/2020,C&M-GMS Prem Rates,PRC DELEGATED CO-COMMISSIONING,ELM LANE SURGERY,34717769,"1,527.00",RANDR,S5 7TW
Department of Health,NHS Sheffield CCG,11/30/2020,C&M-GMS Prof Fees Prescribing,PRC DELEGATED CO-COMMISSIONING,ELM LANE SURGERY,34717769,"1,172.22",DRGPPF,S5 7TW
Department of Health,NHS Sheffield CCG,11/30/2020,C&M-GMS QOF Aspiration,PRC DELEGATED CO-COMMISSIONING,ELM LANE SURGERY,34717769,"4,787.76",QUASPG,S5 7TW
Department of Health,NHS Sheffield CCG,11/30/2020,Cont Care-Physical Disab (<65),CHC ADULT FULLY FUNDED,FAIRWINDS HEALTH CARE LTD,34535703,"39,011.53",CHC SCHEDULE NOVEMBER 2020 - Fairwinds Nursing Home,S61 1AJ
Department of Health,NHS Sheffield CCG,11/30/2020,C&M-PMS Contract Value,PRC DELEGATED CO-COMMISSIONING,FALKLAND HOUSE,34513168,"26,507.00",BABALP,S11 7PL
Department of Health,NHS Sheffield CCG,11/30/2020,C&M-PMS DES Minor Surgery,PRC DELEGATED CO-COMMISSIONING,FALKLAND HOUSE,34513168,480.00,DEMSUP,S11 7PL
Department of Health,NHS Sheffield CCG,11/30/2020,C&M-PMS Funding Differential Review,PRC DELEGATED CO-COMMISSIONING,FALKLAND HOUSE,34513168,358.89,ZFUNFP,S11 7PL
Department of Health,NHS Sheffield CCG,11/30/2020,C&M-PMS Out of Hours Opt Outs,PRC DELEGATED CO-COMMISSIONING,FALKLAND HOUSE,34513168,8.04,APMOOH,S11 7PL
Department of Health,NHS Sheffield CCG,11/30/2020,C&M-PMS PCN DES Participation,PRC DELEGATED CO-COMMISSIONING,FALKLAND HOUSE,34513168,994.89,PARTIP,S11 7PL
Department of Health,NHS Sheffield CCG,11/30/2020,C&M-PMS PCO Other,PRC DELEGATED CO-COMMISSIONING,FALKLAND HOUSE,34513168,276.50,CQCRP,S11 7PL
Department of Health,NHS Sheffield CCG,11/30/2020,C&M-PMS Prem Notional Rent,PRC DELEGATED CO-COMMISSIONING,FALKLAND HOUSE,34513168,"1,866.67",NRENT,S11 7PL
Department of Health,NHS Sheffield CCG,11/30/2020,C&M-PMS Prem Rates,PRC DELEGATED CO-COMMISSIONING,FALKLAND HOUSE,34513168,786.00,RANDRP,S11 7PL
Department of Health,NHS Sheffield CCG,11/30/2020,C&M-PMS Prem Water Rates,PRC DELEGATED CO-COMMISSIONING,FALKLAND HOUSE,34513168,91.88,RAMWP,S11 7PL
Department of Health,NHS Sheffield CCG,11/30/2020,C&M-PMS QOF Aspiration,PRC DELEGATED CO-COMMISSIONING,FALKLAND HOUSE,34513168,"2,962.47",QUASPP,S11 7PL
Department of Health,NHS Sheffield CCG,11/30/2020,C&M-GMS Cost of Drugs -Prescribing,LOCAL ENHANCED SERVICES,FAR LANE MEDICAL CENTRE,34717789,"14,570.62",DRGP,S6 4FA
Department of Health,NHS Sheffield CCG,11/30/2020,C&M-GMS Global Sum,PRC DELEGATED CO-COMMISSIONING,FAR LANE MEDICAL CENTRE,34717789,"57,915.48",GSUMG,S6 4FA
Department of Health,NHS Sheffield CCG,11/30/2020,C&M-GMS PCN DES Participation,PRC DELEGATED CO-COMMISSIONING,FAR LANE MEDICAL CENTRE,34717789,"2,277.76",PARTIG,S6 4FA
Department of Health,NHS Sheffield CCG,11/30/2020,C&M-GMS PCO Other,PRC DELEGATED CO-COMMISSIONING,FAR LANE MEDICAL CENTRE,34717789,460.10,CQCRG,S6 4FA
Department of Health,NHS Sheffield CCG,11/30/2020,C&M-GMS Prem Notional Rent,PRC DELEGATED CO-COMMISSIONING,FAR LANE MEDICAL CENTRE,34717789,"3,504.17",NRENT,S6 4FA
Department of Health,NHS Sheffield CCG,11/30/2020,C&M-GMS Prem Rates,PRC DELEGATED CO-COMMISSIONING,FAR LANE MEDICAL CENTRE,34717789,"1,277.00",RANDR,S6 4FA
Department of Health,NHS Sheffield CCG,11/30/2020,C&M-GMS Prem Water Rates,PRC DELEGATED CO-COMMISSIONING,FAR LANE MEDICAL CENTRE,34717789,105.99,RAMW,S6 4FA
Department of Health,NHS Sheffield CCG,11/30/2020,C&M-GMS Prof Fees Prescribing,PRC DELEGATED CO-COMMISSIONING,FAR LANE MEDICAL CENTRE,34717789,"3,103.82",DRGPPF,S6 4FA
Department of Health,NHS Sheffield CCG,11/30/2020,C&M-GMS QOF Aspiration,PRC DELEGATED CO-COMMISSIONING,FAR LANE MEDICAL CENTRE,34717789,"6,055.38",QUASPG,S6 4FA
Department of Health,NHS Sheffield CCG,11/30/2020,C&M-PMS Contract Value,PRC DELEGATED CO-COMMISSIONING,FIRTH PARK SURGERY,34513166,"77,433.06",BABALP,S5 6HH
Department of Health,NHS Sheffield CCG,11/30/2020,C&M-PMS Out of Hours Opt Outs,PRC DELEGATED CO-COMMISSIONING,FIRTH PARK SURGERY,34513166,7.50,APMOOH,S5 6HH
Department of Health,NHS Sheffield CCG,11/30/2020,C&M-PMS PCN DES Participation,PRC DELEGATED CO-COMMISSIONING,FIRTH PARK SURGERY,34513166,"2,909.44",PARTIP,S5 6HH
Department of Health,NHS Sheffield CCG,11/30/2020,C&M-PMS Prem Notional Rent,PRC DELEGATED CO-COMMISSIONING,FIRTH PARK SURGERY,34513166,"4,500.00",NRENT,S5 6HH
Department of Health,NHS Sheffield CCG,11/30/2020,C&M-PMS Prem Rates,PRC DELEGATED CO-COMMISSIONING,FIRTH PARK SURGERY,34513166,"1,844.00",RANDRP,S5 6HH
Department of Health,NHS Sheffield CCG,11/30/2020,C&M-PMS QOF Aspiration,PRC DELEGATED CO-COMMISSIONING,FIRTH PARK SURGERY,34513166,"7,425.15",QUASPP,S5 6HH
Department of Health,NHS Sheffield CCG,11/30/2020,C&M-PMS Contract Value,PRC DELEGATED CO-COMMISSIONING,FORGE HEALTH GROUP,34513215,-784.29,BABALP,S3 9DL
Department of Health,NHS Sheffield CCG,11/30/2020,C&M-PMS DES Extended Hours Access,PRC DELEGATED CO-COMMISSIONING,FORGE HEALTH GROUP,34513215,"-6,849.44",EXTHDP,S3 9DL
Department of Health,NHS Sheffield CCG,11/30/2020,C&M-PMS GP Statutory Levy,PRC DELEGATED CO-COMMISSIONING,FORGE HEALTH GROUP,34513215,-516.43,STATL,S3 9DL
Department of Health,NHS Sheffield CCG,11/30/2020,C&M-PMS Out of Hours Opt Outs,PRC DELEGATED CO-COMMISSIONING,FORGE HEALTH GROUP,34513215,"-5,849.43",APMOOH,S3 9DL
Department of Health,NHS Sheffield CCG,11/30/2020,C&M-PMS PCN DES Clinical Director,PRC DELEGATED CO-COMMISSIONING,FORGE HEALTH GROUP,34513215,"-3,410.55",CLINDP,S3 9DL
Department of Health,NHS Sheffield CCG,11/30/2020,C&M-PMS PCN DES PCN support,LOCAL ENHANCED SERVICES,FORGE HEALTH GROUP,34513215,"-7,085.63",PCNSUP,S3 9DL
Department of Health,NHS Sheffield CCG,11/30/2020,C&M-PMS PCN DES Participation,PRC DELEGATED CO-COMMISSIONING,FORGE HEALTH GROUP,34513215,"-2,286.18",PARTIP,S3 9DL
Department of Health,NHS Sheffield CCG,11/30/2020,C&M-PMS Prem Healthcentre Rent,PRC DELEGATED CO-COMMISSIONING,FORGE HEALTH GROUP,34513215,"-7,418.94",HEALTH,S3 9DL
Department of Health,NHS Sheffield CCG,11/30/2020,C&M-PMS Prem Notional Rent,PRC DELEGATED CO-COMMISSIONING,FORGE HEALTH GROUP,34513215,"-1,589.77",NRENT,S3 9DL
Department of Health,NHS Sheffield CCG,11/30/2020,C&M-PMS Contract Value,PRC DELEGATED CO-COMMISSIONING,FORGE HEALTH GROUP,34513216,"123,040.99",BABALP,S3 9DL
Department of Health,NHS Sheffield CCG,11/30/2020,C&M-PMS DES Extended Hours Access,PRC DELEGATED CO-COMMISSIONING,FORGE HEALTH GROUP,34513216,"6,849.44",EXTHDP,S3 9DL
Department of Health,NHS Sheffield CCG,11/30/2020,C&M-PMS DES Learn Dsblty Hlth Chk,PRC DELEGATED CO-COMMISSIONING,FORGE HEALTH GROUP,34513216,840.00,LEARNP,S3 9DL
Department of Health,NHS Sheffield CCG,11/30/2020,C&M-PMS DES Minor Surgery,PRC DELEGATED CO-COMMISSIONING,FORGE HEALTH GROUP,34513216,"1,200.00",DEMSUP,S3 9DL
Department of Health,NHS Sheffield CCG,11/30/2020,C&M-PMS Funding Differential Review,PRC DELEGATED CO-COMMISSIONING,FORGE HEALTH GROUP,34513216,"1,206.61",ZFUNFP,S3 9DL
Department of Health,NHS Sheffield CCG,11/30/2020,C&M-PMS Out of Hours Opt Outs,PRC DELEGATED CO-COMMISSIONING,FORGE HEALTH GROUP,34513216,37.43,APMOOH,S3 9DL
Department of Health,NHS Sheffield CCG,11/30/2020,C&M-PMS PCN DES Clinical Director,PRC DELEGATED CO-COMMISSIONING,FORGE HEALTH GROUP,34513216,"3,410.55",CLINDP,S3 9DL
Department of Health,NHS Sheffield CCG,11/30/2020,C&M-PMS PCN DES PCN support,LOCAL ENHANCED SERVICES,FORGE HEALTH GROUP,34513216,"7,085.63",PCNSUP,S3 9DL
Department of Health,NHS Sheffield CCG,11/30/2020,C&M-PMS PCN DES Participation,PRC DELEGATED CO-COMMISSIONING,FORGE HEALTH GROUP,34513216,"4,576.26",PARTIP,S3 9DL
Department of Health,NHS Sheffield CCG,11/30/2020,C&M-PMS Prem Healthcentre Rent,PRC DELEGATED CO-COMMISSIONING,FORGE HEALTH GROUP,34513216,"35,472.33",HEALTH,S3 9DL
Department of Health,NHS Sheffield CCG,11/30/2020,C&M-PMS Prem Notional Rent,PRC DELEGATED CO-COMMISSIONING,FORGE HEALTH GROUP,34513216,"20,944.34",NRENT,S3 9DL
Department of Health,NHS Sheffield CCG,11/30/2020,C&M-PMS Prem Rates,PRC DELEGATED CO-COMMISSIONING,FORGE HEALTH GROUP,34513216,"2,370.00",RANDRP,S3 9DL
Department of Health,NHS Sheffield CCG,11/30/2020,C&M-PMS QOF Aspiration,PRC DELEGATED CO-COMMISSIONING,FORGE HEALTH GROUP,34513216,"11,197.01",QUASPP,S3 9DL
Department of Health,NHS Sheffield CCG,11/30/2020,Cont Care-Physical Disab (<65),CHC ADULT FULLY FUNDED,FOUR SEASONS HEALTH CARE LTD,34535698,"25,916.80",CHC SCHEDULE NOVEMBER 2020 - Balmoral Nursing Home (Four Seasons HC),DL1 1RW
Department of Health,NHS Sheffield CCG,11/30/2020,C&M-PMS Contract Value,PRC DELEGATED CO-COMMISSIONING,FOXHILL MEDICAL CENTRE SHEFFIELD,34513214,"52,261.18",BABALP,S6 1GA
Department of Health,NHS Sheffield CCG,11/30/2020,C&M-PMS DES Learn Dsblty Hlth Chk,PRC DELEGATED CO-COMMISSIONING,FOXHILL MEDICAL CENTRE SHEFFIELD,34513214,980.00,LEARNP,S6 1GA
Department of Health,NHS Sheffield CCG,11/30/2020,C&M-PMS DES Minor Surgery,PRC DELEGATED CO-COMMISSIONING,FOXHILL MEDICAL CENTRE SHEFFIELD,34513214,200.00,DEMSUP,S6 1GA
Department of Health,NHS Sheffield CCG,11/30/2020,C&M-PMS Funding Differential Review,PRC DELEGATED CO-COMMISSIONING,FOXHILL MEDICAL CENTRE SHEFFIELD,34513214,"1,157.94",ZFUNFP,S6 1GA
Department of Health,NHS Sheffield CCG,11/30/2020,C&M-PMS Out of Hours Opt Outs,PRC DELEGATED CO-COMMISSIONING,FOXHILL MEDICAL CENTRE SHEFFIELD,34513214,20.41,APMOOH,S6 1GA
Department of Health,NHS Sheffield CCG,11/30/2020,C&M-PMS PCN DES Participation,PRC DELEGATED CO-COMMISSIONING,FOXHILL MEDICAL CENTRE SHEFFIELD,34513214,"1,963.57",PARTIP,S6 1GA
Department of Health,NHS Sheffield CCG,11/30/2020,C&M-PMS PCO Locum Sickness,PRC DELEGATED CO-COMMISSIONING,FOXHILL MEDICAL CENTRE SHEFFIELD,34513214,"14,886.85",SICKS,S6 1GA
Department of Health,NHS Sheffield CCG,11/30/2020,C&M-PMS PCO Other,PRC DELEGATED CO-COMMISSIONING,FOXHILL MEDICAL CENTRE SHEFFIELD,34513214,400.50,CQCRP,S6 1GA
Department of Health,NHS Sheffield CCG,11/30/2020,C&M-PMS Prem Healthcentre Rent,PRC DELEGATED CO-COMMISSIONING,FOXHILL MEDICAL CENTRE SHEFFIELD,34513214,"47,880.58",HEALTH,S6 1GA
Department of Health,NHS Sheffield CCG,11/30/2020,C&M-PMS QOF Aspiration,PRC DELEGATED CO-COMMISSIONING,FOXHILL MEDICAL CENTRE SHEFFIELD,34513214,"5,429.40",QUASPP,S6 1GA
Department of Health,NHS Sheffield CCG,11/30/2020,C&M-PMS Contract Value,PRC DELEGATED CO-COMMISSIONING,GLEADLESS MEDICAL CENTRE,34513170,"70,031.27",BABALP,S14 1PQ
Department of Health,NHS Sheffield CCG,11/30/2020,C&M-PMS DES Minor Surgery,PRC DELEGATED CO-COMMISSIONING,GLEADLESS MEDICAL CENTRE,34513170,40.00,DEMSUP,S14 1PQ
Department of Health,NHS Sheffield CCG,11/30/2020,C&M-PMS Funding Differential Review,PRC DELEGATED CO-COMMISSIONING,GLEADLESS MEDICAL CENTRE,34513170,"1,547.97",ZFUNFP,S14 1PQ
Department of Health,NHS Sheffield CCG,11/30/2020,C&M-PMS Out of Hours Opt Outs,PRC DELEGATED CO-COMMISSIONING,GLEADLESS MEDICAL CENTRE,34513170,33.34,APMOOH,S14 1PQ
Department of Health,NHS Sheffield CCG,11/30/2020,C&M-PMS PCN DES Participation,PRC DELEGATED CO-COMMISSIONING,GLEADLESS MEDICAL CENTRE,34513170,"2,632.76",PARTIP,S14 1PQ
Department of Health,NHS Sheffield CCG,11/30/2020,C&M-PMS PCO Other,PRC DELEGATED CO-COMMISSIONING,GLEADLESS MEDICAL CENTRE,34513170,559.20,CQCRP,S14 1PQ
Department of Health,NHS Sheffield CCG,11/30/2020,C&M-PMS Prem Notional Rent,PRC DELEGATED CO-COMMISSIONING,GLEADLESS MEDICAL CENTRE,34513170,"6,750.00",NRENT,S14 1PQ
Department of Health,NHS Sheffield CCG,11/30/2020,C&M-PMS Prem Rates,PRC DELEGATED CO-COMMISSIONING,GLEADLESS MEDICAL CENTRE,34513170,"1,684.00",RANDRP,S14 1PQ
Department of Health,NHS Sheffield CCG,11/30/2020,C&M-PMS QOF Aspiration,PRC DELEGATED CO-COMMISSIONING,GLEADLESS MEDICAL CENTRE,34513170,"7,390.52",QUASPP,S14 1PQ
Department of Health,NHS Sheffield CCG,11/30/2020,C&M-GMS Cost of Drugs -Prescribing,LOCAL ENHANCED SERVICES,GRENOSIDE SURGERY,34717809,"11,636.01",DRGP,S35 8NX
Department of Health,NHS Sheffield CCG,11/30/2020,C&M-GMS Global Sum,PRC DELEGATED CO-COMMISSIONING,GRENOSIDE SURGERY,34717809,"63,156.45",GSUMG,S35 8NX
Department of Health,NHS Sheffield CCG,11/30/2020,C&M-GMS PCN DES Participation,PRC DELEGATED CO-COMMISSIONING,GRENOSIDE SURGERY,34717809,"2,442.24",PARTIG,S35 8NX
Department of Health,NHS Sheffield CCG,11/30/2020,C&M-GMS PCO Locum Sickness,PRC DELEGATED CO-COMMISSIONING,GRENOSIDE SURGERY,34717809,"1,529.42",LOCSIG,S35 8NX
Department of Health,NHS Sheffield CCG,11/30/2020,C&M-GMS Prem Notional Rent,PRC DELEGATED CO-COMMISSIONING,GRENOSIDE SURGERY,34717809,"8,110.42",NRENT,S35 8NX
Department of Health,NHS Sheffield CCG,11/30/2020,C&M-GMS Prem Rates,PRC DELEGATED CO-COMMISSIONING,GRENOSIDE SURGERY,34717809,"2,109.00",RANDR,S35 8NX
Department of Health,NHS Sheffield CCG,11/30/2020,C&M-GMS Prof Fees Prescribing,PRC DELEGATED CO-COMMISSIONING,GRENOSIDE SURGERY,34717809,"2,080.86",DRGPPF,S35 8NX
Department of Health,NHS Sheffield CCG,11/30/2020,C&M-GMS QOF Aspiration,PRC DELEGATED CO-COMMISSIONING,GRENOSIDE SURGERY,34717809,"5,840.97",QUASPG,S35 8NX
Department of Health,NHS Sheffield CCG,11/30/2020,C&M-GMS Cost of Drugs -Prescribing,LOCAL ENHANCED SERVICES,GREYSTONES MEDICAL CENTRE,34717818,"1,769.62",DRGP,S11 7BJ
Department of Health,NHS Sheffield CCG,11/30/2020,C&M-GMS Global Sum,PRC DELEGATED CO-COMMISSIONING,GREYSTONES MEDICAL CENTRE,34717818,"20,579.57",GSUMG,S11 7BJ
Department of Health,NHS Sheffield CCG,11/30/2020,C&M-GMS PCN DES Participation,PRC DELEGATED CO-COMMISSIONING,GREYSTONES MEDICAL CENTRE,34717818,814.36,PARTIG,S11 7BJ
Department of Health,NHS Sheffield CCG,11/30/2020,C&M-GMS PCO Other,PRC DELEGATED CO-COMMISSIONING,GREYSTONES MEDICAL CENTRE,34717818,264.20,CQCRG,S11 7BJ
Department of Health,NHS Sheffield CCG,11/30/2020,C&M-GMS Prem Notional Rent,PRC DELEGATED CO-COMMISSIONING,GREYSTONES MEDICAL CENTRE,34717818,"2,885.42",NRENT,S11 7BJ
Department of Health,NHS Sheffield CCG,11/30/2020,C&M-GMS Prem Rates,PRC DELEGATED CO-COMMISSIONING,GREYSTONES MEDICAL CENTRE,34717818,707.00,RANDR,S11 7BJ
Department of Health,NHS Sheffield CCG,11/30/2020,C&M-GMS Prof Fees Prescribing,PRC DELEGATED CO-COMMISSIONING,GREYSTONES MEDICAL CENTRE,34717818,333.94,DRGPPF,S11 7BJ
Department of Health,NHS Sheffield CCG,11/30/2020,C&M-GMS QOF Aspiration,PRC DELEGATED CO-COMMISSIONING,GREYSTONES MEDICAL CENTRE,34717818,"2,326.23",QUASPG,S11 7BJ
Department of Health,NHS Sheffield CCG,11/30/2020,C&M-PMS Contract Value,PRC DELEGATED CO-COMMISSIONING,HACKENTHORPE MEDICAL CENTRE,34513172,"49,400.20",BABALP,S12 4LA
Department of Health,NHS Sheffield CCG,11/30/2020,C&M-PMS DES Learn Dsblty Hlth Chk,PRC DELEGATED CO-COMMISSIONING,HACKENTHORPE MEDICAL CENTRE,34513172,420.00,LEARNP,S12 4LA
Department of Health,NHS Sheffield CCG,11/30/2020,C&M-PMS DES Minor Surgery,PRC DELEGATED CO-COMMISSIONING,HACKENTHORPE MEDICAL CENTRE,34513172,440.00,DEMSUP,S12 4LA
Department of Health,NHS Sheffield CCG,11/30/2020,C&M-PMS Funding Differential Review,PRC DELEGATED CO-COMMISSIONING,HACKENTHORPE MEDICAL CENTRE,34513172,881.57,ZFUNFP,S12 4LA
Department of Health,NHS Sheffield CCG,11/30/2020,C&M-PMS Out of Hours Opt Outs,PRC DELEGATED CO-COMMISSIONING,HACKENTHORPE MEDICAL CENTRE,34513172,12.63,APMOOH,S12 4LA
Department of Health,NHS Sheffield CCG,11/30/2020,C&M-PMS PCN DES Participation,PRC DELEGATED CO-COMMISSIONING,HACKENTHORPE MEDICAL CENTRE,34513172,"1,853.42",PARTIP,S12 4LA
Department of Health,NHS Sheffield CCG,11/30/2020,C&M-PMS PCO Other,PRC DELEGATED CO-COMMISSIONING,HACKENTHORPE MEDICAL CENTRE,34513172,435.70,CQCRP,S12 4LA
Department of Health,NHS Sheffield CCG,11/30/2020,C&M-PMS Prem Notional Rent,PRC DELEGATED CO-COMMISSIONING,HACKENTHORPE MEDICAL CENTRE,34513172,"5,116.67",NRENT,S12 4LA
Department of Health,NHS Sheffield CCG,11/30/2020,C&M-PMS Prem Rates,PRC DELEGATED CO-COMMISSIONING,HACKENTHORPE MEDICAL CENTRE,34513172,"1,385.00",RANDRP,S12 4LA
Department of Health,NHS Sheffield CCG,11/30/2020,C&M-PMS Prem Water Rates,PRC DELEGATED CO-COMMISSIONING,HACKENTHORPE MEDICAL CENTRE,34513172,199.08,RAMWP,S12 4LA
Department of Health,NHS Sheffield CCG,11/30/2020,C&M-PMS QOF Aspiration,PRC DELEGATED CO-COMMISSIONING,HACKENTHORPE MEDICAL CENTRE,34513172,"6,490.74",QUASPP,S12 4LA
Department of Health,NHS Sheffield CCG,11/30/2020,C&M-GMS Cost of Drugs -Prescribing,LOCAL ENHANCED SERVICES,HANDSWORTH MEDICAL PRACTICE SHEFFIELD,34717804,"11,598.15",DRGP,S13 9BZ
Department of Health,NHS Sheffield CCG,11/30/2020,C&M-GMS DES Learn Dsblty Hlth Chk,PRC DELEGATED CO-COMMISSIONING,HANDSWORTH MEDICAL PRACTICE SHEFFIELD,34717804,"1,960.00",LEARNG,S13 9BZ
Department of Health,NHS Sheffield CCG,11/30/2020,C&M-GMS Global Sum,PRC DELEGATED CO-COMMISSIONING,HANDSWORTH MEDICAL PRACTICE SHEFFIELD,34717804,"82,492.51",GSUMG,S13 9BZ
Department of Health,NHS Sheffield CCG,11/30/2020,C&M-GMS PCN DES Participation,PRC DELEGATED CO-COMMISSIONING,HANDSWORTH MEDICAL PRACTICE SHEFFIELD,34717804,"3,202.29",PARTIG,S13 9BZ
Department of Health,NHS Sheffield CCG,11/30/2020,C&M-GMS Prem Notional Rent,PRC DELEGATED CO-COMMISSIONING,HANDSWORTH MEDICAL PRACTICE SHEFFIELD,34717804,"3,321.66",NRENT,S13 9BZ
Department of Health,NHS Sheffield CCG,11/30/2020,C&M-GMS Prem Rates,PRC DELEGATED CO-COMMISSIONING,HANDSWORTH MEDICAL PRACTICE SHEFFIELD,34717804,"1,299.80",RANDR,S13 9BZ
Department of Health,NHS Sheffield CCG,11/30/2020,C&M-GMS Prem Water Rates,PRC DELEGATED CO-COMMISSIONING,HANDSWORTH MEDICAL PRACTICE SHEFFIELD,34717804,84.85,RAMW,S13 9BZ
Department of Health,NHS Sheffield CCG,11/30/2020,C&M-GMS Prof Fees Prescribing,PRC DELEGATED CO-COMMISSIONING,HANDSWORTH MEDICAL PRACTICE SHEFFIELD,34717804,"2,471.94",DRGPPF,S13 9BZ
Department of Health,NHS Sheffield CCG,11/30/2020,C&M-GMS QOF Aspiration,PRC DELEGATED CO-COMMISSIONING,HANDSWORTH MEDICAL PRACTICE SHEFFIELD,34717804,"7,866.23",QUASPG,S13 9BZ
Department of Health,NHS Sheffield CCG,11/30/2020,C&M-GMS Global Sum,PRC DELEGATED CO-COMMISSIONING,HAROLD STREET MEDICAL CENTRE,34717797,"19,929.61",GSUMG,S6 3QW
Department of Health,NHS Sheffield CCG,11/30/2020,C&M-GMS PCN DES Participation,PRC DELEGATED CO-COMMISSIONING,HAROLD STREET MEDICAL CENTRE,34717797,810.91,PARTIG,S6 3QW
Department of Health,NHS Sheffield CCG,11/30/2020,C&M-GMS PCO Other,PRC DELEGATED CO-COMMISSIONING,HAROLD STREET MEDICAL CENTRE,34717797,218.90,CQCRG,S6 3QW
Department of Health,NHS Sheffield CCG,11/30/2020,C&M-GMS Prem Notional Rent,PRC DELEGATED CO-COMMISSIONING,HAROLD STREET MEDICAL CENTRE,34717797,"2,337.50",NRENT,S6 3QW
Department of Health,NHS Sheffield CCG,11/30/2020,C&M-GMS QOF Aspiration,PRC DELEGATED CO-COMMISSIONING,HAROLD STREET MEDICAL CENTRE,34717797,"2,231.83",QUASPG,S6 3QW
Department of Health,NHS Sheffield CCG,11/30/2020,Cont Care-Physical Disab (<65),CHC ADULT FULLY FUNDED,HC ONE LTD,34535728,"25,982.55",CHC SCHEDULE NOVEMBER 2020 - Ascot Lodge Nursing Home (HC One),DL3 6AH
Department of Health,NHS Sheffield CCG,11/30/2020,C&M-GMS Cost of Drugs -Prescribing,LOCAL ENHANCED SERVICES,HEALTH CARE SURGERY,34734690,"2,532.04",DRGP,S5 8GS
Department of Health,NHS Sheffield CCG,11/30/2020,C&M-GMS Global Sum,PRC DELEGATED CO-COMMISSIONING,HEALTH CARE SURGERY,34734690,"40,736.35",GSUMG,S5 8GS
Department of Health,NHS Sheffield CCG,11/30/2020,C&M-GMS PCN DES Participation,PRC DELEGATED CO-COMMISSIONING,HEALTH CARE SURGERY,34734690,"1,606.00",PARTIG,S5 8GS
Department of Health,NHS Sheffield CCG,11/30/2020,C&M-GMS PCO Locum Sickness,PRC DELEGATED CO-COMMISSIONING,HEALTH CARE SURGERY,34734690,"15,065.61",LOCSIG,S5 8GS
Department of Health,NHS Sheffield CCG,11/30/2020,C&M-GMS PCO Other,PRC DELEGATED CO-COMMISSIONING,HEALTH CARE SURGERY,34734690,337.00,CQCRG,S5 8GS
Department of Health,NHS Sheffield CCG,11/30/2020,C&M-GMS Prem Notional Rent,PRC DELEGATED CO-COMMISSIONING,HEALTH CARE SURGERY,34734690,"3,862.50",NRENT,S5 8GS
Department of Health,NHS Sheffield CCG,11/30/2020,C&M-GMS Prem Rates,PRC DELEGATED CO-COMMISSIONING,HEALTH CARE SURGERY,34734690,755.00,RANDR,S5 8GS
Department of Health,NHS Sheffield CCG,11/30/2020,C&M-GMS Prof Fees Prescribing,PRC DELEGATED CO-COMMISSIONING,HEALTH CARE SURGERY,34734690,529.69,DRGPPF,S5 8GS
Department of Health,NHS Sheffield CCG,11/30/2020,C&M-GMS QOF Aspiration,PRC DELEGATED CO-COMMISSIONING,HEALTH CARE SURGERY,34734690,"4,354.34",QUASPG,S5 8GS
Department of Health,NHS Sheffield CCG,11/30/2020,C&M-GMS Cost of Drugs -Prescribing,LOCAL ENHANCED SERVICES,HEELEY GREEN SURGERY,34717823,"4,691.16",DRGP,S2 3AJ
Department of Health,NHS Sheffield CCG,11/30/2020,C&M-GMS DES Learn Dsblty Hlth Chk,PRC DELEGATED CO-COMMISSIONING,HEELEY GREEN SURGERY,34717823,420.00,LEARNG,S2 3AJ
Department of Health,NHS Sheffield CCG,11/30/2020,C&M-GMS Global Sum,PRC DELEGATED CO-COMMISSIONING,HEELEY GREEN SURGERY,34717823,"43,048.97",GSUMG,S2 3AJ
Department of Health,NHS Sheffield CCG,11/30/2020,C&M-GMS PCN DES Participation,PRC DELEGATED CO-COMMISSIONING,HEELEY GREEN SURGERY,34717823,"1,716.38",PARTIG,S2 3AJ
Department of Health,NHS Sheffield CCG,11/30/2020,C&M-GMS Prem Notional Rent,PRC DELEGATED CO-COMMISSIONING,HEELEY GREEN SURGERY,34717823,"3,254.17",NRENT,S2 3AJ
Department of Health,NHS Sheffield CCG,11/30/2020,C&M-GMS Prof Fees Prescribing,PRC DELEGATED CO-COMMISSIONING,HEELEY GREEN SURGERY,34717823,921.20,DRGPPF,S2 3AJ
Department of Health,NHS Sheffield CCG,11/30/2020,C&M-GMS QOF Aspiration,PRC DELEGATED CO-COMMISSIONING,HEELEY GREEN SURGERY,34717823,"4,729.13",QUASPG,S2 3AJ
Department of Health,NHS Sheffield CCG,11/30/2020,C&M-GMS GP Statutory Levy,PRC DELEGATED CO-COMMISSIONING,HOLLIES MEDICAL CENTRE,34717826,-347.73,STATL,S11 9AL
Department of Health,NHS Sheffield CCG,11/30/2020,C&M-GMS PCN DES Participation,PRC DELEGATED CO-COMMISSIONING,HOLLIES MEDICAL CENTRE,34717826,"-1,246.56",PARTIG,S11 9AL
Department of Health,NHS Sheffield CCG,11/30/2020,C&M-GMS Cost of Drugs -Prescribing,LOCAL ENHANCED SERVICES,HOLLIES MEDICAL CENTRE,34717829,"1,111.91",DRGP,S11 9AL
Department of Health,NHS Sheffield CCG,11/30/2020,C&M-GMS Global Sum,PRC DELEGATED CO-COMMISSIONING,HOLLIES MEDICAL CENTRE,34717829,"64,793.36",GSUMG,S11 9AL
Department of Health,NHS Sheffield CCG,11/30/2020,C&M-GMS PCN DES Participation,PRC DELEGATED CO-COMMISSIONING,HOLLIES MEDICAL CENTRE,34717829,"2,495.24",PARTIG,S11 9AL
Department of Health,NHS Sheffield CCG,11/30/2020,C&M-GMS PCO Other,PRC DELEGATED CO-COMMISSIONING,HOLLIES MEDICAL CENTRE,34717829,608.70,CQCRG,S11 9AL
Department of Health,NHS Sheffield CCG,11/30/2020,C&M-GMS Prem Notional Rent,PRC DELEGATED CO-COMMISSIONING,HOLLIES MEDICAL CENTRE,34717829,"3,229.17",NRENT,S11 9AL
Department of Health,NHS Sheffield CCG,11/30/2020,C&M-GMS Prem Rates,PRC DELEGATED CO-COMMISSIONING,HOLLIES MEDICAL CENTRE,34717829,"1,818.00",RANDR,S11 9AL
Department of Health,NHS Sheffield CCG,11/30/2020,C&M-GMS Prof Fees Prescribing,PRC DELEGATED CO-COMMISSIONING,HOLLIES MEDICAL CENTRE,34717829,165.81,DRGPPF,S11 9AL
Department of Health,NHS Sheffield CCG,11/30/2020,C&M-GMS QOF Aspiration,PRC DELEGATED CO-COMMISSIONING,HOLLIES MEDICAL CENTRE,34717829,"7,315.52",QUASPG,S11 9AL
Department of Health,NHS Sheffield CCG,11/30/2020,Cont Care-Physical Disab (<65),CHC ADULT FULLY FUNDED,HORIZON CARE HOMES LTD,34535722,"42,554.71",CHC SCHEDULE NOVEMBER 2020 - Wood Hill Grange (Horizon Care Homes),S25 3QA
Department of Health,NHS Sheffield CCG,11/30/2020,Cont Care-Physical Disab (<65),CHC ADULT FULLY FUNDED,HORIZON CARE HOMES LTD,34535734,"42,859.72",CHC SCHEDULE NOVEMBER 2020 - Wood Hill House,S25 3QA
Department of Health,NHS Sheffield CCG,11/30/2020,Cont Care-Physical Disab (<65),CHC ADULT FULLY FUNDED,HORIZON CARE HOMES LTD,34535736,"67,024.00",CHC SCHEDULE NOVEMBER 2020 - Wood Hill Lodge,S25 3QA
Department of Health,NHS Sheffield CCG,11/30/2020,Clinical&Medical-Serv Recd-F Trsts,ACUTE COMMISSIONING,HUMBER TEACHING NHS FOUNDATION TRUST,34578611,"50,667.00",,WF3 1WE
Department of Health,NHS Sheffield CCG,11/30/2020,Seconded-Basic Sal-Staff fm oth org,BEREAVEMENT SERVICE,IDEAL HEALTH CONSULTANTS LTD,34615136,"58,560.00",https://nww.einvoice-prod.sbs.nhs.uk:8179/invoicepdf/5083a439-b843-519f-9fc5-b4166bc71ee5,GU1 4SJ
Department of Health,NHS Sheffield CCG,11/30/2020,Cont Care-Physical Disab (<65),CHC ADULT FULLY FUNDED,INLET LTD,34535739,"67,982.02",CHC SCHEDULE NOVEMBER 2020 - Loxley Court (Inlet Ltd),S48NB
Department of Health,NHS Sheffield CCG,11/30/2020,C&M-PMS Contract Value,PRC DELEGATED CO-COMMISSIONING,JAUNTY SPRINGS HEALTH CENTRE,34513174,"31,488.51",BABALP,S12 3DZ
Department of Health,NHS Sheffield CCG,11/30/2020,C&M-PMS DES Extended Hours Access,PRC DELEGATED CO-COMMISSIONING,JAUNTY SPRINGS HEALTH CENTRE,34513174,"4,214.06",EXTHDP,S12 3DZ
Department of Health,NHS Sheffield CCG,11/30/2020,C&M-PMS DES Minor Surgery,PRC DELEGATED CO-COMMISSIONING,JAUNTY SPRINGS HEALTH CENTRE,34513174,160.00,DEMSUP,S12 3DZ
Department of Health,NHS Sheffield CCG,11/30/2020,C&M-PMS Funding Differential Review,PRC DELEGATED CO-COMMISSIONING,JAUNTY SPRINGS HEALTH CENTRE,34513174,600.45,ZFUNFP,S12 3DZ
Department of Health,NHS Sheffield CCG,11/30/2020,C&M-PMS Out of Hours Opt Outs,PRC DELEGATED CO-COMMISSIONING,JAUNTY SPRINGS HEALTH CENTRE,34513174,12.20,APMOOH,S12 3DZ
Department of Health,NHS Sheffield CCG,11/30/2020,C&M-PMS PCN DES Clinical Director,PRC DELEGATED CO-COMMISSIONING,JAUNTY SPRINGS HEALTH CENTRE,34513174,"2,098.31",CLINDP,S12 3DZ
Department of Health,NHS Sheffield CCG,11/30/2020,C&M-PMS PCN DES PCN support,LOCAL ENHANCED SERVICES,JAUNTY SPRINGS HEALTH CENTRE,34513174,"4,359.38",PCNSUP,S12 3DZ
Department of Health,NHS Sheffield CCG,11/30/2020,C&M-PMS PCN DES Participation,PRC DELEGATED CO-COMMISSIONING,JAUNTY SPRINGS HEALTH CENTRE,34513174,592.79,PARTIP,S12 3DZ
Department of Health,NHS Sheffield CCG,11/30/2020,C&M-PMS PCO Other,PRC DELEGATED CO-COMMISSIONING,JAUNTY SPRINGS HEALTH CENTRE,34513174,266.60,CQCRP,S12 3DZ
Department of Health,NHS Sheffield CCG,11/30/2020,C&M-PMS Prem Notional Rent,PRC DELEGATED CO-COMMISSIONING,JAUNTY SPRINGS HEALTH CENTRE,34513174,"3,208.33",NRENT,S12 3DZ
Department of Health,NHS Sheffield CCG,11/30/2020,C&M-PMS Prem Rates,PRC DELEGATED CO-COMMISSIONING,JAUNTY SPRINGS HEALTH CENTRE,34513174,830.00,RANDRP,S12 3DZ
Department of Health,NHS Sheffield CCG,11/30/2020,C&M-PMS Prem Water Rates,PRC DELEGATED CO-COMMISSIONING,JAUNTY SPRINGS HEALTH CENTRE,34513174,47.33,RAMWP,S12 3DZ
Department of Health,NHS Sheffield CCG,11/30/2020,C&M-PMS QOF Aspiration,PRC DELEGATED CO-COMMISSIONING,JAUNTY SPRINGS HEALTH CENTRE,34513174,"3,693.16",QUASPP,S12 3DZ
Department of Health,NHS Sheffield CCG,11/30/2020,Cont Care-Physical Disab (<65),CHC ADULT FULLY FUNDED,LAURELS & LIMES CARE HOME (THE),34535706,"28,348.03",CHC SCHEDULE NOVEMBER 2020 - The Laurels & The Limes Care Home,S10 5DN
Department of Health,NHS Sheffield CCG,11/30/2020,Hcare Srv Rec NHS Trust-Contract Baseline,ACUTE COMMISSIONING,LEEDS TEACHING HOSPITALS NHS TRUST,34578602,"47,860.51",,LS9 7TF
Department of Health,NHS Sheffield CCG,11/30/2020,Cont Care-Physical Disab (<65),CHC ADULT FULLY FUNDED,LONGLEY HEALTH CARE LTD,34535707,"95,009.34",CHC SCHEDULE NOVEMBER 2020 - Longley Park View Nursing Home (Exemplar HC),S5 7JZ
Department of Health,NHS Sheffield CCG,11/30/2020,C&M-PMS Contract Value,PRC DELEGATED CO-COMMISSIONING,MANCHESTER ROAD SURGERY SHEFFIELD,34513178,"33,616.75",BABALP,S10 5PN
Department of Health,NHS Sheffield CCG,11/30/2020,C&M-PMS DES Minor Surgery,PRC DELEGATED CO-COMMISSIONING,MANCHESTER ROAD SURGERY SHEFFIELD,34513178,645.00,DEMSUP,S10 5PN
Department of Health,NHS Sheffield CCG,11/30/2020,C&M-PMS Funding Differential Review,PRC DELEGATED CO-COMMISSIONING,MANCHESTER ROAD SURGERY SHEFFIELD,34513178,604.16,ZFUNFP,S10 5PN
Department of Health,NHS Sheffield CCG,11/30/2020,C&M-PMS Out of Hours Opt Outs,PRC DELEGATED CO-COMMISSIONING,MANCHESTER ROAD SURGERY SHEFFIELD,34513178,4.42,APMOOH,S10 5PN
Department of Health,NHS Sheffield CCG,11/30/2020,C&M-PMS PCN DES Participation,PRC DELEGATED CO-COMMISSIONING,MANCHESTER ROAD SURGERY SHEFFIELD,34513178,"1,263.76",PARTIP,S10 5PN
Department of Health,NHS Sheffield CCG,11/30/2020,C&M-PMS Prem Cost Rent,PRC DELEGATED CO-COMMISSIONING,MANCHESTER ROAD SURGERY SHEFFIELD,34513178,"3,091.46",COST,S10 5PN
Department of Health,NHS Sheffield CCG,11/30/2020,C&M-PMS Prem Notional Rent,PRC DELEGATED CO-COMMISSIONING,MANCHESTER ROAD SURGERY SHEFFIELD,34513178,442.92,NRENT,S10 5PN
Department of Health,NHS Sheffield CCG,11/30/2020,C&M-PMS Prem Rates,PRC DELEGATED CO-COMMISSIONING,MANCHESTER ROAD SURGERY SHEFFIELD,34513178,986.00,RANDRP,S10 5PN
Department of Health,NHS Sheffield CCG,11/30/2020,C&M-PMS QOF Aspiration,PRC DELEGATED CO-COMMISSIONING,MANCHESTER ROAD SURGERY SHEFFIELD,34513178,"3,837.07",QUASPP,S10 5PN
Department of Health,NHS Sheffield CCG,11/30/2020,C&M-PMS Contract Value,PRC DELEGATED CO-COMMISSIONING,MANOR & PARK GROUP PRACTICE,34519778,"73,769.32",BABALP,S2 5QQ
Department of Health,NHS Sheffield CCG,11/30/2020,C&M-PMS Out of Hours Opt Outs,PRC DELEGATED CO-COMMISSIONING,MANOR & PARK GROUP PRACTICE,34519778,48.65,APMOOH,S2 5QQ
Department of Health,NHS Sheffield CCG,11/30/2020,C&M-PMS PCN DES Participation,PRC DELEGATED CO-COMMISSIONING,MANOR & PARK GROUP PRACTICE,34519778,"2,777.35",PARTIP,S2 5QQ
Department of Health,NHS Sheffield CCG,11/30/2020,C&M-PMS Prem Notional Rent,PRC DELEGATED CO-COMMISSIONING,MANOR & PARK GROUP PRACTICE,34519778,"9,050.00",NRENT,S2 5QQ
Department of Health,NHS Sheffield CCG,11/30/2020,C&M-PMS Prem Rates,PRC DELEGATED CO-COMMISSIONING,MANOR & PARK GROUP PRACTICE,34519778,"1,864.00",RANDRP,S2 5QQ
Department of Health,NHS Sheffield CCG,11/30/2020,C&M-PMS QOF Aspiration,PRC DELEGATED CO-COMMISSIONING,MANOR & PARK GROUP PRACTICE,34519778,"6,093.98",QUASPP,S2 5QQ
Department of Health,NHS Sheffield CCG,11/30/2020,C&M-GMS Global Sum,PRC DELEGATED CO-COMMISSIONING,MATHEWS PRACTICE,34717851,"59,073.17",GSUMG,S2 4UJ
Department of Health,NHS Sheffield CCG,11/30/2020,C&M-GMS PCN DES Participation,PRC DELEGATED CO-COMMISSIONING,MATHEWS PRACTICE,34717851,"1,189.39",PARTIG,S2 4UJ
Department of Health,NHS Sheffield CCG,11/30/2020,C&M-GMS Prem Rates,PRC DELEGATED CO-COMMISSIONING,MATHEWS PRACTICE,34717851,"2,183.00",RANDR,S2 4UJ
Department of Health,NHS Sheffield CCG,11/30/2020,C&M-GMS QOF Aspiration,PRC DELEGATED CO-COMMISSIONING,MATHEWS PRACTICE,34717851,"7,173.28",QUASPG,S2 4UJ
Department of Health,NHS Sheffield CCG,11/30/2020,C&M-PMS Contract Value,PRC DELEGATED CO-COMMISSIONING,MEADOWHEAD GROUP PRACTICE,34513175,-661.45,BABALP,S8 7RL
Department of Health,NHS Sheffield CCG,11/30/2020,C&M-PMS GP Statutory Levy,PRC DELEGATED CO-COMMISSIONING,MEADOWHEAD GROUP PRACTICE,34513175,-571.31,STATL,S8 7RL
Department of Health,NHS Sheffield CCG,11/30/2020,C&M-PMS Out of Hours Opt Outs,PRC DELEGATED CO-COMMISSIONING,MEADOWHEAD GROUP PRACTICE,34513175,"-6,196.49",APMOOH,S8 7RL
Department of Health,NHS Sheffield CCG,11/30/2020,C&M-PMS PCN DES Participation,PRC DELEGATED CO-COMMISSIONING,MEADOWHEAD GROUP PRACTICE,34513175,"-2,434.20",PARTIP,S8 7RL
Department of Health,NHS Sheffield CCG,11/30/2020,C&M-PMS Contract Value,PRC DELEGATED CO-COMMISSIONING,MEADOWHEAD GROUP PRACTICE,34513176,"130,187.01",BABALP,S8 7RL
Department of Health,NHS Sheffield CCG,11/30/2020,C&M-PMS Cost of Drugs -Prescribing,LOCAL ENHANCED SERVICES,MEADOWHEAD GROUP PRACTICE,34513176,633.56,DRGP,S8 7RL
Department of Health,NHS Sheffield CCG,11/30/2020,C&M-PMS DES Learn Dsblty Hlth Chk,PRC DELEGATED CO-COMMISSIONING,MEADOWHEAD GROUP PRACTICE,34513176,560.00,LEARNP,S8 7RL
Department of Health,NHS Sheffield CCG,11/30/2020,C&M-PMS DES Minor Surgery,PRC DELEGATED CO-COMMISSIONING,MEADOWHEAD GROUP PRACTICE,34513176,"1,240.00",DEMSUP,S8 7RL
Department of Health,NHS Sheffield CCG,11/30/2020,C&M-PMS Funding Differential Review,PRC DELEGATED CO-COMMISSIONING,MEADOWHEAD GROUP PRACTICE,34513176,"2,003.74",ZFUNFP,S8 7RL
Department of Health,NHS Sheffield CCG,11/30/2020,C&M-PMS Out of Hours Opt Outs,PRC DELEGATED CO-COMMISSIONING,MEADOWHEAD GROUP PRACTICE,34513176,31.09,APMOOH,S8 7RL
Department of Health,NHS Sheffield CCG,11/30/2020,C&M-PMS PCN DES Participation,PRC DELEGATED CO-COMMISSIONING,MEADOWHEAD GROUP PRACTICE,34513176,"3,821.10",PARTIP,S8 7RL
Department of Health,NHS Sheffield CCG,11/30/2020,C&M-PMS PCO Other,PRC DELEGATED CO-COMMISSIONING,MEADOWHEAD GROUP PRACTICE,34513176,456.10,CQCRP,S8 7RL
Department of Health,NHS Sheffield CCG,11/30/2020,C&M-PMS Prem Cost Rent,PRC DELEGATED CO-COMMISSIONING,MEADOWHEAD GROUP PRACTICE,34513176,"3,647.42",COST,S8 7RL
Department of Health,NHS Sheffield CCG,11/30/2020,C&M-PMS Prem Healthcentre Rent,PRC DELEGATED CO-COMMISSIONING,MEADOWHEAD GROUP PRACTICE,34513176,"41,665.03",HEALTH,S8 7RL
Department of Health,NHS Sheffield CCG,11/30/2020,C&M-PMS Prem Notional Rent,PRC DELEGATED CO-COMMISSIONING,MEADOWHEAD GROUP PRACTICE,34513176,"8,905.00",NRENT,S8 7RL
Department of Health,NHS Sheffield CCG,11/30/2020,C&M-PMS Prem Rates,PRC DELEGATED CO-COMMISSIONING,MEADOWHEAD GROUP PRACTICE,34513176,"3,253.00",RANDRP,S8 7RL
Department of Health,NHS Sheffield CCG,11/30/2020,C&M-PMS Prof fees Prescribing,PRC DELEGATED CO-COMMISSIONING,MEADOWHEAD GROUP PRACTICE,34513176,65.53,DRGPPF,S8 7RL
Department of Health,NHS Sheffield CCG,11/30/2020,C&M-PMS QOF Aspiration,PRC DELEGATED CO-COMMISSIONING,MEADOWHEAD GROUP PRACTICE,34513176,"8,381.02",QUASPP,S8 7RL
Department of Health,NHS Sheffield CCG,11/30/2020,C&M-GMS GP Statutory Levy,PRC DELEGATED CO-COMMISSIONING,MEDICAL CENTRE CRYSTAL PEAKS,34717838,-233.80,STATL,S20 7HZ
Department of Health,NHS Sheffield CCG,11/30/2020,C&M-GMS PCN DES Participation,PRC DELEGATED CO-COMMISSIONING,MEDICAL CENTRE CRYSTAL PEAKS,34717838,-973.29,PARTIG,S20 7HZ
Department of Health,NHS Sheffield CCG,11/30/2020,C&M-GMS Cost of Drugs -Prescribing,LOCAL ENHANCED SERVICES,MEDICAL CENTRE CRYSTAL PEAKS,34717841,"9,635.12",DRGP,S20 7HZ
Department of Health,NHS Sheffield CCG,11/30/2020,C&M-GMS DES Learn Dsblty Hlth Chk,PRC DELEGATED CO-COMMISSIONING,MEDICAL CENTRE CRYSTAL PEAKS,34717841,140.00,LEARNG,S20 7HZ
Department of Health,NHS Sheffield CCG,11/30/2020,C&M-GMS Global Sum,PRC DELEGATED CO-COMMISSIONING,MEDICAL CENTRE CRYSTAL PEAKS,34717841,"49,706.72",GSUMG,S20 7HZ
Department of Health,NHS Sheffield CCG,11/30/2020,C&M-GMS PCN DES Participation,PRC DELEGATED CO-COMMISSIONING,MEDICAL CENTRE CRYSTAL PEAKS,34717841,"1,948.24",PARTIG,S20 7HZ
Department of Health,NHS Sheffield CCG,11/30/2020,C&M-GMS PCO Locum Sickness,PRC DELEGATED CO-COMMISSIONING,MEDICAL CENTRE CRYSTAL PEAKS,34717841,"6,598.20",LOCSIG,S20 7HZ
Department of Health,NHS Sheffield CCG,11/30/2020,C&M-GMS PCO Other,PRC DELEGATED CO-COMMISSIONING,MEDICAL CENTRE CRYSTAL PEAKS,34717841,431.60,CQCRG,S20 7HZ
Department of Health,NHS Sheffield CCG,11/30/2020,C&M-GMS Prem Notional Rent,PRC DELEGATED CO-COMMISSIONING,MEDICAL CENTRE CRYSTAL PEAKS,34717841,270.00,NRENT,S20 7HZ
Department of Health,NHS Sheffield CCG,11/30/2020,C&M-GMS Prem Rates,PRC DELEGATED CO-COMMISSIONING,MEDICAL CENTRE CRYSTAL PEAKS,34717841,"1,073.00",RANDR,S20 7HZ
Department of Health,NHS Sheffield CCG,11/30/2020,C&M-GMS Prof Fees Prescribing,PRC DELEGATED CO-COMMISSIONING,MEDICAL CENTRE CRYSTAL PEAKS,34717841,"2,152.31",DRGPPF,S20 7HZ
Department of Health,NHS Sheffield CCG,11/30/2020,C&M-GMS QOF Aspiration,PRC DELEGATED CO-COMMISSIONING,MEDICAL CENTRE CRYSTAL PEAKS,34717841,"6,365.03",QUASPG,S20 7HZ
Department of Health,NHS Sheffield CCG,11/30/2020,C&M-GMS Cost of Drugs -Prescribing,LOCAL ENHANCED SERVICES,MILL ROAD SURGERY SHEFFIELD,34717858,"9,919.36",DRGP,S35 9XQ
Department of Health,NHS Sheffield CCG,11/30/2020,C&M-GMS DES Learn Dsblty Hlth Chk,PRC DELEGATED CO-COMMISSIONING,MILL ROAD SURGERY SHEFFIELD,34717858,280.00,LEARNG,S35 9XQ
Department of Health,NHS Sheffield CCG,11/30/2020,C&M-GMS Global Sum,PRC DELEGATED CO-COMMISSIONING,MILL ROAD SURGERY SHEFFIELD,34717858,"42,313.48",GSUMG,S35 9XQ
Department of Health,NHS Sheffield CCG,11/30/2020,C&M-GMS PCN DES Participation,PRC DELEGATED CO-COMMISSIONING,MILL ROAD SURGERY SHEFFIELD,34717858,"1,669.50",PARTIG,S35 9XQ
Department of Health,NHS Sheffield CCG,11/30/2020,C&M-GMS PCO Other,PRC DELEGATED CO-COMMISSIONING,MILL ROAD SURGERY SHEFFIELD,34717858,352.00,CQCRG,S35 9XQ
Department of Health,NHS Sheffield CCG,11/30/2020,C&M-GMS Prem Notional Rent,PRC DELEGATED CO-COMMISSIONING,MILL ROAD SURGERY SHEFFIELD,34717858,"4,593.33",NRENT,S35 9XQ
Department of Health,NHS Sheffield CCG,11/30/2020,C&M-GMS Prem Rates,PRC DELEGATED CO-COMMISSIONING,MILL ROAD SURGERY SHEFFIELD,34717858,"1,073.00",RANDR,S35 9XQ
Department of Health,NHS Sheffield CCG,11/30/2020,C&M-GMS Prof Fees Prescribing,PRC DELEGATED CO-COMMISSIONING,MILL ROAD SURGERY SHEFFIELD,34717858,"2,001.32",DRGPPF,S35 9XQ
Department of Health,NHS Sheffield CCG,11/30/2020,C&M-GMS QOF Aspiration,PRC DELEGATED CO-COMMISSIONING,MILL ROAD SURGERY SHEFFIELD,34717858,"5,109.19",QUASPG,S35 9XQ
Department of Health,NHS Sheffield CCG,11/30/2020,Clinical&Medical-Independent Sector,Mental Health Services - S117 Mental Health,MOORVILLE RESIDENTIAL,34458389,"28,661.10",,S10 5FA
Department of Health,NHS Sheffield CCG,11/30/2020,Cont Care-Learning Disab(<65),CHC ADULT FULLY FUNDED,MOORVILLE RESIDENTIAL,34458389,"9,119.40",https://nww.einvoice-prod.sbs.nhs.uk:8179/invoicepdf/f810b80b-25c1-5477-965f-724881a771ac,S10 5FA
Department of Health,NHS Sheffield CCG,11/30/2020,Cont Care-Learning Disab(<65),CHC ADULT JOINT FUNDED,MOORVILLE RESIDENTIAL,34458389,"4,193.40",,S10 5FA
Department of Health,NHS Sheffield CCG,11/30/2020,Cont Care-Mental Health (<65),CHC ADULT JOINT FUNDED,MOORVILLE RESIDENTIAL,34458389,489.90,,S10 5FA
Department of Health,NHS Sheffield CCG,11/30/2020,C&M-PMS Contract Value,PRC DELEGATED CO-COMMISSIONING,MOSBOROUGH HEALTH CENTRE,34513180,"51,348.79",BABALP,S20 5BQ
Department of Health,NHS Sheffield CCG,11/30/2020,C&M-PMS DES Minor Surgery,PRC DELEGATED CO-COMMISSIONING,MOSBOROUGH HEALTH CENTRE,34513180,240.00,DEMSUP,S20 5BQ
Department of Health,NHS Sheffield CCG,11/30/2020,C&M-PMS Funding Differential Review,PRC DELEGATED CO-COMMISSIONING,MOSBOROUGH HEALTH CENTRE,34513180,891.89,ZFUNFP,S20 5BQ
Department of Health,NHS Sheffield CCG,11/30/2020,C&M-PMS PCN DES Participation,PRC DELEGATED CO-COMMISSIONING,MOSBOROUGH HEALTH CENTRE,34513180,"1,911.97",PARTIP,S20 5BQ
Department of Health,NHS Sheffield CCG,11/30/2020,C&M-PMS Prem Notional Rent,PRC DELEGATED CO-COMMISSIONING,MOSBOROUGH HEALTH CENTRE,34513180,"4,091.67",NRENT,S20 5BQ
Department of Health,NHS Sheffield CCG,11/30/2020,C&M-PMS Prem Rates,PRC DELEGATED CO-COMMISSIONING,MOSBOROUGH HEALTH CENTRE,34513180,"1,604.00",RANDRP,S20 5BQ
Department of Health,NHS Sheffield CCG,11/30/2020,C&M-PMS Prem Water Rates,PRC DELEGATED CO-COMMISSIONING,MOSBOROUGH HEALTH CENTRE,34513180,62.44,RAMWP,S20 5BQ
Department of Health,NHS Sheffield CCG,11/30/2020,C&M-PMS QOF Aspiration,PRC DELEGATED CO-COMMISSIONING,MOSBOROUGH HEALTH CENTRE,34513180,"5,629.90",QUASPP,S20 5BQ
Department of Health,NHS Sheffield CCG,11/30/2020,C&M-PMS Contract Value,PRC DELEGATED CO-COMMISSIONING,NETHERGREEN SURGERY,34513182,"64,573.71",BABALP,S11 7EJ
Department of Health,NHS Sheffield CCG,11/30/2020,C&M-PMS DES Learn Dsblty Hlth Chk,PRC DELEGATED CO-COMMISSIONING,NETHERGREEN SURGERY,34513182,140.00,LEARNP,S11 7EJ
Department of Health,NHS Sheffield CCG,11/30/2020,C&M-PMS DES Minor Surgery,PRC DELEGATED CO-COMMISSIONING,NETHERGREEN SURGERY,34513182,240.00,DEMSUP,S11 7EJ
Department of Health,NHS Sheffield CCG,11/30/2020,C&M-PMS Funding Differential Review,PRC DELEGATED CO-COMMISSIONING,NETHERGREEN SURGERY,34513182,"1,369.87",ZFUNFP,S11 7EJ
Department of Health,NHS Sheffield CCG,11/30/2020,C&M-PMS Out of Hours Opt Outs,PRC DELEGATED CO-COMMISSIONING,NETHERGREEN SURGERY,34513182,2.61,APMOOH,S11 7EJ
Department of Health,NHS Sheffield CCG,11/30/2020,C&M-PMS PCN DES Participation,PRC DELEGATED CO-COMMISSIONING,NETHERGREEN SURGERY,34513182,"2,404.52",PARTIP,S11 7EJ
Department of Health,NHS Sheffield CCG,11/30/2020,C&M-PMS Prem Cost Rent,PRC DELEGATED CO-COMMISSIONING,NETHERGREEN SURGERY,34513182,"5,057.33",COST,S11 7EJ
Department of Health,NHS Sheffield CCG,11/30/2020,C&M-PMS Prem Rates,PRC DELEGATED CO-COMMISSIONING,NETHERGREEN SURGERY,34513182,"1,285.00",RANDRP,S11 7EJ
Department of Health,NHS Sheffield CCG,11/30/2020,C&M-PMS QOF Aspiration,PRC DELEGATED CO-COMMISSIONING,NETHERGREEN SURGERY,34513182,"5,887.42",QUASPP,S11 7EJ
Department of Health,NHS Sheffield CCG,11/30/2020,Basic Sal-Admin & Clerical band 7,BEREAVEMENT SERVICE,NHS ENGLAND,34646006,"17,801.22",,WF3 1WE
Department of Health,NHS Sheffield CCG,11/30/2020,E'ers NHI-Admin & Clerical band 7,BEREAVEMENT SERVICE,NHS ENGLAND,34646006,"1,852.12",,WF3 1WE
Department of Health,NHS Sheffield CCG,11/30/2020,E'ers Pen-Admin & Clerical band 7,BEREAVEMENT SERVICE,NHS ENGLAND,34646006,"2,559.84",,WF3 1WE
Department of Health,NHS Sheffield CCG,11/30/2020,Seconded-Basic Sal-Staff fm oth org,CLINICAL LEADS,NHS ENGLAND,34646006,"37,957.02",MISC INCOME - OTHER OPERATING REV NHS,WF3 1WE
Department of Health,NHS Sheffield CCG,11/30/2020,Seconded-Employer's NHI Costs,CLINICAL LEADS,NHS ENGLAND,34646006,"4,631.96",,WF3 1WE
Department of Health,NHS Sheffield CCG,11/30/2020,Miscellaneous Expenditure (L9),CEO/ BOARD OFFICE,NHS HULL CCG,34544855,"9,108.00",,WF3 1WE
Department of Health,NHS Sheffield CCG,11/30/2020,PERMUKSTAFF-SEVRNC GROSS REDUNDANCY,CEO/ BOARD OFFICE,NHS HULL CCG,34544855,"96,000.00",,WF3 1WE
Department of Health,NHS Sheffield CCG,11/30/2020,Seconded-Basic Sal-Staff fm oth org,CEO/ BOARD OFFICE,NHS HULL CCG,34544855,"18,249.13",MADDY RUFF PAY RECHARGE JUL-20 - AUG-20,WF3 1WE
Department of Health,NHS Sheffield CCG,11/30/2020,Seconded-Employer's NHI Costs,CEO/ BOARD OFFICE,NHS HULL CCG,34544855,"2,324.52",,WF3 1WE
Department of Health,NHS Sheffield CCG,11/30/2020,Seconded-Basic Sal-Staff fm oth org,BEREAVEMENT SERVICE,NHS ROTHERHAM CCG,34634810,"36,900.00",STORES ISSUES RECHARGE,WF3 1WE
Department of Health,NHS Sheffield CCG,11/30/2020,C&M-GMS Cost of Drugs -Prescribing,LOCAL ENHANCED SERVICES,NORFOLK PARK HEALTH CENTRE,34717868,"3,799.96",DRGP,S2 3TA
Department of Health,NHS Sheffield CCG,11/30/2020,C&M-GMS Global Sum,PRC DELEGATED CO-COMMISSIONING,NORFOLK PARK HEALTH CENTRE,34717868,"42,448.61",GSUMG,S2 3TA
Department of Health,NHS Sheffield CCG,11/30/2020,C&M-GMS PCN DES Participation,PRC DELEGATED CO-COMMISSIONING,NORFOLK PARK HEALTH CENTRE,34717868,"1,603.19",PARTIG,S2 3TA
Department of Health,NHS Sheffield CCG,11/30/2020,C&M-GMS Prem Healthcentre Rent,PRC DELEGATED CO-COMMISSIONING,NORFOLK PARK HEALTH CENTRE,34717868,"25,249.98",HEALTH,S2 3TA
Department of Health,NHS Sheffield CCG,11/30/2020,C&M-GMS Prof Fees Prescribing,PRC DELEGATED CO-COMMISSIONING,NORFOLK PARK HEALTH CENTRE,34717868,750.78,DRGPPF,S2 3TA
Department of Health,NHS Sheffield CCG,11/30/2020,C&M-GMS QOF Aspiration,PRC DELEGATED CO-COMMISSIONING,NORFOLK PARK HEALTH CENTRE,34717868,"3,959.66",QUASPG,S2 3TA
Department of Health,NHS Sheffield CCG,11/30/2020,C&M-GMS Cost of Drugs -Prescribing,LOCAL ENHANCED SERVICES,NORWOOD MEDICAL CENTRE SHEFFIELD,34717874,"9,174.08",DRGP,S5 7HD
Department of Health,NHS Sheffield CCG,11/30/2020,C&M-GMS DES Learn Dsblty Hlth Chk,PRC DELEGATED CO-COMMISSIONING,NORWOOD MEDICAL CENTRE SHEFFIELD,34717874,"2,100.00",LEARNG,S5 7HD
Department of Health,NHS Sheffield CCG,11/30/2020,C&M-GMS Global Sum,PRC DELEGATED CO-COMMISSIONING,NORWOOD MEDICAL CENTRE SHEFFIELD,34717874,"68,410.54",GSUMG,S5 7HD
Department of Health,NHS Sheffield CCG,11/30/2020,C&M-GMS PCN DES Participation,PRC DELEGATED CO-COMMISSIONING,NORWOOD MEDICAL CENTRE SHEFFIELD,34717874,"2,690.13",PARTIG,S5 7HD
Department of Health,NHS Sheffield CCG,11/30/2020,C&M-GMS PCO Other,PRC DELEGATED CO-COMMISSIONING,NORWOOD MEDICAL CENTRE SHEFFIELD,34717874,513.80,CQCRG,S5 7HD
Department of Health,NHS Sheffield CCG,11/30/2020,C&M-GMS Prem Notional Rent,PRC DELEGATED CO-COMMISSIONING,NORWOOD MEDICAL CENTRE SHEFFIELD,34717874,"5,187.50",NRENT,S5 7HD
Department of Health,NHS Sheffield CCG,11/30/2020,C&M-GMS Prem Water Rates,PRC DELEGATED CO-COMMISSIONING,NORWOOD MEDICAL CENTRE SHEFFIELD,34717874,139.30,RAMW,S5 7HD
Department of Health,NHS Sheffield CCG,11/30/2020,C&M-GMS Prof Fees Prescribing,PRC DELEGATED CO-COMMISSIONING,NORWOOD MEDICAL CENTRE SHEFFIELD,34717874,"1,837.41",DRGPPF,S5 7HD
Department of Health,NHS Sheffield CCG,11/30/2020,C&M-GMS QOF Aspiration,PRC DELEGATED CO-COMMISSIONING,NORWOOD MEDICAL CENTRE SHEFFIELD,34717874,"8,207.51",QUASPG,S5 7HD
Department of Health,NHS Sheffield CCG,11/30/2020,Clinical&Medical-Independent Sector,ACUTE COMMISSIONING,ONEHEALTH GROUP,34615212,"72,062.49",https://nww.einvoice-prod.sbs.nhs.uk:8179/invoicepdf/edc29a4d-aa73-5271-9ae8-20c421bef3fb,S11 8UX
Department of Health,NHS Sheffield CCG,11/30/2020,C&M-GMS Cost of Drugs -Dispensing,LOCAL ENHANCED SERVICES,OUGHTIBRIDGE SURGERY,34717879,"-16,879.71",DRGREC,S35 0FW
Department of Health,NHS Sheffield CCG,11/30/2020,C&M-GMS GP Statutory Levy,PRC DELEGATED CO-COMMISSIONING,OUGHTIBRIDGE SURGERY,34717879,-201.46,STATL,S35 0FW
Department of Health,NHS Sheffield CCG,11/30/2020,C&M-GMS PCN DES Participation,PRC DELEGATED CO-COMMISSIONING,OUGHTIBRIDGE SURGERY,34717879,-892.20,PARTIG,S35 0FW
Department of Health,NHS Sheffield CCG,11/30/2020,C&M-GMS Prem Rates,PRC DELEGATED CO-COMMISSIONING,OUGHTIBRIDGE SURGERY,34717879,"-2,394.75",RANDR,S35 0FW
Department of Health,NHS Sheffield CCG,11/30/2020,C&M-GMS PrscChrgsCll&RmttdbyGPCntra,PRC DELEGATED CO-COMMISSIONING,OUGHTIBRIDGE SURGERY,34717879,-594.75,DRGPRX,S35 0FW
Department of Health,NHS Sheffield CCG,11/30/2020,C&M-GMS Cost of Drugs -Dispensing,LOCAL ENHANCED SERVICES,OUGHTIBRIDGE SURGERY,34717881,"30,215.67","DRGD,DRGADV",S35 0FW
Department of Health,NHS Sheffield CCG,11/30/2020,C&M-GMS Global Sum,PRC DELEGATED CO-COMMISSIONING,OUGHTIBRIDGE SURGERY,34717881,"45,143.64",GSUMG,S35 0FW
Department of Health,NHS Sheffield CCG,11/30/2020,C&M-GMS PCN DES Participation,PRC DELEGATED CO-COMMISSIONING,OUGHTIBRIDGE SURGERY,34717881,"1,785.92",PARTIG,S35 0FW
Department of Health,NHS Sheffield CCG,11/30/2020,C&M-GMS Prem Notional Rent,PRC DELEGATED CO-COMMISSIONING,OUGHTIBRIDGE SURGERY,34717881,"3,957.33",NRENT,S35 0FW
Department of Health,NHS Sheffield CCG,11/30/2020,C&M-GMS Prof Fees Dispensing,PRC DELEGATED CO-COMMISSIONING,OUGHTIBRIDGE SURGERY,34717881,"4,591.91",DRGDPF,S35 0FW
Department of Health,NHS Sheffield CCG,11/30/2020,C&M-GMS PrscrptnChrgsColl&RmttdbyGP,LOCAL ENHANCED SERVICES,OUGHTIBRIDGE SURGERY,34717881,594.75,DRGPR,S35 0FW
Department of Health,NHS Sheffield CCG,11/30/2020,C&M-GMS QOF Aspiration,PRC DELEGATED CO-COMMISSIONING,OUGHTIBRIDGE SURGERY,34717881,"4,282.40",QUASPG,S35 0FW
Department of Health,NHS Sheffield CCG,11/30/2020,C&M-PMS Contract Value,PRC DELEGATED CO-COMMISSIONING,OWLTHORPE MEDICAL CENTRE,34513184,"33,953.23",BABALP,S20 6PD
Department of Health,NHS Sheffield CCG,11/30/2020,C&M-PMS DES Minor Surgery,PRC DELEGATED CO-COMMISSIONING,OWLTHORPE MEDICAL CENTRE,34513184,40.00,DEMSUP,S20 6PD
Department of Health,NHS Sheffield CCG,11/30/2020,C&M-PMS Funding Differential Review,PRC DELEGATED CO-COMMISSIONING,OWLTHORPE MEDICAL CENTRE,34513184,280.01,ZFUNFP,S20 6PD
Department of Health,NHS Sheffield CCG,11/30/2020,C&M-PMS Out of Hours Opt Outs,PRC DELEGATED CO-COMMISSIONING,OWLTHORPE MEDICAL CENTRE,34513184,2.82,APMOOH,S20 6PD
Department of Health,NHS Sheffield CCG,11/30/2020,C&M-PMS PCN DES Participation,PRC DELEGATED CO-COMMISSIONING,OWLTHORPE MEDICAL CENTRE,34513184,"1,267.74",PARTIP,S20 6PD
Department of Health,NHS Sheffield CCG,11/30/2020,C&M-PMS PCO Other,PRC DELEGATED CO-COMMISSIONING,OWLTHORPE MEDICAL CENTRE,34513184,305.40,CQCRP,S20 6PD
Department of Health,NHS Sheffield CCG,11/30/2020,C&M-PMS Prem Actual Rent,PRC DELEGATED CO-COMMISSIONING,OWLTHORPE MEDICAL CENTRE,34513184,"7,539.58",RENT,S20 6PD
Department of Health,NHS Sheffield CCG,11/30/2020,C&M-PMS QOF Aspiration,PRC DELEGATED CO-COMMISSIONING,OWLTHORPE MEDICAL CENTRE,34513184,"3,728.91",QUASPP,S20 6PD
Department of Health,NHS Sheffield CCG,11/30/2020,C&M-PMS Contract Value,PRC DELEGATED CO-COMMISSIONING,PAGE HALL MEDICAL CENTRE,34513186,"58,569.29",BABALP,S4 8GB
Department of Health,NHS Sheffield CCG,11/30/2020,C&M-PMS DES Learn Dsblty Hlth Chk,PRC DELEGATED CO-COMMISSIONING,PAGE HALL MEDICAL CENTRE,34513186,"1,820.00",LEARNP,S4 8GB
Department of Health,NHS Sheffield CCG,11/30/2020,C&M-PMS Funding Differential Review,PRC DELEGATED CO-COMMISSIONING,PAGE HALL MEDICAL CENTRE,34513186,"1,161.37",ZFUNFP,S4 8GB
Department of Health,NHS Sheffield CCG,11/30/2020,C&M-PMS Out of Hours Opt Outs,PRC DELEGATED CO-COMMISSIONING,PAGE HALL MEDICAL CENTRE,34513186,30.02,APMOOH,S4 8GB
Department of Health,NHS Sheffield CCG,11/30/2020,C&M-PMS PCN DES Participation,PRC DELEGATED CO-COMMISSIONING,PAGE HALL MEDICAL CENTRE,34513186,"2,194.23",PARTIP,S4 8GB
Department of Health,NHS Sheffield CCG,11/30/2020,C&M-PMS PCO Other,PRC DELEGATED CO-COMMISSIONING,PAGE HALL MEDICAL CENTRE,34513186,502.90,CQCRP,S4 8GB
Department of Health,NHS Sheffield CCG,11/30/2020,C&M-PMS Prem Notional Rent,PRC DELEGATED CO-COMMISSIONING,PAGE HALL MEDICAL CENTRE,34513186,"4,833.33",NRENT,S4 8GB
Department of Health,NHS Sheffield CCG,11/30/2020,C&M-PMS Prem Rates,PRC DELEGATED CO-COMMISSIONING,PAGE HALL MEDICAL CENTRE,34513186,"5,039.02",RANDRP,S4 8GB
Department of Health,NHS Sheffield CCG,11/30/2020,C&M-PMS Prem Water Rates,PRC DELEGATED CO-COMMISSIONING,PAGE HALL MEDICAL CENTRE,34513186,58.39,RAMWP,S4 8GB
Department of Health,NHS Sheffield CCG,11/30/2020,C&M-PMS QOF Aspiration,PRC DELEGATED CO-COMMISSIONING,PAGE HALL MEDICAL CENTRE,34513186,"3,909.14",QUASPP,S4 8GB
Department of Health,NHS Sheffield CCG,11/30/2020,C&M-PMS LES Care Home/Nursing Home,LOCAL ENHANCED SERVICES,PITSMOOR SURGERY,34702421,"29,176.99",FOUNDRY CARE HOMES 15 MAY TO SEPT 20 £120,S3 9DL
Department of Health,NHS Sheffield CCG,11/30/2020,C&M-PMS LES Care Home/Nursing Home,LOCAL ENHANCED SERVICES,PITSMOOR SURGERY,34702429,"43,059.21",FOUNDRY CARE HOMES 15 MAY TO NOV 20 £130,S3 9DL
Department of Health,NHS Sheffield CCG,11/30/2020,C&M-PMS Contract Value,PRC DELEGATED CO-COMMISSIONING,PORTER BROOK MEDICAL CENTRE,34513187,"-5,872.68",BABALP,S11 8HN
Department of Health,NHS Sheffield CCG,11/30/2020,C&M-PMS GP Statutory Levy,PRC DELEGATED CO-COMMISSIONING,PORTER BROOK MEDICAL CENTRE,34513187,"-1,016.61",STATL,S11 8HN
Department of Health,NHS Sheffield CCG,11/30/2020,C&M-PMS Out of Hours Opt Outs,PRC DELEGATED CO-COMMISSIONING,PORTER BROOK MEDICAL CENTRE,34513187,"-8,057.86",APMOOH,S11 8HN
Department of Health,NHS Sheffield CCG,11/30/2020,C&M-PMS PCN DES Participation,PRC DELEGATED CO-COMMISSIONING,PORTER BROOK MEDICAL CENTRE,34513187,"-3,182.41",PARTIP,S11 8HN
Department of Health,NHS Sheffield CCG,11/30/2020,C&M-PMS Contract Value,PRC DELEGATED CO-COMMISSIONING,PORTER BROOK MEDICAL CENTRE,34513188,"169,776.61",BABALP,S11 8HN
Department of Health,NHS Sheffield CCG,11/30/2020,C&M-PMS DES Minor Surgery,PRC DELEGATED CO-COMMISSIONING,PORTER BROOK MEDICAL CENTRE,34513188,"1,135.00",DEMSUP,S11 8HN
Department of Health,NHS Sheffield CCG,11/30/2020,C&M-PMS Funding Differential Review,PRC DELEGATED CO-COMMISSIONING,PORTER BROOK MEDICAL CENTRE,34513188,"3,636.27",ZFUNFP,S11 8HN
Department of Health,NHS Sheffield CCG,11/30/2020,C&M-PMS Out of Hours Opt Outs,PRC DELEGATED CO-COMMISSIONING,PORTER BROOK MEDICAL CENTRE,34513188,279.02,APMOOH,S11 8HN
Department of Health,NHS Sheffield CCG,11/30/2020,C&M-PMS PCN DES Participation,PRC DELEGATED CO-COMMISSIONING,PORTER BROOK MEDICAL CENTRE,34513188,"6,370.24",PARTIP,S11 8HN
Department of Health,NHS Sheffield CCG,11/30/2020,C&M-PMS Prem Actual Rent,PRC DELEGATED CO-COMMISSIONING,PORTER BROOK MEDICAL CENTRE,34513188,"1,666.67",RENT,S11 8HN
Department of Health,NHS Sheffield CCG,11/30/2020,C&M-PMS Prem Notional Rent,PRC DELEGATED CO-COMMISSIONING,PORTER BROOK MEDICAL CENTRE,34513188,"9,666.67",NRENT,S11 8HN
Department of Health,NHS Sheffield CCG,11/30/2020,C&M-PMS Prem Rates,PRC DELEGATED CO-COMMISSIONING,PORTER BROOK MEDICAL CENTRE,34513188,"2,658.00",RANDRP,S11 8HN
Department of Health,NHS Sheffield CCG,11/30/2020,C&M-PMS QOF Aspiration,PRC DELEGATED CO-COMMISSIONING,PORTER BROOK MEDICAL CENTRE,34513188,"10,115.59",QUASPP,S11 8HN
Department of Health,NHS Sheffield CCG,11/30/2020,Clinical&Medical-Commercial Sector,PATIENT TRANSPORT,PREMIER CARE DIRECT LTD,34458388,"112,480.55",https://nww.einvoice-prod.sbs.nhs.uk:8179/invoicepdf/a790733f-89df-5c81-91ad-579289dbfecc,DN4 5NU
Department of Health,NHS Sheffield CCG,11/30/2020,Clinical&Medical-Commercial Sector,PATIENT TRANSPORT,PREMIER CARE DIRECT LTD,34768496,"112,480.55",https://nww.einvoice-prod.sbs.nhs.uk:8179/invoicepdf/eb13021d-0d27-53ee-90d0-ab7664eabeb1,DN4 5NU
Department of Health,NHS Sheffield CCG,11/30/2020,C&M-GMS IT Comm Servs -GP Practices,PRIMARY CARE IT,PRIMARY CARE SHEFFIELD LTD,34449372,"-171,000.00",,S9 4EU
Department of Health,NHS Sheffield CCG,11/30/2020,C&M-APMS DES Immediate&1st Response,LOCAL ENHANCED SERVICES,PRIMARY CARE SHEFFIELD LTD,34544929,"38,800.00",,S9 4EU
Department of Health,NHS Sheffield CCG,11/30/2020,C&M-GMS LES Basket of Procedures,LOCAL ENHANCED SERVICES,PRIMARY CARE SHEFFIELD LTD,34544936,"53,558.33",,S9 4EU
Department of Health,NHS Sheffield CCG,11/30/2020,C&M-APMS DES Immediate&1st Response,LOCAL ENHANCED SERVICES,PRIMARY CARE SHEFFIELD LTD,34544946,"155,200.00",,S9 4EU
Department of Health,NHS Sheffield CCG,11/30/2020,C&M-APMS DES Extended Hours Access,GP FORWARD VIEW,PRIMARY CARE SHEFFIELD LTD,34544958,"302,608.33",,S9 4EU
Department of Health,NHS Sheffield CCG,11/30/2020,Clinical&Medical-Independent Sector,MENTAL HEALTH SERVICES - OTHER,PRIMARY CARE SHEFFIELD LTD,34615149,"30,583.50",,S9 4EU
Department of Health,NHS Sheffield CCG,11/30/2020,C&M-APMS DES Immediate&1st Response,LOCAL ENHANCED SERVICES,PRIMARY CARE SHEFFIELD LTD,34646073,"36,603.30",,S9 4EU
Department of Health,NHS Sheffield CCG,11/30/2020,C&M- PCN DES CARE HOME PREMIUM,PRC DELEGATED CO-COMMISSIONING,PRIMARY CARE SHEFFIELD LTD,34682229,"7,340.00",,S12 3GH
Department of Health,NHS Sheffield CCG,11/30/2020,C&M-PMS LES Care Home/Nursing Home,LOCAL ENHANCED SERVICES,PRIMARY CARE SHEFFIELD LTD,34682229,"16,731.17",https://nww.einvoice-prod.sbs.nhs.uk:8179/invoicepdf/f24cd6f3-bd9e-5fe6-8287-64409ef83e9a,S12 3GH
Department of Health,NHS Sheffield CCG,11/30/2020,C&M-PMS LES Care Home/Nursing Home,LOCAL ENHANCED SERVICES,PRIMARY CARE SHEFFIELD LTD,34682229,"20,534.83",,S12 3GH
Department of Health,NHS Sheffield CCG,11/30/2020,C&M- PCN DES CARE HOME PREMIUM,PRC DELEGATED CO-COMMISSIONING,PRIMARY CARE SHEFFIELD LTD,34682237,"5,300.00",,S12 3GH
Department of Health,NHS Sheffield CCG,11/30/2020,C&M-PMS LES Care Home/Nursing Home,LOCAL ENHANCED SERVICES,PRIMARY CARE SHEFFIELD LTD,34682237,"12,081.09",https://nww.einvoice-prod.sbs.nhs.uk:8179/invoicepdf/e025f0c1-94ad-57f5-8bad-37fffe3978f6,S12 3GH
Department of Health,NHS Sheffield CCG,11/30/2020,C&M-PMS LES Care Home/Nursing Home,LOCAL ENHANCED SERVICES,PRIMARY CARE SHEFFIELD LTD,34682237,"18,403.18",,S12 3GH
Department of Health,NHS Sheffield CCG,11/30/2020,C&M- PCN DES CARE HOME PREMIUM,PRC DELEGATED CO-COMMISSIONING,PRIMARY CARE SHEFFIELD LTD,34682249,"5,960.00",,S12 3GH
Department of Health,NHS Sheffield CCG,11/30/2020,C&M-PMS LES Care Home/Nursing Home,LOCAL ENHANCED SERVICES,PRIMARY CARE SHEFFIELD LTD,34682249,"13,585.54",https://nww.einvoice-prod.sbs.nhs.uk:8179/invoicepdf/c77ec3fb-aad8-5356-8475-974a97b31d70,S12 3GH
Department of Health,NHS Sheffield CCG,11/30/2020,C&M-PMS LES Care Home/Nursing Home,LOCAL ENHANCED SERVICES,PRIMARY CARE SHEFFIELD LTD,34682249,"17,195.27",,S12 3GH
Department of Health,NHS Sheffield CCG,11/30/2020,C&M- PCN DES CARE HOME PREMIUM,PRC DELEGATED CO-COMMISSIONING,PRIMARY CARE SHEFFIELD LTD,34682255,"4,540.00",,S12 3GH
Department of Health,NHS Sheffield CCG,11/30/2020,C&M-PMS LES Care Home/Nursing Home,LOCAL ENHANCED SERVICES,PRIMARY CARE SHEFFIELD LTD,34682255,"10,348.70",https://nww.einvoice-prod.sbs.nhs.uk:8179/invoicepdf/970896d2-97f7-5acb-944d-d9a8e0939739,S12 3GH
Department of Health,NHS Sheffield CCG,11/30/2020,C&M-PMS LES Care Home/Nursing Home,LOCAL ENHANCED SERVICES,PRIMARY CARE SHEFFIELD LTD,34682255,"15,632.04",,S12 3GH
Department of Health,NHS Sheffield CCG,11/30/2020,C&M- PCN DES CARE HOME PREMIUM,PRC DELEGATED CO-COMMISSIONING,PRIMARY CARE SHEFFIELD LTD,34682274,"6,420.00",,S12 3GH
Department of Health,NHS Sheffield CCG,11/30/2020,C&M-PMS LES Care Home/Nursing Home,LOCAL ENHANCED SERVICES,PRIMARY CARE SHEFFIELD LTD,34682274,"14,634.07",https://nww.einvoice-prod.sbs.nhs.uk:8179/invoicepdf/7f2d82c1-7365-51b9-aa9b-e9736997c01a,S12 3GH
Department of Health,NHS Sheffield CCG,11/30/2020,C&M-PMS LES Care Home/Nursing Home,LOCAL ENHANCED SERVICES,PRIMARY CARE SHEFFIELD LTD,34682274,"21,174.32",,S12 3GH
Department of Health,NHS Sheffield CCG,11/30/2020,C&M- PCN DES CARE HOME PREMIUM,PRC DELEGATED CO-COMMISSIONING,PRIMARY CARE SHEFFIELD LTD,34724413,"9,440.00",,S12 3GH
Department of Health,NHS Sheffield CCG,11/30/2020,C&M-PMS LES Care Home/Nursing Home,LOCAL ENHANCED SERVICES,PRIMARY CARE SHEFFIELD LTD,34724413,"21,518.02",https://nww.einvoice-prod.sbs.nhs.uk:8179/invoicepdf/65499035-9ab5-5b20-bc2c-8c8a45281568,S12 3GH
Department of Health,NHS Sheffield CCG,11/30/2020,C&M-PMS LES Care Home/Nursing Home,LOCAL ENHANCED SERVICES,PRIMARY CARE SHEFFIELD LTD,34724413,"32,685.20",,S12 3GH
Department of Health,NHS Sheffield CCG,11/30/2020,C&M- PCN DES CARE HOME PREMIUM,PRC DELEGATED CO-COMMISSIONING,PRIMARY CARE SHEFFIELD LTD,34724433,"7,980.00",,S12 3GH
Department of Health,NHS Sheffield CCG,11/30/2020,C&M-PMS LES Care Home/Nursing Home,LOCAL ENHANCED SERVICES,PRIMARY CARE SHEFFIELD LTD,34724433,"18,190.02",https://nww.einvoice-prod.sbs.nhs.uk:8179/invoicepdf/b20cc0da-4a5c-503d-9387-78aba696be09,S12 3GH
Department of Health,NHS Sheffield CCG,11/30/2020,C&M-PMS LES Care Home/Nursing Home,LOCAL ENHANCED SERVICES,PRIMARY CARE SHEFFIELD LTD,34724433,"27,142.92",,S12 3GH
Department of Health,NHS Sheffield CCG,11/30/2020,C&M-OES Childrens Schemes,LOCAL ENHANCED SERVICES,PRIMARY EYECARE SERVICES LTD,34494220,300.00,,EC1R 0DG
Department of Health,NHS Sheffield CCG,11/30/2020,C&M-OES Glaucoma,LOCAL ENHANCED SERVICES,PRIMARY EYECARE SERVICES LTD,34494220,"1,085.00",,EC1R 0DG
Department of Health,NHS Sheffield CCG,11/30/2020,C&M-OES Intra-ocular Ocular Hypertn,LOCAL ENHANCED SERVICES,PRIMARY EYECARE SERVICES LTD,34494220,280.00,,EC1R 0DG
Department of Health,NHS Sheffield CCG,11/30/2020,C&M-OES PEARS,LOCAL ENHANCED SERVICES,PRIMARY EYECARE SERVICES LTD,34494220,"23,933.50",,EC1R 0DG
Department of Health,NHS Sheffield CCG,11/30/2020,C&M-OES Childrens Schemes,LOCAL ENHANCED SERVICES,PRIMARY EYECARE SERVICES LTD,34494229,250.00,,EC1R 0DG
Department of Health,NHS Sheffield CCG,11/30/2020,C&M-OES Glaucoma,LOCAL ENHANCED SERVICES,PRIMARY EYECARE SERVICES LTD,34494229,"1,425.00",,EC1R 0DG
Department of Health,NHS Sheffield CCG,11/30/2020,C&M-OES Intra-ocular Ocular Hypertn,LOCAL ENHANCED SERVICES,PRIMARY EYECARE SERVICES LTD,34494229,240.00,,EC1R 0DG
Department of Health,NHS Sheffield CCG,11/30/2020,C&M-OES PEARS,LOCAL ENHANCED SERVICES,PRIMARY EYECARE SERVICES LTD,34494229,"24,303.75",,EC1R 0DG
Department of Health,NHS Sheffield CCG,11/30/2020,Cont Care-Physical Disab (<65),CHC ADULT FULLY FUNDED,PRIORY GROUP LTD,34535712,"35,505.70",CHC SCHEDULE NOVEMBER 2020 - Richmond Heights Care Home (The Priory Group),DL2 1TS
Department of Health,NHS Sheffield CCG,11/30/2020,C&M-PMS Contract Value,PRC DELEGATED CO-COMMISSIONING,RICHMOND MEDICAL CENTRE,34513190,"69,054.60",BABALP,S13 8NA
Department of Health,NHS Sheffield CCG,11/30/2020,C&M-PMS DES Learn Dsblty Hlth Chk,PRC DELEGATED CO-COMMISSIONING,RICHMOND MEDICAL CENTRE,34513190,560.00,LEARNP,S13 8NA
Department of Health,NHS Sheffield CCG,11/30/2020,C&M-PMS DES Minor Surgery,PRC DELEGATED CO-COMMISSIONING,RICHMOND MEDICAL CENTRE,34513190,360.00,DEMSUP,S13 8NA
Department of Health,NHS Sheffield CCG,11/30/2020,C&M-PMS Funding Differential Review,PRC DELEGATED CO-COMMISSIONING,RICHMOND MEDICAL CENTRE,34513190,"1,009.63",ZFUNFP,S13 8NA
Department of Health,NHS Sheffield CCG,11/30/2020,C&M-PMS PCN DES Participation,PRC DELEGATED CO-COMMISSIONING,RICHMOND MEDICAL CENTRE,34513190,"1,278.48",PARTIP,S13 8NA
Department of Health,NHS Sheffield CCG,11/30/2020,C&M-PMS PCO Other,PRC DELEGATED CO-COMMISSIONING,RICHMOND MEDICAL CENTRE,34513190,566.10,CQCRP,S13 8NA
Department of Health,NHS Sheffield CCG,11/30/2020,C&M-PMS Prem Notional Rent,PRC DELEGATED CO-COMMISSIONING,RICHMOND MEDICAL CENTRE,34513190,"4,731.00",NRENT,S13 8NA
Department of Health,NHS Sheffield CCG,11/30/2020,C&M-PMS Prem Rates,PRC DELEGATED CO-COMMISSIONING,RICHMOND MEDICAL CENTRE,34513190,"1,509.00",RANDRP,S13 8NA
Department of Health,NHS Sheffield CCG,11/30/2020,C&M-PMS QOF Aspiration,PRC DELEGATED CO-COMMISSIONING,RICHMOND MEDICAL CENTRE,34513190,"7,878.95",QUASPP,S13 8NA
Department of Health,NHS Sheffield CCG,11/30/2020,Cont Care-Physical Disab (<65),CHC ADULT FULLY FUNDED,ROSEBERRY CARE CENTRES,34535723,"35,980.62",CHC SCHEDULE NOVEMBER 2020 - Chapel Lodge Nursing Home (Roseberry),S35 2XF
Department of Health,NHS Sheffield CCG,11/30/2020,Cont Care-Physical Disab (<65),CHC ADULT FULLY FUNDED,ROSEBERRY CARE CENTRES,34535724,"56,177.50",CHC SCHEDULE NOVEMBER 2020 - Haythorne Place Nursing Home (Roseberry),S5 6AB
Department of Health,NHS Sheffield CCG,11/30/2020,Cont Care-Physical Disab (<65),CHC ADULT FULLY FUNDED,ROSEBERRY CARE CENTRES,34535733,"35,743.85",CHC SCHEDULE NOVEMBER 2020 - Norbury Court Care Centre (Roseberry),S4 7AJ
Department of Health,NHS Sheffield CCG,11/30/2020,Cont Care-Funded Nursing Care Allow,FUNDED NURSING CARE,ROSEBERRY CARE CENTRES,34535771,"27,129.35",FNC SCHEDULE NOVEMBER 2020 - Haythorne Place Nursing Home (Roseberry),S5 6AB
Department of Health,NHS Sheffield CCG,11/30/2020,Hcare Srv Rec Fdtn Trust-Contract Baseline,ACUTE COMMISSIONING,ROTHERHAM NHS FOUNDATION TRUST,34578610,"618,988.29",,S60 2UD
Department of Health,NHS Sheffield CCG,11/30/2020,C&M-APMS OOH Opt Outs,PRC DELEGATED CO-COMMISSIONING,RUSTLINGS ROAD MEDICAL CENTRE,34513194,4.29,APMOOA,S11 7AB
Department of Health,NHS Sheffield CCG,11/30/2020,C&M-PMS Contract Value,PRC DELEGATED CO-COMMISSIONING,RUSTLINGS ROAD MEDICAL CENTRE,34513194,"28,963.43",BABALP,S11 7AB
Department of Health,NHS Sheffield CCG,11/30/2020,C&M-PMS DES Learn Dsblty Hlth Chk,PRC DELEGATED CO-COMMISSIONING,RUSTLINGS ROAD MEDICAL CENTRE,34513194,140.00,LEARNP,S11 7AB
Department of Health,NHS Sheffield CCG,11/30/2020,C&M-PMS Funding Differential Review,PRC DELEGATED CO-COMMISSIONING,RUSTLINGS ROAD MEDICAL CENTRE,34513194,565.04,ZFUNFP,S11 7AB
Department of Health,NHS Sheffield CCG,11/30/2020,C&M-PMS PCN DES Participation,PRC DELEGATED CO-COMMISSIONING,RUSTLINGS ROAD MEDICAL CENTRE,34513194,"1,072.99",PARTIP,S11 7AB
Department of Health,NHS Sheffield CCG,11/30/2020,C&M-PMS PCO Other,PRC DELEGATED CO-COMMISSIONING,RUSTLINGS ROAD MEDICAL CENTRE,34513194,316.40,CQCRP,S11 7AB
Department of Health,NHS Sheffield CCG,11/30/2020,C&M-PMS Prem Notional Rent,PRC DELEGATED CO-COMMISSIONING,RUSTLINGS ROAD MEDICAL CENTRE,34513194,"1,312.50",NRENT,S11 7AB
Department of Health,NHS Sheffield CCG,11/30/2020,C&M-PMS QOF Aspiration,PRC DELEGATED CO-COMMISSIONING,RUSTLINGS ROAD MEDICAL CENTRE,34513194,"2,857.73",QUASPP,S11 7AB
Department of Health,NHS Sheffield CCG,11/30/2020,C&M-PMS Contract Value,PRC DELEGATED CO-COMMISSIONING,SELBORNE ROAD MEDICAL CENTRE,34513192,"19,674.52",BABALP,S10 5ND
Department of Health,NHS Sheffield CCG,11/30/2020,C&M-PMS Funding Differential Review,PRC DELEGATED CO-COMMISSIONING,SELBORNE ROAD MEDICAL CENTRE,34513192,478.42,ZFUNFP,S10 5ND
Department of Health,NHS Sheffield CCG,11/30/2020,C&M-PMS PCN DES Participation,PRC DELEGATED CO-COMMISSIONING,SELBORNE ROAD MEDICAL CENTRE,34513192,732.30,PARTIP,S10 5ND
Department of Health,NHS Sheffield CCG,11/30/2020,C&M-PMS PCO Other,PRC DELEGATED CO-COMMISSIONING,SELBORNE ROAD MEDICAL CENTRE,34513192,203.80,CQCRP,S10 5ND
Department of Health,NHS Sheffield CCG,11/30/2020,C&M-PMS Prem Notional Rent,PRC DELEGATED CO-COMMISSIONING,SELBORNE ROAD MEDICAL CENTRE,34513192,"1,735.42",NRENT,S10 5ND
Department of Health,NHS Sheffield CCG,11/30/2020,C&M-PMS Prem Rates,PRC DELEGATED CO-COMMISSIONING,SELBORNE ROAD MEDICAL CENTRE,34513192,611.00,RANDRP,S10 5ND
Department of Health,NHS Sheffield CCG,11/30/2020,C&M-PMS QOF Aspiration,PRC DELEGATED CO-COMMISSIONING,SELBORNE ROAD MEDICAL CENTRE,34513192,"1,877.44",QUASPP,S10 5ND
Department of Health,NHS Sheffield CCG,11/30/2020,Cont Care-Physical Disab (<65),CHC ADULT FULLY FUNDED,SEVEN HILLS NURSING HOME,34535715,"45,324.97",CHC SCHEDULE NOVEMBER 2020 - Seven Hills Nursing Home,S11 9AA
Department of Health,NHS Sheffield CCG,11/30/2020,C&M-GMS Cost of Drugs -Prescribing,LOCAL ENHANCED SERVICES,SHARROW LANE MEDICAL CENTRE,34717887,141.76,DRGP,S11 8AN
Department of Health,NHS Sheffield CCG,11/30/2020,C&M-GMS Global Sum,PRC DELEGATED CO-COMMISSIONING,SHARROW LANE MEDICAL CENTRE,34717887,"25,224.04",GSUMG,S11 8AN
Department of Health,NHS Sheffield CCG,11/30/2020,C&M-GMS PCN DES Participation,PRC DELEGATED CO-COMMISSIONING,SHARROW LANE MEDICAL CENTRE,34717887,976.69,PARTIG,S11 8AN
Department of Health,NHS Sheffield CCG,11/30/2020,C&M-GMS PCO Other,PRC DELEGATED CO-COMMISSIONING,SHARROW LANE MEDICAL CENTRE,34717887,274.00,CQCRG,S11 8AN
Department of Health,NHS Sheffield CCG,11/30/2020,C&M-GMS Prem Notional Rent,PRC DELEGATED CO-COMMISSIONING,SHARROW LANE MEDICAL CENTRE,34717887,"2,741.67",NRENT,S11 8AN
Department of Health,NHS Sheffield CCG,11/30/2020,C&M-GMS Prof Fees Prescribing,PRC DELEGATED CO-COMMISSIONING,SHARROW LANE MEDICAL CENTRE,34717887,39.15,DRGPPF,S11 8AN
Department of Health,NHS Sheffield CCG,11/30/2020,C&M-GMS QOF Aspiration,PRC DELEGATED CO-COMMISSIONING,SHARROW LANE MEDICAL CENTRE,34717887,"2,676.86",QUASPG,S11 8AN
Department of Health,NHS Sheffield CCG,11/30/2020,Hcare Srv Rec Fdtn Trust-Contract Baseline,ACUTE CHILDRENS SERVICES,SHEFFIELD CHILDRENS NHS FOUNDATION TRUST,34578604,"3,585,348.98",,S10 2TH
Department of Health,NHS Sheffield CCG,11/30/2020,Clinical&Medical-Serv Recd-F Trsts,ACUTE CHILDRENS SERVICES,SHEFFIELD CHILDRENS NHS FOUNDATION TRUST,34578605,"2,762,663.30",,S10 2TH
Department of Health,NHS Sheffield CCG,11/30/2020,Other Gen Supplies & Srv,BEREAVEMENT SERVICE,SHEFFIELD CHILDRENS NHS FOUNDATION TRUST,34615143,"41,344.00",https://nww.einvoice-prod.sbs.nhs.uk:8179/invoicepdf/6ab9206f-c497-5144-a9b1-2c0a33ad6e5a,S10 2TH
Department of Health,NHS Sheffield CCG,11/30/2020,Cont Care-Physical Disab (65+),CHC ADULT FULLY FUNDED,SHEFFIELD CITY COUNCIL,34543449,"945,993.25",RMT SCHEDULE NOVEMBER 2020,S1 1UJ
Department of Health,NHS Sheffield CCG,11/30/2020,Cont Care- Prior Year Payments,CHC ADULT FULLY FUNDED,SHEFFIELD CITY COUNCIL,34543451,"31,552.65",RMT SCHEDULE NOVEMBER 2020PY,S1 1UJ
Department of Health,NHS Sheffield CCG,11/30/2020,Cont Care- Children,CHC CHILDREN,SHEFFIELD CITY COUNCIL,34543453,"94,012.42",CHILDRENS SCHEDULE NOVEMBER 2020,S1 1UJ
Department of Health,NHS Sheffield CCG,11/30/2020,Clinical&Medical-Othe Public Sector,COMMUNITY SERVICES,SHEFFIELD CITY COUNCIL,34544895,"150,416.67",,S1 1UJ
Department of Health,NHS Sheffield CCG,11/30/2020,Clinical&Medical-Othe Public Sector,MENTAL HEALTH SERVICES - COLLABORATIVE COMMISSIONING,SHEFFIELD CITY COUNCIL,34544895,"83,669.09",,S1 1UJ
Department of Health,NHS Sheffield CCG,11/30/2020,Clinical&Medical-Othe Public Sector,REABLEMENT,SHEFFIELD CITY COUNCIL,34544895,"21,808.67",,S1 1UJ
Department of Health,NHS Sheffield CCG,11/30/2020,Clinical&Medical-Othe Public Sector,SAFEGUARDING,SHEFFIELD CITY COUNCIL,34544895,"16,596.33",,S1 1UJ
Department of Health,NHS Sheffield CCG,11/30/2020,Cont Care-Physical Disab (65+),CHC ADULT FULLY FUNDED,SHEFFIELD CITY COUNCIL,34544895,"59,435.47",,S1 1UJ
Department of Health,NHS Sheffield CCG,11/30/2020,Soc Care-Joint H&C Teams/Working,INTERMEDIATE CARE,SHEFFIELD CITY COUNCIL,34544895,"151,447.58",,S1 1UJ
Department of Health,NHS Sheffield CCG,11/30/2020,Soc Care-Other Soc Care,COMMISSIONING - NON ACUTE,SHEFFIELD CITY COUNCIL,34544895,"1,635,250.00",,S1 1UJ
Department of Health,NHS Sheffield CCG,11/30/2020,Soc Care-Support Prim Care,COMMUNITY SERVICES,SHEFFIELD CITY COUNCIL,34544895,"58,000.00",,S1 1UJ
Department of Health,NHS Sheffield CCG,11/30/2020,Services From Local Authorities,MENTAL HEALTH SERVICES - COLLABORATIVE COMMISSIONING,SHEFFIELD CITY COUNCIL,34682045,"35,544.84",,S1 2HH
Department of Health,NHS Sheffield CCG,11/30/2020,Contract & Agency-Agency A & C,MENTAL HEALTH SERVICES - COLLABORATIVE COMMISSIONING,SHEFFIELD CITY COUNCIL,34768500,"-28,506.00",,S1 2HH
Department of Health,NHS Sheffield CCG,11/30/2020,Clinical&Medical-Voluntary Sector,CHILD AND ADOLESCENT MENTAL HEALTH,SHEFFIELD FUTURES,34682156,"25,600.00",,S1 4GE
Department of Health,NHS Sheffield CCG,11/30/2020,Hcare Srv Rec Fdtn Trust-Contract Baseline,MENTAL HEALTH CONTRACTS,SHEFFIELD HEALTH & SOCIAL CARE NHS FOUNDATION TRUST,34578606,"8,128,989.53",,S10 3TH
Department of Health,NHS Sheffield CCG,11/30/2020,Clinical&Medical-Serv Recd-F Trsts,MENTAL HEALTH CONTRACTS,SHEFFIELD HEALTH & SOCIAL CARE NHS FOUNDATION TRUST,34578607,"962,659.10",,S10 3TH
Department of Health,NHS Sheffield CCG,11/30/2020,Hcare Srv Rec Fdtn Trust-Contract Baseline,ACUTE COMMISSIONING,SHEFFIELD TEACHING HOSPITALS NHS FOUNDATION TRUST,34578608,"37,588,203.57",,S5 7AU
Department of Health,NHS Sheffield CCG,11/30/2020,Clinical&Medical-Serv Recd-F Trsts,ACUTE COMMISSIONING,SHEFFIELD TEACHING HOSPITALS NHS FOUNDATION TRUST,34578609,"8,421,465.82",,S5 7AU
Department of Health,NHS Sheffield CCG,11/30/2020,C&M-GMS Cost of Drugs -Prescribing,LOCAL ENHANCED SERVICES,SHIREGREEN MEDICAL CENTRE,34717900,"9,646.99",DRGP,S5 0RG
Department of Health,NHS Sheffield CCG,11/30/2020,C&M-GMS Global Sum,PRC DELEGATED CO-COMMISSIONING,SHIREGREEN MEDICAL CENTRE,34717900,"59,228.26",GSUMG,S5 0RG
Department of Health,NHS Sheffield CCG,11/30/2020,C&M-GMS PCN DES Participation,PRC DELEGATED CO-COMMISSIONING,SHIREGREEN MEDICAL CENTRE,34717900,"2,389.19",PARTIG,S5 0RG
Department of Health,NHS Sheffield CCG,11/30/2020,C&M-GMS PCO Other,PRC DELEGATED CO-COMMISSIONING,SHIREGREEN MEDICAL CENTRE,34717900,496.00,CQCRG,S5 0RG
Department of Health,NHS Sheffield CCG,11/30/2020,C&M-GMS Prem Cost Rent,PRC DELEGATED CO-COMMISSIONING,SHIREGREEN MEDICAL CENTRE,34717900,"1,792.33",COST,S5 0RG
Department of Health,NHS Sheffield CCG,11/30/2020,C&M-GMS Prem Notional Rent,PRC DELEGATED CO-COMMISSIONING,SHIREGREEN MEDICAL CENTRE,34717900,"5,375.00",NRENT,S5 0RG
Department of Health,NHS Sheffield CCG,11/30/2020,C&M-GMS Prof Fees Prescribing,PRC DELEGATED CO-COMMISSIONING,SHIREGREEN MEDICAL CENTRE,34717900,"2,144.15",DRGPPF,S5 0RG
Department of Health,NHS Sheffield CCG,11/30/2020,C&M-GMS QOF Aspiration,PRC DELEGATED CO-COMMISSIONING,SHIREGREEN MEDICAL CENTRE,34717900,"6,876.28",QUASPG,S5 0RG
Department of Health,NHS Sheffield CCG,11/30/2020,C&M-PMS Contract Value,PRC DELEGATED CO-COMMISSIONING,SLOAN MEDICAL CENTRE,34513196,"97,623.77",BABALP,S8 0YH
Department of Health,NHS Sheffield CCG,11/30/2020,C&M-PMS DES Learn Dsblty Hlth Chk,PRC DELEGATED CO-COMMISSIONING,SLOAN MEDICAL CENTRE,34513196,"3,500.00",LEARNP,S8 0YH
Department of Health,NHS Sheffield CCG,11/30/2020,C&M-PMS DES Minor Surgery,PRC DELEGATED CO-COMMISSIONING,SLOAN MEDICAL CENTRE,34513196,"1,515.00",DEMSUP,S8 0YH
Department of Health,NHS Sheffield CCG,11/30/2020,C&M-PMS Funding Differential Review,PRC DELEGATED CO-COMMISSIONING,SLOAN MEDICAL CENTRE,34513196,"1,677.40",ZFUNFP,S8 0YH
Department of Health,NHS Sheffield CCG,11/30/2020,C&M-PMS PCN DES Participation,PRC DELEGATED CO-COMMISSIONING,SLOAN MEDICAL CENTRE,34513196,"3,662.66",PARTIP,S8 0YH
Department of Health,NHS Sheffield CCG,11/30/2020,C&M-PMS PCO Locum Adop/Pat/Mat,PRC DELEGATED CO-COMMISSIONING,SLOAN MEDICAL CENTRE,34513196,"4,946.36",SICKC,S8 0YH
Department of Health,NHS Sheffield CCG,11/30/2020,C&M-PMS Prem Actual Rent,PRC DELEGATED CO-COMMISSIONING,SLOAN MEDICAL CENTRE,34513196,"15,970.83",RENT,S8 0YH
Department of Health,NHS Sheffield CCG,11/30/2020,C&M-PMS Prem Notional Rent,PRC DELEGATED CO-COMMISSIONING,SLOAN MEDICAL CENTRE,34513196,747.50,NRENT,S8 0YH
Department of Health,NHS Sheffield CCG,11/30/2020,C&M-PMS Prem Rates,PRC DELEGATED CO-COMMISSIONING,SLOAN MEDICAL CENTRE,34513196,"3,478.00",RANDRP,S8 0YH
Department of Health,NHS Sheffield CCG,11/30/2020,C&M-PMS QOF Aspiration,PRC DELEGATED CO-COMMISSIONING,SLOAN MEDICAL CENTRE,34513196,"9,977.55",QUASPP,S8 0YH
Department of Health,NHS Sheffield CCG,11/30/2020,C&M-PMS Contract Value,PRC DELEGATED CO-COMMISSIONING,SOTHALL MEDICAL CENTRE,34513198,"72,255.57",BABALP,S20 1HQ
Department of Health,NHS Sheffield CCG,11/30/2020,C&M-PMS DES Learn Dsblty Hlth Chk,PRC DELEGATED CO-COMMISSIONING,SOTHALL MEDICAL CENTRE,34513198,560.00,LEARNP,S20 1HQ
Department of Health,NHS Sheffield CCG,11/30/2020,C&M-PMS DES Minor Surgery,PRC DELEGATED CO-COMMISSIONING,SOTHALL MEDICAL CENTRE,34513198,"1,060.00",DEMSUP,S20 1HQ
Department of Health,NHS Sheffield CCG,11/30/2020,C&M-PMS Funding Differential Review,PRC DELEGATED CO-COMMISSIONING,SOTHALL MEDICAL CENTRE,34513198,"1,401.44",ZFUNFP,S20 1HQ
Department of Health,NHS Sheffield CCG,11/30/2020,C&M-PMS PCN DES Participation,PRC DELEGATED CO-COMMISSIONING,SOTHALL MEDICAL CENTRE,34513198,"2,710.63",PARTIP,S20 1HQ
Department of Health,NHS Sheffield CCG,11/30/2020,C&M-PMS Prem Notional Rent,PRC DELEGATED CO-COMMISSIONING,SOTHALL MEDICAL CENTRE,34513198,"5,116.67",NRENT,S20 1HQ
Department of Health,NHS Sheffield CCG,11/30/2020,C&M-PMS Prem Rates,PRC DELEGATED CO-COMMISSIONING,SOTHALL MEDICAL CENTRE,34513198,"1,435.00",RANDRP,S20 1HQ
Department of Health,NHS Sheffield CCG,11/30/2020,C&M-PMS QOF Aspiration,PRC DELEGATED CO-COMMISSIONING,SOTHALL MEDICAL CENTRE,34513198,"8,491.33",QUASPP,S20 1HQ
Department of Health,NHS Sheffield CCG,11/30/2020,Cont Care- Adult 100% Fully Funded,CHC ADULT FULLY FUNDED,SOUTH YORKSHIRE HOUSING ASSOCIATION LTD,34483521,"25,500.00",Birch Avenue - Additional Staff November 20,S1 4HF
Department of Health,NHS Sheffield CCG,11/30/2020,Cont Care- Adult 100% Fully Funded,CHC ADULT FULLY FUNDED,SOUTH YORKSHIRE HOUSING ASSOCIATION LTD,34483522,"46,763.59",Birch Avenue - November 20,S1 4HF
Department of Health,NHS Sheffield CCG,11/30/2020,Clinical&Medical-Independent Sector,MENTAL HEALTH CONTRACTS,SOUTH YORKSHIRE HOUSING ASSOCIATION LTD,34483524,"34,434.83",Lister Avenue - November 20,S1 4HF
Department of Health,NHS Sheffield CCG,11/30/2020,Cont Care-Physical Disab (<65),CHC ADULT FULLY FUNDED,SOUTH YORKSHIRE HOUSING ASSOCIATION LTD,34535700,"61,429.75",CHC SCHEDULE NOVEMBER 2020 - Birch Avenue Nursing Home (SYHA),S35 1RQ
Department of Health,NHS Sheffield CCG,11/30/2020,Clinical&Medical-Voluntary Sector,COLLABORATIVE COMMISSIONING,SOUTH YORKSHIRE HOUSING ASSOCIATION LTD,34544853,"278,299.44",,S1 4EB
Department of Health,NHS Sheffield CCG,11/30/2020,Clinical&Medical-Independent Sector,MENTAL HEALTH CONTRACTS,SOUTH YORKSHIRE HOUSING ASSOCIATION LTD,34544920,"275,469.12",,S1 4EB
Department of Health,NHS Sheffield CCG,11/30/2020,C&M-PMS Contract Value,PRC DELEGATED CO-COMMISSIONING,SOUTHEY GREEN MEDICAL CENTRE,34513200,"25,424.03",BABALP,S5 7QB
Department of Health,NHS Sheffield CCG,11/30/2020,C&M-PMS Funding Differential Review,PRC DELEGATED CO-COMMISSIONING,SOUTHEY GREEN MEDICAL CENTRE,34513200,612.28,ZFUNFP,S5 7QB
Department of Health,NHS Sheffield CCG,11/30/2020,C&M-PMS Out of Hours Opt Outs,PRC DELEGATED CO-COMMISSIONING,SOUTHEY GREEN MEDICAL CENTRE,34513200,1.73,APMOOH,S5 7QB
Department of Health,NHS Sheffield CCG,11/30/2020,C&M-PMS PCN DES Participation,PRC DELEGATED CO-COMMISSIONING,SOUTHEY GREEN MEDICAL CENTRE,34513200,475.95,PARTIP,S5 7QB
Department of Health,NHS Sheffield CCG,11/30/2020,C&M-PMS Prem Notional Rent,PRC DELEGATED CO-COMMISSIONING,SOUTHEY GREEN MEDICAL CENTRE,34513200,"3,362.50",NRENT,S5 7QB
Department of Health,NHS Sheffield CCG,11/30/2020,C&M-PMS Prem Rates,PRC DELEGATED CO-COMMISSIONING,SOUTHEY GREEN MEDICAL CENTRE,34513200,"1,198.00",RANDRP,S5 7QB
Department of Health,NHS Sheffield CCG,11/30/2020,C&M-PMS QOF Aspiration,PRC DELEGATED CO-COMMISSIONING,SOUTHEY GREEN MEDICAL CENTRE,34513200,"2,637.54",QUASPP,S5 7QB
Department of Health,NHS Sheffield CCG,11/30/2020,Clinical&Medical-Independent Sector,ACUTE COMMISSIONING,SPAMEDICA LTD,34646069,"137,754.04",https://nww.einvoice-prod.sbs.nhs.uk:8179/invoicepdf/ba24ead1-b156-5261-a646-d40d8e96726c,M15 4SQ
Department of Health,NHS Sheffield CCG,11/30/2020,C&M-GMS Global Sum,PRC DELEGATED CO-COMMISSIONING,STANNINGTON MEDICAL CENTRE,34717907,"26,905.49",GSUMG,S6 6BX
Department of Health,NHS Sheffield CCG,11/30/2020,C&M-GMS PCO Other,PRC DELEGATED CO-COMMISSIONING,STANNINGTON MEDICAL CENTRE,34717907,243.40,CQCRG,S6 6BX
Department of Health,NHS Sheffield CCG,11/30/2020,C&M-GMS Prem Notional Rent,PRC DELEGATED CO-COMMISSIONING,STANNINGTON MEDICAL CENTRE,34717907,"2,575.00",NRENT,S6 6BX
Department of Health,NHS Sheffield CCG,11/30/2020,C&M-GMS Prem Rates,PRC DELEGATED CO-COMMISSIONING,STANNINGTON MEDICAL CENTRE,34717907,500.00,RANDR,S6 6BX
Department of Health,NHS Sheffield CCG,11/30/2020,C&M-GMS QOF Aspiration,PRC DELEGATED CO-COMMISSIONING,STANNINGTON MEDICAL CENTRE,34717907,"3,017.79",QUASPG,S6 6BX
Department of Health,NHS Sheffield CCG,11/30/2020,C&M-GMS Cost of Drugs -Prescribing,LOCAL ENHANCED SERVICES,STONECROFT MEDICAL CENTRE,34717904,"9,627.95",DRGP,S12 2LJ
Department of Health,NHS Sheffield CCG,11/30/2020,C&M-GMS Global Sum,PRC DELEGATED CO-COMMISSIONING,STONECROFT MEDICAL CENTRE,34717904,"34,360.14",GSUMG,S12 2LJ
Department of Health,NHS Sheffield CCG,11/30/2020,C&M-GMS PCN DES Participation,PRC DELEGATED CO-COMMISSIONING,STONECROFT MEDICAL CENTRE,34717904,"1,337.22",PARTIG,S12 2LJ
Department of Health,NHS Sheffield CCG,11/30/2020,C&M-GMS PCO Other,PRC DELEGATED CO-COMMISSIONING,STONECROFT MEDICAL CENTRE,34717904,286.80,CQCRG,S12 2LJ
Department of Health,NHS Sheffield CCG,11/30/2020,C&M-GMS Prem Notional Rent,PRC DELEGATED CO-COMMISSIONING,STONECROFT MEDICAL CENTRE,34717904,"2,808.33",NRENT,S12 2LJ
Department of Health,NHS Sheffield CCG,11/30/2020,C&M-GMS Prem Rates,PRC DELEGATED CO-COMMISSIONING,STONECROFT MEDICAL CENTRE,34717904,"1,235.00",RANDR,S12 2LJ
Department of Health,NHS Sheffield CCG,11/30/2020,C&M-GMS Prof Fees Prescribing,PRC DELEGATED CO-COMMISSIONING,STONECROFT MEDICAL CENTRE,34717904,"1,998.90",DRGPPF,S12 2LJ
Department of Health,NHS Sheffield CCG,11/30/2020,C&M-GMS QOF Aspiration,PRC DELEGATED CO-COMMISSIONING,STONECROFT MEDICAL CENTRE,34717904,"4,246.35",QUASPG,S12 2LJ
Department of Health,NHS Sheffield CCG,11/30/2020,Clinical&Medical-Independent Sector,MENTAL HEALTH CONTRACTS,SUSASH GB LTD T/A EAGLE HOUSE,34483523,"30,091.75",Eagle House - November 20,S11 8NP
Department of Health,NHS Sheffield CCG,11/30/2020,C&M-GMS Global Sum,PRC DELEGATED CO-COMMISSIONING,TOTLEY RISE MEDICAL CENTRE,34717910,"27,436.83",GSUMG,S17 4DQ
Department of Health,NHS Sheffield CCG,11/30/2020,C&M-GMS PCN DES Participation,PRC DELEGATED CO-COMMISSIONING,TOTLEY RISE MEDICAL CENTRE,34717910,"1,063.31",PARTIG,S17 4DQ
Department of Health,NHS Sheffield CCG,11/30/2020,C&M-GMS Prem Notional Rent,PRC DELEGATED CO-COMMISSIONING,TOTLEY RISE MEDICAL CENTRE,34717910,"1,604.17",NRENT,S17 4DQ
Department of Health,NHS Sheffield CCG,11/30/2020,C&M-GMS Prem Rates,PRC DELEGATED CO-COMMISSIONING,TOTLEY RISE MEDICAL CENTRE,34717910,"14,304.92",RANDR,S17 4DQ
Department of Health,NHS Sheffield CCG,11/30/2020,C&M-GMS QOF Aspiration,PRC DELEGATED CO-COMMISSIONING,TOTLEY RISE MEDICAL CENTRE,34717910,"2,402.35",QUASPG,S17 4DQ
Department of Health,NHS Sheffield CCG,11/30/2020,C&M-GMS Cost of Drugs -Prescribing,LOCAL ENHANCED SERVICES,TRAMWAYS MEDICAL CENTRE,34717916,"11,573.97",DRGP,S6 4JQ
Department of Health,NHS Sheffield CCG,11/30/2020,C&M-GMS DES Learn Dsblty Hlth Chk,PRC DELEGATED CO-COMMISSIONING,TRAMWAYS MEDICAL CENTRE,34717916,140.00,LEARNG,S6 4JQ
Department of Health,NHS Sheffield CCG,11/30/2020,C&M-GMS Global Sum,PRC DELEGATED CO-COMMISSIONING,TRAMWAYS MEDICAL CENTRE,34717916,"63,627.17",GSUMG,S6 4JQ
Department of Health,NHS Sheffield CCG,11/30/2020,C&M-GMS PCN DES Participation,PRC DELEGATED CO-COMMISSIONING,TRAMWAYS MEDICAL CENTRE,34717916,"2,516.92",PARTIG,S6 4JQ
Department of Health,NHS Sheffield CCG,11/30/2020,C&M-GMS PCO Other,PRC DELEGATED CO-COMMISSIONING,TRAMWAYS MEDICAL CENTRE,34717916,530.40,CQCRG,S6 4JQ
Department of Health,NHS Sheffield CCG,11/30/2020,C&M-GMS Prem Cost Rent,PRC DELEGATED CO-COMMISSIONING,TRAMWAYS MEDICAL CENTRE,34717916,"4,012.75",COST,S6 4JQ
Department of Health,NHS Sheffield CCG,11/30/2020,C&M-GMS Prem Rates,PRC DELEGATED CO-COMMISSIONING,TRAMWAYS MEDICAL CENTRE,34717916,"1,310.00",RANDR,S6 4JQ
Department of Health,NHS Sheffield CCG,11/30/2020,C&M-GMS Prof Fees Prescribing,PRC DELEGATED CO-COMMISSIONING,TRAMWAYS MEDICAL CENTRE,34717916,"2,078.83",DRGPPF,S6 4JQ
Department of Health,NHS Sheffield CCG,11/30/2020,C&M-GMS QOF Aspiration,PRC DELEGATED CO-COMMISSIONING,TRAMWAYS MEDICAL CENTRE,34717916,"5,986.86",QUASPG,S6 4JQ
Department of Health,NHS Sheffield CCG,11/30/2020,C&M-PMS Contract Value,PRC DELEGATED CO-COMMISSIONING,UNIVERSITY HEALTH SERVICE,34513203,"-14,869.61",BABALP,S3 7QP
Department of Health,NHS Sheffield CCG,11/30/2020,C&M-PMS DES Extended Hours Access,PRC DELEGATED CO-COMMISSIONING,UNIVERSITY HEALTH SERVICE,34513203,"-4,929.28",EXTHDP,S3 7QP
Department of Health,NHS Sheffield CCG,11/30/2020,C&M-PMS GP Statutory Levy,PRC DELEGATED CO-COMMISSIONING,UNIVERSITY HEALTH SERVICE,34513203,"-1,411.59",STATL,S3 7QP
Department of Health,NHS Sheffield CCG,11/30/2020,C&M-PMS Out of Hours Opt Outs,PRC DELEGATED CO-COMMISSIONING,UNIVERSITY HEALTH SERVICE,34513203,"-9,794.98",APMOOH,S3 7QP
Department of Health,NHS Sheffield CCG,11/30/2020,C&M-PMS PCN DES Clinical Director,PRC DELEGATED CO-COMMISSIONING,UNIVERSITY HEALTH SERVICE,34513203,"-2,454.44",CLINDP,S3 7QP
Department of Health,NHS Sheffield CCG,11/30/2020,C&M-PMS PCN DES PCN support,LOCAL ENHANCED SERVICES,UNIVERSITY HEALTH SERVICE,34513203,"-5,099.25",PCNSUP,S3 7QP
Department of Health,NHS Sheffield CCG,11/30/2020,C&M-PMS PCN DES Participation,PRC DELEGATED CO-COMMISSIONING,UNIVERSITY HEALTH SERVICE,34513203,"-3,871.12",PARTIP,S3 7QP
Department of Health,NHS Sheffield CCG,11/30/2020,C&M-PMS Contract Value,PRC DELEGATED CO-COMMISSIONING,UNIVERSITY HEALTH SERVICE,34513204,"205,419.18",BABALP,S3 7QP
Department of Health,NHS Sheffield CCG,11/30/2020,C&M-PMS DES Extended Hours Access,PRC DELEGATED CO-COMMISSIONING,UNIVERSITY HEALTH SERVICE,34513204,"4,929.28",EXTHDP,S3 7QP
Department of Health,NHS Sheffield CCG,11/30/2020,C&M-PMS Out of Hours Opt Outs,PRC DELEGATED CO-COMMISSIONING,UNIVERSITY HEALTH SERVICE,34513204,712.50,APMOOH,S3 7QP
Department of Health,NHS Sheffield CCG,11/30/2020,C&M-PMS PCN DES Clinical Director,PRC DELEGATED CO-COMMISSIONING,UNIVERSITY HEALTH SERVICE,34513204,"2,454.44",CLINDP,S3 7QP
Department of Health,NHS Sheffield CCG,11/30/2020,C&M-PMS PCN DES PCN support,LOCAL ENHANCED SERVICES,UNIVERSITY HEALTH SERVICE,34513204,"5,099.25",PCNSUP,S3 7QP
Department of Health,NHS Sheffield CCG,11/30/2020,C&M-PMS PCN DES Participation,PRC DELEGATED CO-COMMISSIONING,UNIVERSITY HEALTH SERVICE,34513204,"7,748.83",PARTIP,S3 7QP
Department of Health,NHS Sheffield CCG,11/30/2020,C&M-PMS PCO Locum Sickness,PRC DELEGATED CO-COMMISSIONING,UNIVERSITY HEALTH SERVICE,34513204,"12,170.10",SICKS,S3 7QP
Department of Health,NHS Sheffield CCG,11/30/2020,C&M-PMS Prem Notional Rent,PRC DELEGATED CO-COMMISSIONING,UNIVERSITY HEALTH SERVICE,34513204,"15,833.33",NRENT,S3 7QP
Department of Health,NHS Sheffield CCG,11/30/2020,C&M-PMS QOF Aspiration,PRC DELEGATED CO-COMMISSIONING,UNIVERSITY HEALTH SERVICE,34513204,"7,529.34",QUASPP,S3 7QP
Department of Health,NHS Sheffield CCG,11/30/2020,C&M-GMS Cost of Drugs -Prescribing,LOCAL ENHANCED SERVICES,UPPERTHORPE MEDICAL CENTRE,34717921,"1,052.39",DRGP,S6 3FT
Department of Health,NHS Sheffield CCG,11/30/2020,C&M-GMS Global Sum,PRC DELEGATED CO-COMMISSIONING,UPPERTHORPE MEDICAL CENTRE,34717921,"89,693.58",GSUMG,S6 3FT
Department of Health,NHS Sheffield CCG,11/30/2020,C&M-GMS PCN DES Participation,PRC DELEGATED CO-COMMISSIONING,UPPERTHORPE MEDICAL CENTRE,34717921,"3,488.03",PARTIG,S6 3FT
Department of Health,NHS Sheffield CCG,11/30/2020,C&M-GMS Prem Notional Rent,PRC DELEGATED CO-COMMISSIONING,UPPERTHORPE MEDICAL CENTRE,34717921,"2,547.83",NRENT,S6 3FT
Department of Health,NHS Sheffield CCG,11/30/2020,C&M-GMS Prem Rates,PRC DELEGATED CO-COMMISSIONING,UPPERTHORPE MEDICAL CENTRE,34717921,"1,265.20",RANDR,S6 3FT
Department of Health,NHS Sheffield CCG,11/30/2020,C&M-GMS Prof Fees Prescribing,PRC DELEGATED CO-COMMISSIONING,UPPERTHORPE MEDICAL CENTRE,34717921,138.19,DRGPPF,S6 3FT
Department of Health,NHS Sheffield CCG,11/30/2020,C&M-GMS QOF Aspiration,PRC DELEGATED CO-COMMISSIONING,UPPERTHORPE MEDICAL CENTRE,34717921,"9,300.36",QUASPG,S6 3FT
Department of Health,NHS Sheffield CCG,11/30/2020,C&M-PMS Contract Value,PRC DELEGATED CO-COMMISSIONING,UPWELL STREET SURGERY,34513206,"37,024.50",BABALP,S4 8AN
Department of Health,NHS Sheffield CCG,11/30/2020,C&M-PMS DES Minor Surgery,PRC DELEGATED CO-COMMISSIONING,UPWELL STREET SURGERY,34513206,440.00,DEMSUP,S4 8AN
Department of Health,NHS Sheffield CCG,11/30/2020,C&M-PMS Funding Differential Review,PRC DELEGATED CO-COMMISSIONING,UPWELL STREET SURGERY,34513206,911.19,ZFUNFP,S4 8AN
Department of Health,NHS Sheffield CCG,11/30/2020,C&M-PMS Out of Hours Opt Outs,PRC DELEGATED CO-COMMISSIONING,UPWELL STREET SURGERY,34513206,27.54,APMOOH,S4 8AN
Department of Health,NHS Sheffield CCG,11/30/2020,C&M-PMS PCN DES Participation,PRC DELEGATED CO-COMMISSIONING,UPWELL STREET SURGERY,34513206,"1,375.79",PARTIP,S4 8AN
Department of Health,NHS Sheffield CCG,11/30/2020,C&M-PMS Prem Notional Rent,PRC DELEGATED CO-COMMISSIONING,UPWELL STREET SURGERY,34513206,"8,137.50",NRENT,S4 8AN
Department of Health,NHS Sheffield CCG,11/30/2020,C&M-PMS Prem Rates,PRC DELEGATED CO-COMMISSIONING,UPWELL STREET SURGERY,34513206,"1,362.00",RANDRP,S4 8AN
Department of Health,NHS Sheffield CCG,11/30/2020,C&M-PMS Prem Water Rates,PRC DELEGATED CO-COMMISSIONING,UPWELL STREET SURGERY,34513206,89.52,RAMWP,S4 8AN
Department of Health,NHS Sheffield CCG,11/30/2020,C&M-PMS QOF Aspiration,PRC DELEGATED CO-COMMISSIONING,UPWELL STREET SURGERY,34513206,"3,919.87",QUASPP,S4 8AN
Department of Health,NHS Sheffield CCG,11/30/2020,C&M-PMS DES Extended Hours Access,PRC DELEGATED CO-COMMISSIONING,VALLEY MEDICAL CENTRE,34513207,"-2,507.53",EXTHDP,S36 1BX
Department of Health,NHS Sheffield CCG,11/30/2020,C&M-PMS GP Statutory Levy,PRC DELEGATED CO-COMMISSIONING,VALLEY MEDICAL CENTRE,34513207,-335.51,STATL,S36 1BX
Department of Health,NHS Sheffield CCG,11/30/2020,C&M-PMS Out of Hours Opt Outs,PRC DELEGATED CO-COMMISSIONING,VALLEY MEDICAL CENTRE,34513207,"-3,809.41",APMOOH,S36 1BX
Department of Health,NHS Sheffield CCG,11/30/2020,C&M-PMS PCN DES Clinical Director,PRC DELEGATED CO-COMMISSIONING,VALLEY MEDICAL CENTRE,34513207,"-1,248.58",CLINDP,S36 1BX
Department of Health,NHS Sheffield CCG,11/30/2020,C&M-PMS PCN DES PCN support,LOCAL ENHANCED SERVICES,VALLEY MEDICAL CENTRE,34513207,"-2,594.00",PCNSUP,S36 1BX
Department of Health,NHS Sheffield CCG,11/30/2020,C&M-PMS PCN DES Participation,PRC DELEGATED CO-COMMISSIONING,VALLEY MEDICAL CENTRE,34513207,"-1,502.00",PARTIP,S36 1BX
Department of Health,NHS Sheffield CCG,11/30/2020,C&M-PMS Contract Value,PRC DELEGATED CO-COMMISSIONING,VALLEY MEDICAL CENTRE,34513208,"80,005.18",BABALP,S36 1BX
Department of Health,NHS Sheffield CCG,11/30/2020,C&M-PMS DES Extended Hours Access,PRC DELEGATED CO-COMMISSIONING,VALLEY MEDICAL CENTRE,34513208,"2,507.53",EXTHDP,S36 1BX
Department of Health,NHS Sheffield CCG,11/30/2020,C&M-PMS DES Minor Surgery,PRC DELEGATED CO-COMMISSIONING,VALLEY MEDICAL CENTRE,34513208,995.00,DEMSUP,S36 1BX
Department of Health,NHS Sheffield CCG,11/30/2020,C&M-PMS Funding Differential Review,PRC DELEGATED CO-COMMISSIONING,VALLEY MEDICAL CENTRE,34513208,"1,519.02",ZFUNFP,S36 1BX
Department of Health,NHS Sheffield CCG,11/30/2020,C&M-PMS PCN DES Clinical Director,PRC DELEGATED CO-COMMISSIONING,VALLEY MEDICAL CENTRE,34513208,"1,248.58",CLINDP,S36 1BX
Department of Health,NHS Sheffield CCG,11/30/2020,C&M-PMS PCN DES PCN support,LOCAL ENHANCED SERVICES,VALLEY MEDICAL CENTRE,34513208,"2,594.00",PCNSUP,S36 1BX
Department of Health,NHS Sheffield CCG,11/30/2020,C&M-PMS PCN DES Participation,PRC DELEGATED CO-COMMISSIONING,VALLEY MEDICAL CENTRE,34513208,"3,006.56",PARTIP,S36 1BX
Department of Health,NHS Sheffield CCG,11/30/2020,C&M-PMS PCO Locum Adop/Pat/Mat,PRC DELEGATED CO-COMMISSIONING,VALLEY MEDICAL CENTRE,34513208,"12,239.94",SICKC,S36 1BX
Department of Health,NHS Sheffield CCG,11/30/2020,C&M-PMS Prem Rates,PRC DELEGATED CO-COMMISSIONING,VALLEY MEDICAL CENTRE,34513208,"1,784.00",RANDRP,S36 1BX
Department of Health,NHS Sheffield CCG,11/30/2020,C&M-PMS QOF Aspiration,PRC DELEGATED CO-COMMISSIONING,VALLEY MEDICAL CENTRE,34513208,"9,062.68",QUASPP,S36 1BX
Department of Health,NHS Sheffield CCG,11/30/2020,Cont Care-Physical Disab (<65),CHC ADULT FULLY FUNDED,VALORUM CARE LTD,34535737,"76,139.72",CHC SCHEDULE NOVEMBER 2020 - Valorum Care Limited (Mickley Hall),LS19 7RW
Department of Health,NHS Sheffield CCG,11/30/2020,C&M-GMS Cost of Drugs -Prescribing,LOCAL ENHANCED SERVICES,WALKLEY HOUSE MEDICAL CENTRE,34717931,"1,575.61",DRGP,S6 3TN
Department of Health,NHS Sheffield CCG,11/30/2020,C&M-GMS Global Sum,PRC DELEGATED CO-COMMISSIONING,WALKLEY HOUSE MEDICAL CENTRE,34717931,"90,751.63",GSUMG,S6 3TN
Department of Health,NHS Sheffield CCG,11/30/2020,C&M-GMS PCN DES Participation,PRC DELEGATED CO-COMMISSIONING,WALKLEY HOUSE MEDICAL CENTRE,34717931,"3,522.09",PARTIG,S6 3TN
Department of Health,NHS Sheffield CCG,11/30/2020,C&M-GMS PCO Locum Sickness,PRC DELEGATED CO-COMMISSIONING,WALKLEY HOUSE MEDICAL CENTRE,34717931,"6,750.00",LOCSIG,S6 3TN
Department of Health,NHS Sheffield CCG,11/30/2020,C&M-GMS Prem Notional Rent,PRC DELEGATED CO-COMMISSIONING,WALKLEY HOUSE MEDICAL CENTRE,34717931,"5,635.50",NRENT,S6 3TN
Department of Health,NHS Sheffield CCG,11/30/2020,C&M-GMS Prem Rates,PRC DELEGATED CO-COMMISSIONING,WALKLEY HOUSE MEDICAL CENTRE,34717931,"2,517.00",RANDR,S6 3TN
Department of Health,NHS Sheffield CCG,11/30/2020,C&M-GMS Prof Fees Prescribing,PRC DELEGATED CO-COMMISSIONING,WALKLEY HOUSE MEDICAL CENTRE,34717931,359.27,DRGPPF,S6 3TN
Department of Health,NHS Sheffield CCG,11/30/2020,C&M-GMS QOF Aspiration,PRC DELEGATED CO-COMMISSIONING,WALKLEY HOUSE MEDICAL CENTRE,34717931,"8,644.85",QUASPG,S6 3TN
Department of Health,NHS Sheffield CCG,11/30/2020,C&M-GMS Cost of Drugs -Prescribing,LOCAL ENHANCED SERVICES,WHITE HOUSE SURGERY SHEFFIELD,34717927,320.71,DRGP,S2 1SL
Department of Health,NHS Sheffield CCG,11/30/2020,C&M-GMS DES Learn Dsblty Hlth Chk,PRC DELEGATED CO-COMMISSIONING,WHITE HOUSE SURGERY SHEFFIELD,34717927,560.00,LEARNG,S2 1SL
Department of Health,NHS Sheffield CCG,11/30/2020,C&M-GMS Global Sum,PRC DELEGATED CO-COMMISSIONING,WHITE HOUSE SURGERY SHEFFIELD,34717927,"55,359.44",GSUMG,S2 1SL
Department of Health,NHS Sheffield CCG,11/30/2020,C&M-GMS PCN DES Participation,PRC DELEGATED CO-COMMISSIONING,WHITE HOUSE SURGERY SHEFFIELD,34717927,"2,112.47",PARTIG,S2 1SL
Department of Health,NHS Sheffield CCG,11/30/2020,C&M-GMS Prem Notional Rent,PRC DELEGATED CO-COMMISSIONING,WHITE HOUSE SURGERY SHEFFIELD,34717927,"9,412.50",NRENT,S2 1SL
Department of Health,NHS Sheffield CCG,11/30/2020,C&M-GMS Prem Rates,PRC DELEGATED CO-COMMISSIONING,WHITE HOUSE SURGERY SHEFFIELD,34717927,"2,483.00",RANDR,S2 1SL
Department of Health,NHS Sheffield CCG,11/30/2020,C&M-GMS Prof Fees Prescribing,PRC DELEGATED CO-COMMISSIONING,WHITE HOUSE SURGERY SHEFFIELD,34717927,128.97,DRGPPF,S2 1SL
Department of Health,NHS Sheffield CCG,11/30/2020,C&M-GMS QOF Aspiration,PRC DELEGATED CO-COMMISSIONING,WHITE HOUSE SURGERY SHEFFIELD,34717927,"6,054.80",QUASPG,S2 1SL
Department of Health,NHS Sheffield CCG,11/30/2020,Professional Fees,BEREAVEMENT SERVICE,WHOLE SYSTEMS PARTNERSHIP,34615146,"40,000.00",,HG5 9JD
Department of Health,NHS Sheffield CCG,11/30/2020,Cont Care-Physical Disab (<65),CHC ADULT FULLY FUNDED,WILLOWBECK HEALTH CARE LTD,34535720,"143,871.83",CHC SCHEDULE NOVEMBER 2020 - Willowbeck Health Care Ltd (Exemplar HC),S4 8AR
Department of Health,NHS Sheffield CCG,11/30/2020,C&M-PMS Contract Value,PRC DELEGATED CO-COMMISSIONING,WINCOBANK MEDICAL CENTRE,34513212,"63,698.76",BABALP,S9 1DJ
Department of Health,NHS Sheffield CCG,11/30/2020,C&M-PMS DES Learn Dsblty Hlth Chk,PRC DELEGATED CO-COMMISSIONING,WINCOBANK MEDICAL CENTRE,34513212,140.00,LEARNP,S9 1DJ
Department of Health,NHS Sheffield CCG,11/30/2020,C&M-PMS DES Minor Surgery,PRC DELEGATED CO-COMMISSIONING,WINCOBANK MEDICAL CENTRE,34513212,920.00,DEMSUP,S9 1DJ
Department of Health,NHS Sheffield CCG,11/30/2020,C&M-PMS Funding Differential Review,PRC DELEGATED CO-COMMISSIONING,WINCOBANK MEDICAL CENTRE,34513212,"1,151.96",ZFUNFP,S9 1DJ
Department of Health,NHS Sheffield CCG,11/30/2020,C&M-PMS Out of Hours Opt Outs,PRC DELEGATED CO-COMMISSIONING,WINCOBANK MEDICAL CENTRE,34513212,12.27,APMOOH,S9 1DJ
Department of Health,NHS Sheffield CCG,11/30/2020,C&M-PMS PCN DES Participation,PRC DELEGATED CO-COMMISSIONING,WINCOBANK MEDICAL CENTRE,34513212,"2,384.65",PARTIP,S9 1DJ
Department of Health,NHS Sheffield CCG,11/30/2020,C&M-PMS Prem Healthcentre Rent,PRC DELEGATED CO-COMMISSIONING,WINCOBANK MEDICAL CENTRE,34513212,"46,340.33",HEALTH,S9 1DJ
Department of Health,NHS Sheffield CCG,11/30/2020,C&M-PMS QOF Aspiration,PRC DELEGATED CO-COMMISSIONING,WINCOBANK MEDICAL CENTRE,34513212,"5,972.45",QUASPP,S9 1DJ
Department of Health,NHS Sheffield CCG,11/30/2020,C&M-PMS Contract Value,PRC DELEGATED CO-COMMISSIONING,WOODHOUSE HEALTH CENTRE,34513210,"101,795.51",BABALP,S13 7LY
Department of Health,NHS Sheffield CCG,11/30/2020,C&M-PMS DES Minor Surgery,PRC DELEGATED CO-COMMISSIONING,WOODHOUSE HEALTH CENTRE,34513210,"1,000.00",DEMSUP,S13 7LY
Department of Health,NHS Sheffield CCG,11/30/2020,C&M-PMS Funding Differential Review,PRC DELEGATED CO-COMMISSIONING,WOODHOUSE HEALTH CENTRE,34513210,"2,095.91",ZFUNFP,S13 7LY
Department of Health,NHS Sheffield CCG,11/30/2020,C&M-PMS Out of Hours Opt Outs,PRC DELEGATED CO-COMMISSIONING,WOODHOUSE HEALTH CENTRE,34513210,80.74,APMOOH,S13 7LY
Department of Health,NHS Sheffield CCG,11/30/2020,C&M-PMS PCN DES Participation,PRC DELEGATED CO-COMMISSIONING,WOODHOUSE HEALTH CENTRE,34513210,"1,913.91",PARTIP,S13 7LY
Department of Health,NHS Sheffield CCG,11/30/2020,C&M-PMS PCO Other,PRC DELEGATED CO-COMMISSIONING,WOODHOUSE HEALTH CENTRE,34513210,751.30,CQCRP,S13 7LY
Department of Health,NHS Sheffield CCG,11/30/2020,C&M-PMS Prem Notional Rent,PRC DELEGATED CO-COMMISSIONING,WOODHOUSE HEALTH CENTRE,34513210,"6,338.58",NRENT,S13 7LY
Department of Health,NHS Sheffield CCG,11/30/2020,C&M-PMS Prem Rates,PRC DELEGATED CO-COMMISSIONING,WOODHOUSE HEALTH CENTRE,34513210,286.27,RANDRP,S13 7LY
Department of Health,NHS Sheffield CCG,11/30/2020,C&M-PMS QOF Aspiration,PRC DELEGATED CO-COMMISSIONING,WOODHOUSE HEALTH CENTRE,34513210,"13,397.77",QUASPP,S13 7LY
Department of Health,NHS Sheffield CCG,11/30/2020,C&M-PMS Contract Value,PRC DELEGATED CO-COMMISSIONING,WOODSEATS MEDICAL CENTRE,34519776,"80,727.83",BABALP,S8 0SH
Department of Health,NHS Sheffield CCG,11/30/2020,C&M-PMS DES Minor Surgery,PRC DELEGATED CO-COMMISSIONING,WOODSEATS MEDICAL CENTRE,34519776,360.00,DEMSUP,S8 0SH
Department of Health,NHS Sheffield CCG,11/30/2020,C&M-PMS Funding Differential Review,PRC DELEGATED CO-COMMISSIONING,WOODSEATS MEDICAL CENTRE,34519776,"1,061.06",ZFUNFP,S8 0SH
Department of Health,NHS Sheffield CCG,11/30/2020,C&M-PMS Out of Hours Opt Outs,PRC DELEGATED CO-COMMISSIONING,WOODSEATS MEDICAL CENTRE,34519776,13.08,APMOOH,S8 0SH
Department of Health,NHS Sheffield CCG,11/30/2020,C&M-PMS PCN DES Participation,PRC DELEGATED CO-COMMISSIONING,WOODSEATS MEDICAL CENTRE,34519776,"3,012.16",PARTIP,S8 0SH
Department of Health,NHS Sheffield CCG,11/30/2020,C&M-PMS PCO Other,PRC DELEGATED CO-COMMISSIONING,WOODSEATS MEDICAL CENTRE,34519776,645.70,CQCRP,S8 0SH
Department of Health,NHS Sheffield CCG,11/30/2020,C&M-PMS Prem Notional Rent,PRC DELEGATED CO-COMMISSIONING,WOODSEATS MEDICAL CENTRE,34519776,"11,666.67",NRENT,S8 0SH
Department of Health,NHS Sheffield CCG,11/30/2020,C&M-PMS QOF Aspiration,PRC DELEGATED CO-COMMISSIONING,WOODSEATS MEDICAL CENTRE,34519776,"8,588.98",QUASPP,S8 0SH
Department of Health,NHS Sheffield CCG,11/30/2020,Clinical&Medical-Independent Sector,CHILD AND ADOLESCENT MENTAL HEALTH,XENZONE LTD,34682087,"30,739.99",,EC1Y 1AA
Department of Health,NHS Sheffield CCG,11/30/2020,Hcare Srv Rec NHS Trust-Contract Baseline,AMBULANCE SERVICES,YORKSHIRE AMBULANCE SERVICE NHS TRUST,34578603,"2,406,606.96",,WF2 0XQ
